{"text_format":"3","workbook":"xlsx","n_sheets":6,"sheets":["DATOS","Listado CNAE-2009","Auxiliar","PI 6","PI 1-2-3","PI 4-5"],"not_rendered":{"images":1,"macros":1,"defined_names":2,"comments":1},"read":"whole","date_system":"1900"}

{"sheet":"DATOS","index":0,"n_rows":65,"n_cols":4,"rows_kept":65,"merged":[[8,1,8,3],[11,1,11,2],[20,1,20,2],[23,3,24,3],[31,1,31,3],[37,1,37,2],[47,3,48,3],[49,1,49,3],[55,1,55,2],[62,1,62,3]]}
{"$rows_empty":8}
[null,"Herramienta de ayuda para cumplimentar las solicitudes de subvención acogidas al Decreto 145/2021 de 21 de diciembre, y MODIFICACIÓN POSTERIOR\nLos datos obtenidos en el uso de esta herramienta tienen carácter meramente informativo, sin que en ningún caso pueda derivarse efecto jurídico vinculante alguno con esta administración."]
[]
[null,null,"Introducir o seleccionar datos solamente en las celdas amarillas"]
[null,"DATOS DE ENTRADA",null,"Observaciones"]
[null,"Tipo de instalación para la que solicita la ayuda",null,"Elegir opción"]
[null,"Tipo de solicitante",null,{"$f":"IF(C14=\"\",\"Elegir opción\",VLOOKUP(C14,Auxiliar!R32:S56,2,FALSE))","v":"Elegir opción"}]
[null,{"$f":"IF(D15=\"No aplicable\",\"NO RELLENAR: Dato correspondiente a otro programa de incentivos\",IF(C14=\"Profesional Autónomo\",\"¿La instalación es en una ubicación DISTINTA a su VIVIENDA?\",\"¿Realiza actividad económica?\"))","v":"¿Realiza actividad económica?"},null,{"$f":"IF(OR(C14=Auxiliar!R23,C14=Auxiliar!R26),\"No aplicable\",\"Elegir opción\")","v":"Elegir opción"}]
[null,{"$f":"IF(D16=\"No aplicable\",\"NO RELLENAR: Dato correspondiente a otro programa de incentivos\",\"¿Actúa el solicitante en representación de agrupaciones de personas físicas o jurídicas propietarias de\ninstalaciones del sector servicios u otros sectores productivos?\")","v":"NO RELLENAR: Dato correspondiente a otro programa de incentivos"},null,{"$f":"IF(OR(D14=Auxiliar!S39,D14=Auxiliar!S44),\"Elegir opción\",\"No aplicable\")","v":"No aplicable"}]
[null,{"$f":"IF(D17=\"No aplicable\",\"NO RELLENAR: Dato correspondiente a otro programa de incentivos\",\"Grupo de CNAE (2009)\")","v":"Grupo de CNAE (2009)"},null,{"$f":"IF(C18=\"No se cumplen las condiciones\",\"Elegir Grupo de CNAE\",IF(OR(Auxiliar!W26=456,Auxiliar!V26=456,D14=\"Sector Institucional\"),\"No aplicable\",IF(AND(Auxiliar!Y26=0,OR(C18=4,C18=5,C18=6)),\"CNAE CORRECTO\",IF(AND(Auxiliar!Y26=23,OR(C18=2,C18=3)),\"CNAE CORRECTO\",IF(AND(Auxiliar!Y26=13,OR(C18=1,C18=3,C14=\"Entidades u organizaciones públicas o privadas, sin ánimo de lucro\")),\"CNAE CORRECTO\",\"CNAE INCORRECTO\")))))","v":"Elegir Grupo de CNAE"}]
[null,"PROGRAMA DE INCENTIVOS AL QUE ACOGERSE:",{"$f":"Auxiliar!Z27","v":"No se cumplen las condiciones"},{"$f":"IF(AND(OR(C14=Auxiliar!R9,C14=Auxiliar!R27),DATOS!C18=6),\"Acreditar viviendas sociales\",\"\")","v":""}]
[null,{"$f":"IF(OR(C18=4,C18=5,C18=6),\"¿Recupera IVA?\",\"NO RELLENAR: Dato correspondiente a otro programa de incentivos\")","v":"NO RELLENAR: Dato correspondiente a otro programa de incentivos"},null,{"$f":"IF(OR(C18=4,C18=5,C18=6),IF(C19=\"NO\",\"Incluir IVA en los COSTES\",\"No incluir IVA en los COSTES\"),\"No aplicable\")","v":"No aplicable"}]
[]
[null,{"$f":"IF(OR(DATOS!C18=1,DATOS!C18=2,DATOS!C18=3),\"PROGRAMA DE INCENTIVOS 1-2-3\",\"NO UTILIZAR ESTE APARTADO PARA EL PROGRAMA DE INCENTIVOS SELECCIONADO\")","v":"NO UTILIZAR ESTE APARTADO PARA EL PROGRAMA DE INCENTIVOS SELECCIONADO"},null,{"$f":"IF(OR(C18=4,C18=5,C18=6,C18=\"No se cumplen las condiciones\"),\"Notas\",\"Observaciones\")","v":"Notas"}]
[null,{"$f":"IF(OR(C18=4,C18=5,C18=6,C18=\"No se cumplen las condiciones\"),\"NO RELLENAR: Dato correspondiente a otro programa de incentivos\",\"Localidad\")","v":"NO RELLENAR: Dato correspondiente a otro programa de incentivos"},null,{"$f":"IF(OR(C18=3,C18=4,C18=5,C18=6,C18=\"No se cumplen las condiciones\"),\"\",'PI 1-2-3'!E6&\" aplica ayuda adicional por Población\")","v":""}]
[null,{"$f":"IF(OR(C18=4,C18=5,C18=6,C18=\"No se cumplen las condiciones\"),\"NO RELLENAR: Dato correspondiente a otro programa de incentivos\",\"Efectivos de la empresa (nº de personas)\")","v":"NO RELLENAR: Dato correspondiente a otro programa de incentivos"},null,{"$f":"IF(OR(C18=4,C18=5,C18=6,C18=\"No se cumplen las condiciones\"),\"\",\"Tipo de empresa\")","v":""}]
[null,{"$f":"IF(OR(C18=4,C18=5,C18=6,C18=\"No se cumplen las condiciones\"),\"NO RELLENAR: Dato correspondiente a otro programa de incentivos\",\"Volumen de negocio (€)\")","v":"NO RELLENAR: Dato correspondiente a otro programa de incentivos"},null,{"$f":"IF(OR(C18=4,C18=5,C18=6,C18=\"No se cumplen las condiciones\"),\"\",'PI 1-2-3'!E7)","v":""}]
[null,{"$f":"IF(OR(C18=4,C18=5,C18=6,C18=\"No se cumplen las condiciones\"),\"NO RELLENAR: Dato correspondiente a otro programa de incentivos\",\"Balance general (€)\")","v":"NO RELLENAR: Dato correspondiente a otro programa de incentivos"}]
[null,{"$f":"IF(OR(C18=3,C18=4,C18=5,C18=6,C18=\"No se cumplen las condiciones\"),\"NO RELLENAR: Dato correspondiente a otro programa de incentivos\",\"¿Se retira cubierta de amianto?\")","v":"NO RELLENAR: Dato correspondiente a otro programa de incentivos"}]
[null,{"$f":"IF(OR(C18=3,C18=4,C18=5,C18=6,C18=\"No se cumplen las condiciones\"),\"NO RELLENAR: Dato correspondiente a otro programa de incentivos\",\"¿Se incluye marquesina?\")","v":"NO RELLENAR: Dato correspondiente a otro programa de incentivos"}]
[null,{"$f":"IF(OR(C18=4,C18=5,C18=6,C18=\"No se cumplen las condiciones\"),\"NO RELLENAR: Dato correspondiente a otro programa de incentivos\",IF(C18=3,\"Potencia instalación de GENERACIÓN EXISTENTE (kWp)\",\"Potencia instalación de GENERACIÓN (kWp)\"))","v":"NO RELLENAR: Dato correspondiente a otro programa de incentivos"},null,{"$f":"IF(OR(C18=3,C18=4,C18=5,C18=6,C18=\"No se cumplen las condiciones\"),\"\",\"Csufg (€/kWp)\")","v":""}]
[null,{"$f":"IF(OR(C18=3,C18=4,C18=5,C18=6,C18=\"No se cumplen las condiciones\"),\"NO RELLENAR: Dato correspondiente a otro programa de incentivos\",\"Coste de la instalación de GENERACIÓN (incl. eliminación de amianto y maquesina, en su caso) (€, sin IVA)\")","v":"NO RELLENAR: Dato correspondiente a otro programa de incentivos"},null,{"$f":"IF(OR(C18=3,C18=4,C18=5,C18=6,C18=\"No se cumplen las condiciones\"),\"No aplicable\",'PI 1-2-3'!C13)","v":"No aplicable"}]
[null,{"$f":"IF(OR(C18=4,C18=5,C18=6,C18=\"No se cumplen las condiciones\",C13=Auxiliar!Z3,C13=Auxiliar!Z4),\"NO RELLENAR: Dato correspondiente a otro programa de incentivos\",\"Capaciad de ALMACENAMIENTO (kWh)\")","v":"NO RELLENAR: Dato correspondiente a otro programa de incentivos"},null,{"$f":"IF(OR(C18=4,C18=5,C18=6,C18=\"No se cumplen las condiciones\",C13=Auxiliar!Z3,C13=Auxiliar!Z4),\"\",\"Csufa (€/kWh)\")","v":""}]
[null,{"$f":"IF(OR(C18=4,C18=5,C18=6,C18=\"No se cumplen las condiciones\",C13=Auxiliar!Z3,C13=Auxiliar!Z4),\"NO RELLENAR: Dato correspondiente a otro programa de incentivos\",\"Coste de la instalación de ALMACENAMIENTO (€, sin IVA)\")","v":"NO RELLENAR: Dato correspondiente a otro programa de incentivos"},null,{"$f":"IF(OR(C18=4,C18=5,C18=6,C18=\"No se cumplen las condiciones\",C13=Auxiliar!Z3,C13=Auxiliar!Z4),\"\",'PI 1-2-3'!E13)","v":""}]
[null,{"$f":"IF(OR(C18=4,C18=5,C18=6,C18=\"No se cumplen las condiciones\"),\"Dato correspondiente a otro programa de incentivos\",\"CÁLCULO DE LA CUANTÍA DE LA SUBVENCIÓN (Este cálculo es meramente informativo, no suponiendo compromiso por parte de la Administración)\")","v":"Dato correspondiente a otro programa de incentivos"}]
[null,{"$f":"IF(OR(C18=4,C18=5,C18=6,C18=\"No se cumplen las condiciones\"),\"Dato correspondiente a otro programa de incentivos\",IF(C18=3,\"\",\"Ayuda Total de GENERACIÓN\"))","v":"Dato correspondiente a otro programa de incentivos"},{"$f":"IF(OR(C18=3,C18=4,C18=5,C18=6,C18=\"No se cumplen las condiciones\"),\"\",'PI 1-2-3'!C16)","v":""}]
[null,{"$f":"IF(OR(C18=4,C18=5,C18=6,C18=\"No se cumplen las condiciones\"),\"Dato correspondiente a otro programa de incentivos\",IF(OR(C13=Auxiliar!Z3,C13=Auxiliar!Z4),\"\",\"Ayuda Total de ALMACENAMIENTO\"))","v":"Dato correspondiente a otro programa de incentivos"},{"$f":"IF(OR(C18=4,C18=5,C18=6,C18=\"No se cumplen las condiciones\",C13=Auxiliar!Z3,C13=Auxiliar!Z4),\"\",'PI 1-2-3'!E16)","v":""},{"$f":"IF(OR(C18=4,C18=5,C18=6,C18=\"No se cumplen las condiciones\",C13=Auxiliar!Z3,C13=Auxiliar!Z4),\"\",'PI 1-2-3'!E10&\" cumple ratio baterias\")","v":""}]
[null,{"$f":"IF(OR(C18=4,C18=5,C18=6,C18=\"No se cumplen las condiciones\"),\"Dato correspondiente a otro programa de incentivos\",\"AYUDA TOTAL\")","v":"Dato correspondiente a otro programa de incentivos"},{"$f":"IF(OR(C18=4,C18=5,C18=6,C18=\"No se cumplen las condiciones\"),\"\",'PI 1-2-3'!D17)","v":""}]
[null,{"$f":"IF(OR(C18=4,C18=5,C18=6,C18=\"No se cumplen las condiciones\"),\"Dato correspondiente a otro programa de incentivos\",\"Porcentaje de subvención (%)\")","v":"Dato correspondiente a otro programa de incentivos"},{"$f":"IF(OR(C18=4,C18=5,C18=6,C18=\"No se cumplen las condiciones\"),\"\",'PI 1-2-3'!E17)","v":""}]
[]
[null,{"$f":"IF(OR(DATOS!C18=4,DATOS!C18=5),\"PROGRAMA DE INCENTIVOS 4-5\",\"NO UTILIZAR ESTE APARTADO PARA EL PROGRAMA DE INCENTIVOS SELECCIONADO\")","v":"NO UTILIZAR ESTE APARTADO PARA EL PROGRAMA DE INCENTIVOS SELECCIONADO"},null,{"$f":"IF(OR(C18=1,C18=2,C18=3,C18=6,C18=\"No se cumplen las condiciones\"),\"Notas\",\"Observaciones\")","v":"Notas"}]
[null,{"$f":"IF(OR(C18=1,C18=2,C18=3,C18=6,C18=\"No se cumplen las condiciones\"),\"NO RELLENAR: Dato correspondiente a otro programa de incentivos\",\"Localidad\")","v":"NO RELLENAR: Dato correspondiente a otro programa de incentivos"},null,{"$f":"IF(OR(C18=1,C18=2,C18=3,C18=6,C18=\"No se cumplen las condiciones\"),\"\",'PI 4-5'!E6&\" aplica ayuda adicional por Población\")","v":""}]
[null,{"$f":"IF(OR(C18=1,C18=2,C18=3,C18=5,C18=6,C18=\"No se cumplen las condiciones\"),\"NO RELLENAR: Dato correspondiente a otro programa de incentivos\",\"¿Sector?\")","v":"NO RELLENAR: Dato correspondiente a otro programa de incentivos"}]
[null,{"$f":"IF(OR(C18=1,C18=2,C18=3,C18=5,C18=6,C18=\"No se cumplen las condiciones\"),\"NO RELLENAR: Dato correspondiente a otro programa de incentivos\",\"¿Autoconsumo colectivo?\")","v":"NO RELLENAR: Dato correspondiente a otro programa de incentivos"}]
[null,{"$f":"IF(OR(C18=1,C18=2,C18=3,C18=5,C18=6,C18=\"No se cumplen las condiciones\"),\"NO RELLENAR: Dato correspondiente a otro programa de incentivos\",\"¿Se retira cubierta de amianto?\")","v":"NO RELLENAR: Dato correspondiente a otro programa de incentivos"}]
[null,{"$f":"IF(OR(C18=1,C18=2,C18=3,C18=5,C18=6,C18=\"No se cumplen las condiciones\"),\"NO RELLENAR: Dato correspondiente a otro programa de incentivos\",\"¿Se incluye marquesina?\")","v":"NO RELLENAR: Dato correspondiente a otro programa de incentivos"}]
[null,{"$f":"IF(OR(C18=1,C18=2,C18=3,C18=6,C18=\"No se cumplen las condiciones\"),\"NO RELLENAR: Dato correspondiente a otro programa de incentivos\",IF(C18=5,\"Potencia instalación de GENERACIÓN EXISTENTE (kWp)\",\"Potencia instalación de GENERACIÓN(kWp)\"))","v":"NO RELLENAR: Dato correspondiente a otro programa de incentivos"},null,{"$f":"IF(OR(C18=1,C18=2,C18=3,C18=6,C18=\"No se cumplen las condiciones\",C40=\"Otro sector (agropecuario, etc)\"),\"\",IF(C18=5,\"\",\"Módulo gen. (€/kWp)\"))","v":""}]
[null,{"$f":"IF(OR(C18=1,C18=2,C18=3,C18=5,C18=6,C18=\"No se cumplen las condiciones\"),\"NO RELLENAR: Dato correspondiente a otro programa de incentivos\",\"Coste de la instalación de GENERACIÓN (incl. eliminación de amianto y maquesina, en su caso) (€)\")","v":"NO RELLENAR: Dato correspondiente a otro programa de incentivos"},null,{"$f":"IF(OR(C18=1,C18=2,C18=3,C18=6,C18=\"No se cumplen las condiciones\",C40=\"Otro sector (agropecuario, etc)\"),\"\",IF(C18=5,\"\",'PI 4-5'!C14))","v":""}]
[null,{"$f":"IF(OR(C18=1,C18=2,C18=3,C18=6,C18=\"No se cumplen las condiciones\"),\"NO RELLENAR: Dato correspondiente a otro programa de incentivos\",IF(OR(C13=Auxiliar!Z3,C13=Auxiliar!Z4),\"NO RELLENAR: Dato no necesario\",\"Capaciad de ALMACENAMIENTO (kWh)\"))","v":"NO RELLENAR: Dato correspondiente a otro programa de incentivos"},null,{"$f":"IF(OR(C18=1,C18=2,C18=3,C18=6,C18=\"No se cumplen las condiciones\"),\"\",IF(OR(C13=Auxiliar!Z3,C13=Auxiliar!Z4),\"\",\"Módulo alm. (€/kWh)\"))","v":""}]
[null,{"$f":"IF(OR(C18=1,C18=2,C18=3,C18=6,C18=\"No se cumplen las condiciones\"),\"NO RELLENAR: Dato correspondiente a otro programa de incentivos\",IF(OR(C13=Auxiliar!Z3,C13=Auxiliar!Z4),\"NO RELLENAR: Dato no necesario\",\"Coste de la instalación de ALMACENAMIENTO (€)\"))","v":"NO RELLENAR: Dato correspondiente a otro programa de incentivos"},null,{"$f":"IF(OR(C18=1,C18=2,C18=3,C18=6,C18=\"No se cumplen las condiciones\"),\"\",IF(OR(C13=Auxiliar!Z3,C13=Auxiliar!Z4),\"\",'PI 4-5'!E14))","v":""}]
[null,{"$f":"IF(OR(C18=1,C18=2,C18=3,C18=5,C18=6,C18=\"No se cumplen las condiciones\"),\"NO RELLENAR: Dato correspondiente a otro programa de incentivos\",\"Consumo anual estimado (kWh)\")","v":"NO RELLENAR: Dato correspondiente a otro programa de incentivos"},null,{"$f":"IF(OR(C18=4,C18=5),IF(C48=\"\",0,IF(C48/C49<0.8,\"No cumple la condición\",C48/C49)),\"\")","v":""}]
[null,{"$f":"IF(OR(C18=1,C18=2,C18=3,C18=5,C18=6,C18=\"No se cumplen las condiciones\"),\"NO RELLENAR: Dato correspondiente a otro programa de incentivos\",\"Energía anual generada por la instalación de autoconsumo (kWh)\")","v":"NO RELLENAR: Dato correspondiente a otro programa de incentivos"}]
[null,{"$f":"IF(OR(C18=1,C18=2,C18=3,C18=6,C18=\"No se cumplen las condiciones\"),\"Dato correspondiente a otro programa de incentivos\",\"CÁLCULO DE LA CUANTÍA DE LA SUBVENCIÓN (Este cálculo es meramente informativo, no suponiendo compromiso por parte de la Administración)\")","v":"Dato correspondiente a otro programa de incentivos"}]
[null,{"$f":"IF(OR(C18=1,C18=2,C18=3,C18=6,C18=\"No se cumplen las condiciones\"),\"Dato correspondiente a otro programa de incentivos\",IF(C18=5,\"\",\"Ayuda Total de GENERACIÓN\"))","v":"Dato correspondiente a otro programa de incentivos"},{"$f":"IF(OR(C18=1,C18=2,C18=3,C18=5,C18=6,C18=\"No se cumplen las condiciones\",D48=\"No cumple la condición\"),\"\",'PI 4-5'!C15)","v":""}]
[null,{"$f":"IF(OR(C18=1,C18=2,C18=3,C18=6,C18=\"No se cumplen las condiciones\"),\"Dato correspondiente a otro programa de incentivos\",IF(OR(C13=Auxiliar!Z3,C13=Auxiliar!Z4),\"\",\"Ayuda Total de ALMACENAMIENTO\"))","v":"Dato correspondiente a otro programa de incentivos"},{"$f":"IF(OR(C18=1,C18=2,C18=3,C18=6,C18=\"No se cumplen las condiciones\",C13=Auxiliar!Z3,C13=Auxiliar!Z4,D48=\"No cumple la condición\"),\"\",'PI 4-5'!E15)","v":""},{"$f":"IF(OR(C18=1,C18=2,C18=3,C18=6,C18=\"No se cumplen las condiciones\",C13=Auxiliar!Z3,C13=Auxiliar!Z4),\"\",'PI 4-5'!E11&\" cumple ratio baterias\")","v":""}]
[null,{"$f":"IF(OR(C18=1,C18=2,C18=3,C18=6,C18=\"No se cumplen las condiciones\"),\"Dato correspondiente a otro programa de incentivos\",\"AYUDA TOTAL\")","v":"Dato correspondiente a otro programa de incentivos"},{"$f":"IF(OR(C18=1,C18=2,C18=3,C18=6,C18=\"No se cumplen las condiciones\",D48=\"No cumple la condición\"),\"\",'PI 4-5'!D16)","v":""}]
[null,{"$f":"IF(OR(C18=1,C18=2,C18=3,C18=6,C18=\"No se cumplen las condiciones\"),\"Dato correspondiente a otro programa de incentivos\",\"Porcentaje de subvención (%)\")","v":"Dato correspondiente a otro programa de incentivos"},{"$f":"IF(OR(C18=1,C18=2,C18=3,C18=6,C18=\"No se cumplen las condiciones\",D48=\"No cumple la condición\"),\"\",'PI 4-5'!E16)","v":""}]
[]
[null,{"$f":"IF(OR(DATOS!C18=6),\"PROGRAMA DE INCENTIVOS 6\",\"NO UTILIZAR ESTE APARTADO PARA EL PROGRAMA DE INCENTIVOS SELECCIONADO\")","v":"NO UTILIZAR ESTE APARTADO PARA EL PROGRAMA DE INCENTIVOS SELECCIONADO"},null,{"$f":"IF(OR(C18=1,C18=2,C18=3,C18=4,C18=5,C18=\"No se cumplen las condiciones\"),\"Notas\",\"Observaciones\")","v":"Notas"}]
[null,{"$f":"IF(OR(C18=1,C18=2,C18=3,C18=4,C18=5,C18=\"No se cumplen las condiciones\"),\"NO RELLENAR: Dato correspondiente a otro programa de incentivos\",\"¿Sector?\")","v":"NO RELLENAR: Dato correspondiente a otro programa de incentivos"}]
[null,{"$f":"IF(OR(C18=1,C18=2,C18=3,C18=4,C18=5,C18=\"No se cumplen las condiciones\"),\"NO RELLENAR: Dato correspondiente a otro programa de incentivos\",\"Potencia instalación TÉRMICA (kW)\")","v":"NO RELLENAR: Dato correspondiente a otro programa de incentivos"},null,{"$f":"IF(OR(C18=1,C18=2,C18=3,C18=4,C18=5,C18=\"No se cumplen las condiciones\",C57=\"Otro sector (agropecuario, etc)\"),\"\",\"Módulo (€/kW)\")","v":""}]
[null,{"$f":"IF(OR(C18=1,C18=2,C18=3,C18=4,C18=5,C18=\"No se cumplen las condiciones\"),\"NO RELLENAR: Dato correspondiente a otro programa de incentivos\",\"Coste de la instalación TÉRMICA (incl. nueva distribución y desmantelamiento, en su caso) (€)\")","v":"NO RELLENAR: Dato correspondiente a otro programa de incentivos"},null,{"$f":"IF(OR(C18=1,C18=2,C18=3,C18=4,C18=5,C18=\"No se cumplen las condiciones\",C57=\"Otro sector (agropecuario, etc)\"),\"\",'PI 6'!C10)","v":""}]
[null,{"$f":"IF(OR(C18=1,C18=2,C18=3,C18=4,C18=5,C18=\"No se cumplen las condiciones\"),\"NO RELLENAR: Dato correspondiente a otro programa de incentivos\",\"¿Se realiza Nueva Distribución Interior? En caso afirmativo, seleccionar el uso\")","v":"NO RELLENAR: Dato correspondiente a otro programa de incentivos"}]
[null,{"$f":"IF(OR(C18=1,C18=2,C18=3,C18=4,C18=5,C18=\"No se cumplen las condiciones\",C13=Auxiliar!Z8,C13=Auxiliar!Z12,C13=Auxiliar!Z13),\"NO RELLENAR: Dato correspondiente a otro programa de incentivos\",\"¿Se Desmantela instalación existente?\")","v":"NO RELLENAR: Dato correspondiente a otro programa de incentivos"}]
[null,{"$f":"IF(OR(C18=1,C18=2,C18=3,C18=4,C18=5,C18=\"No se cumplen las condiciones\"),\"NO RELLENAR: Dato correspondiente a otro programa de incentivos\",\"Número de viviendas que utilizarán la instalación\")","v":"NO RELLENAR: Dato correspondiente a otro programa de incentivos"}]
[null,{"$f":"IF(OR(C18=1,C18=2,C18=3,C18=4,C18=5,C18=\"No se cumplen las condiciones\"),\"Dato correspondiente a otro programa de incentivos\",\"CÁLCULO DE LA CUANTÍA DE LA SUBVENCIÓN (Este cálculo es meramente informativo, no suponiendo compromiso por parte de la Administración)\")","v":"Dato correspondiente a otro programa de incentivos"}]
[null,{"$f":"IF(OR(C18=1,C18=2,C18=3,C18=4,C18=5,C18=\"No se cumplen las condiciones\"),\"Dato correspondiente a otro programa de incentivos\",\"SUBVENCIÓN A CONCEDER\")","v":"Dato correspondiente a otro programa de incentivos"},{"$f":"IF(OR(C18=1,C18=2,C18=3,C18=4,C18=5,C18=\"No se cumplen las condiciones\"),\"\",'PI 6'!D12)","v":""},{"$f":"IF('PI 6'!D12='PI 6'!E8,\"Valor de ayuda máximo\",\"\")","v":{"$error":"#N/A"}}]
[null,{"$f":"IF(OR(C18=1,C18=2,C18=3,C18=4,C18=5,C18=\"No se cumplen las condiciones\"),\"Dato correspondiente a otro programa de incentivos\",\"Porcentaje de subvención (%)\")","v":"Dato correspondiente a otro programa de incentivos"},{"$f":"IF(OR(C18=1,C18=2,C18=3,C18=4,C18=5,C18=\"No se cumplen las condiciones\"),\"\",'PI 6'!E12)","v":""}]

{"sheet":"Listado CNAE-2009","index":1,"n_rows":1011,"n_cols":3,"rows_kept":1011}
["COD_CNAE2009","CODINTEGR","TITULO_CNAE2009"]
["A","A","Agricultura, ganadería, silvicultura y pesca"]
[1,"A01","Agricultura, ganadería, caza y servicios relacionados con las mismas"]
[11,"A011","Cultivos no perennes"]
[111,"A0111","Cultivo de cereales (excepto arroz), leguminosas y semillas oleaginosas"]
[112,"A0112","Cultivo de arroz"]
[113,"A0113","Cultivo de hortalizas, raíces y tubérculos"]
[114,"A0114","Cultivo de caña de azúcar"]
[115,"A0115","Cultivo de tabaco"]
[116,"A0116","Cultivo de plantas para fibras textiles"]
[119,"A0119","Otros cultivos no perennes"]
[12,"A012","Cultivos perennes"]
[121,"A0121","Cultivo de la vid"]
[122,"A0122","Cultivo de frutos tropicales y subtropicales"]
[123,"A0123","Cultivo de cítricos"]
[124,"A0124","Cultivo de frutos con hueso y pepitas"]
[125,"A0125","Cultivo de otros árboles y arbustos frutales y frutos secos"]
[126,"A0126","Cultivo de frutos oleaginosos"]
[127,"A0127","Cultivo de plantas para bebidas"]
[128,"A0128","Cultivo de especias, plantas aromáticas, medicinales y farmacéuticas"]
[129,"A0129","Otros cultivos perennes"]
[13,"A013","Propagación de plantas"]
[130,"A0130","Propagación de plantas"]
[14,"A014","Producción ganadera"]
[141,"A0141","Explotación de ganado bovino para la producción de leche"]
[142,"A0142","Explotación de otro ganado bovino y búfalos"]
[143,"A0143","Explotación de caballos y otros equinos"]
[144,"A0144","Explotación de camellos y otros camélidos"]
[145,"A0145","Explotación de ganado ovino y caprino"]
[146,"A0146","Explotación de ganado porcino"]
[147,"A0147","Avicultura"]
[149,"A0149","Otras explotaciones de ganado"]
[15,"A015","Producción agrícola combinada con la producción ganadera"]
[150,"A0150","Producción agrícola combinada con la producción ganadera"]
[16,"A016","Actividades de apoyo a la agricultura, a la ganadería y de preparación posterior a la cosecha"]
[161,"A0161","Actividades de apoyo a la agricultura"]
[162,"A0162","Actividades de apoyo a la ganadería"]
[163,"A0163","Actividades de preparación posterior a la cosecha"]
[164,"A0164","Tratamiento de semillas para reproducción"]
[17,"A017","Caza, captura de animales y servicios relacionados con las mismas"]
[170,"A0170","Caza, captura de animales y servicios relacionados con las mismas"]
[2,"A02","Silvicultura y explotación forestal"]
[21,"A021","Silvicultura y otras actividades forestales"]
[210,"A0210","Silvicultura y otras actividades forestales"]
[22,"A022","Explotación de la madera"]
[220,"A0220","Explotación de la madera"]
[23,"A023","Recolección de productos silvestres, excepto madera"]
[230,"A0230","Recolección de productos silvestres, excepto madera"]
[24,"A024","Servicios de apoyo a la silvicultura"]
[240,"A0240","Servicios de apoyo a la silvicultura"]
[3,"A03","Pesca y acuicultura"]
[31,"A031","Pesca"]
[311,"A0311","Pesca marina"]
[312,"A0312","Pesca en agua dulce"]
[32,"A032","Acuicultura"]
[321,"A0321","Acuicultura marina"]
[322,"A0322","Acuicultura en agua dulce"]
["B","B","Industrias extractivas"]
[5,"B05","Extracción de antracita, hulla y lignito"]
[51,"B051","Extracción de antracita y hulla"]
[510,"B0510","Extracción de antracita y hulla"]
[52,"B052","Extracción de lignito"]
[520,"B0520","Extracción de lignito"]
[6,"B06","Extracción de crudo de petróleo y gas natural"]
[61,"B061","Extracción de crudo de petróleo"]
[610,"B0610","Extracción de crudo de petróleo"]
[62,"B062","Extracción de gas natural"]
[620,"B0620","Extracción de gas natural"]
[7,"B07","Extracción de minerales metálicos"]
[71,"B071","Extracción de minerales de hierro"]
[710,"B0710","Extracción de minerales de hierro"]
[72,"B072","Extracción de minerales metálicos no férreos"]
[721,"B0721","Extracción de minerales de uranio y torio"]
[729,"B0729","Extracción de otros minerales metálicos no férreos"]
[8,"B08","Otras industrias extractivas"]
[81,"B081","Extracción de piedra, arena y arcilla"]
[811,"B0811","Extracción de piedra ornamental y para la construcción, piedra caliza, yeso, creta y pizarra"]
[812,"B0812","Extracción de gravas y arenas; extracción de arcilla y caolín"]
[89,"B089","Industrias extractivas n.c.o.p."]
[891,"B0891","Extracción de minerales para productos químicos y fertilizantes"]
[892,"B0892","Extracción de turba"]
[893,"B0893","Extracción de sal"]
[899,"B0899","Otras industrias extractivas n.c.o.p."]
[9,"B09","Actividades de apoyo a las industrias extractivas"]
[91,"B091","Actividades de apoyo a la extracción de petróleo y gas natural"]
[910,"B0910","Actividades de apoyo a la extracción de petróleo y gas natural"]
[99,"B099","Actividades de apoyo a otras industrias extractivas"]
[990,"B0990","Actividades de apoyo a otras industrias extractivas"]
["C","C","Industria manufacturera"]
[10,"C10","Industria de la alimentación"]
[101,"C101","Procesado y conservación de carne y elaboración de productos cárnicos"]
[1011,"C1011","Procesado y conservación de carne"]
[1012,"C1012","Procesado y conservación de volatería"]
[1013,"C1013","Elaboración de productos cárnicos y de volatería"]
[102,"C102","Procesado y conservación de pescados, crustáceos y moluscos"]
[1021,"C1021","Procesado de pescados, crustáceos y moluscos"]
[1022,"C1022","Fabricación de conservas de pescado"]
[103,"C103","Procesado y conservación de frutas y hortalizas"]
[1031,"C1031","Procesado y conservación de patatas"]
[1032,"C1032","Elaboración de zumos de frutas y hortalizas"]
[1039,"C1039","Otro procesado y conservación de frutas y hortalizas"]
[104,"C104","Fabricación de aceites y grasas vegetales y animales"]
[1042,"C1042","Fabricación de margarina y grasas comestibles similares"]
[1043,"C1043","Fabricación de aceite de oliva"]
[1044,"C1044","Fabricación de otros aceites y grasas"]
[105,"C105","Fabricación de productos lácteos"]
[1052,"C1052","Elaboración de helados"]
[1053,"C1053","Fabricación de quesos"]
[1054,"C1054","Preparación de leche y otros productos lácteos"]
[106,"C106","Fabricación de productos de molinería, almidones y productos amiláceos"]
[1061,"C1061","Fabricación de productos de molinería"]
[1062,"C1062","Fabricación de almidones y productos amiláceos"]
[107,"C107","Fabricación de productos de panadería y pastas alimenticias"]
[1071,"C1071","Fabricación de pan y de productos frescos de panadería y pastelería"]
[1072,"C1072","Fabricación de galletas y productos de panadería y pastelería de larga duración"]
[1073,"C1073","Fabricación de pastas alimenticias, cuscús y productos similares"]
[108,"C108","Fabricación de otros productos alimenticios"]
[1081,"C1081","Fabricación de azúcar"]
[1082,"C1082","Fabricación de cacao, chocolate y productos de confitería"]
[1083,"C1083","Elaboración de café, té e infusiones"]
[1084,"C1084","Elaboración de especias, salsas y condimentos"]
[1085,"C1085","Elaboración de platos y comidas preparados"]
[1086,"C1086","Elaboración de preparados alimenticios homogeneizados y alimentos dietéticos"]
[1089,"C1089","Elaboración de otros productos alimenticios n.c.o.p."]
[109,"C109","Fabricación de productos para la alimentación animal"]
[1091,"C1091","Fabricación de productos para la alimentación de animales de granja"]
[1092,"C1092","Fabricación de productos para la alimentación de animales de compañía"]
[11,"C11","Fabricación de bebidas"]
[110,"C110","Fabricación de bebidas"]
[1101,"C1101","Destilación, rectificación y mezcla de bebidas alcohólicas"]
[1102,"C1102","Elaboración de vinos"]
[1103,"C1103","Elaboración de sidra y otras bebidas fermentadas a partir de frutas"]
[1104,"C1104","Elaboración de otras bebidas no destiladas, procedentes de la fermentación"]
[1105,"C1105","Fabricación de cerveza"]
[1106,"C1106","Fabricación de malta"]
[1107,"C1107","Fabricación de bebidas no alcohólicas; producción de aguas minerales y otras aguas embotelladas"]
[12,"C12","Industria del tabaco"]
[120,"C120","Industria del tabaco"]
[1200,"C1200","Industria del tabaco"]
[13,"C13","Industria textil"]
[131,"C131","Preparación e hilado de fibras textiles"]
[1310,"C1310","Preparación e hilado de fibras textiles"]
[132,"C132","Fabricación de tejidos textiles"]
[1320,"C1320","Fabricación de tejidos textiles"]
[133,"C133","Acabado de textiles"]
[1330,"C1330","Acabado de textiles"]
[139,"C139","Fabricación de otros productos textiles"]
[1391,"C1391","Fabricación de tejidos de punto"]
[1392,"C1392","Fabricación de artículos confeccionados con textiles, excepto prendas de vestir"]
[1393,"C1393","Fabricación de alfombras y moquetas"]
[1394,"C1394","Fabricación de cuerdas, cordeles, bramantes y redes"]
[1395,"C1395","Fabricación de telas no tejidas y artículos confeccionados con ellas, excepto prendas de vestir"]
[1396,"C1396","Fabricación de otros productos textiles de uso técnico e industrial"]
[1399,"C1399","Fabricación de otros productos textiles n.c.o.p."]
[14,"C14","Confección de prendas de vestir"]
[141,"C141","Confección de prendas de vestir, excepto de peletería"]
[1411,"C1411","Confección de prendas de vestir de cuero"]
[1412,"C1412","Confección de ropa de trabajo"]
[1413,"C1413","Confección de otras prendas de vestir exteriores"]
[1414,"C1414","Confección de ropa interior"]
[1419,"C1419","Confección de otras prendas de vestir y accesorios"]
[142,"C142","Fabricación de artículos de peletería"]
[1420,"C1420","Fabricación de artículos de peletería"]
[143,"C143","Confección de prendas de vestir de punto"]
[1431,"C1431","Confección de calcetería"]
[1439,"C1439","Confección de otras prendas de vestir de punto"]
[15,"C15","Industria del cuero y del calzado"]
[151,"C151","Preparación, curtido y acabado del cuero; fabricación de artículos de marroquinería, viaje y de guarnicionería y talabartería; preparación y teñido de pieles"]
[1511,"C1511","Preparación, curtido y acabado del cuero; preparación y teñido de pieles"]
[1512,"C1512","Fabricación de artículos de marroquinería, viaje y de guarnicionería y talabartería"]
[152,"C152","Fabricación de calzado"]
[1520,"C1520","Fabricación de calzado"]
[16,"C16","Industria de la madera y del corcho, excepto muebles; cestería y espartería"]
[161,"C161","Aserrado y cepillado de la madera"]
[1610,"C1610","Aserrado y cepillado de la madera"]
[162,"C162","Fabricación de productos de madera, corcho, cestería y espartería"]
[1621,"C1621","Fabricación de chapas y tableros de madera"]
[1622,"C1622","Fabricación de suelos de madera ensamblados"]
[1623,"C1623","Fabricación de otras estructuras de madera y piezas de carpintería y ebanistería para la construcción"]
[1624,"C1624","Fabricación de envases y embalajes de madera"]
[1629,"C1629","Fabricación de otros productos de madera; artículos de corcho, cestería y espartería"]
[17,"C17","Industria del papel"]
[171,"C171","Fabricación de pasta papelera, papel y cartón"]
[1711,"C1711","Fabricación de pasta papelera"]
[1712,"C1712","Fabricación de papel y cartón"]
[172,"C172","Fabricación de artículos de papel y de cartón"]
[1721,"C1721","Fabricación de papel y cartón ondulados; fabricación de envases y embalajes de papel y cartón"]
[1722,"C1722","Fabricación de artículos de papel y cartón para uso doméstico, sanitario e higiénico"]
[1723,"C1723","Fabricación de artículos de papelería"]
[1724,"C1724","Fabricación de papeles pintados"]
[1729,"C1729","Fabricación de otros artículos de papel y cartón"]
[18,"C18","Artes gráficas y reproducción de soportes grabados"]
[181,"C181","Artes gráficas y servicios relacionados con las mismas"]
[1811,"C1811","Artes gráficas y servicios relacionados con las mismas"]
[1812,"C1812","Otras actividades de impresión y artes gráficas"]
[1813,"C1813","Servicios de preimpresión y preparación de soportes"]
[1814,"C1814","Encuadernación y servicios relacionados con la misma"]
[182,"C182","Reproducción de soportes grabados"]
[1820,"C1820","Reproducción de soportes grabados"]
[19,"C19","Coquerías y refino de petróleo"]
[191,"C191","Coquerías"]
[1910,"C1910","Coquerías"]
[192,"C192","Refino de petróleo"]
[1920,"C1920","Refino de petróleo"]
[20,"C20","Industria química"]
[201,"C201","Fabricación de productos químicos básicos, compuestos nitrogenados, fertilizantes, plásticos y caucho sintético en formas primarias"]
[2011,"C2011","Fabricación de gases industriales"]
[2012,"C2012","Fabricación de colorantes y pigmentos"]
[2013,"C2013","Fabricación de otros productos básicos de química inorgánica"]
[2014,"C2014","Fabricación de otros productos básicos de química orgánica"]
[2015,"C2015","Fabricación de fertilizantes y compuestos nitrogenados"]
[2016,"C2016","Fabricación de plásticos en formas primarias"]
[2017,"C2017","Fabricación de caucho sintético en formas primarias"]
[202,"C202","Fabricación de pesticidas y otros productos agroquímicos"]
[2020,"C2020","Fabricación de pesticidas y otros productos agroquímicos"]
[203,"C203","Fabricación de pinturas, barnices y revestimientos similares; tintas de imprenta y masillas"]
[2030,"C2030","Fabricación de pinturas, barnices y revestimientos similares; tintas de imprenta y masillas"]
[204,"C204","Fabricación de jabones, detergentes y otros artículos de limpieza y abrillantamiento; fabricación de perfumes y cosméticos"]
[2041,"C2041","Fabricación de jabones, detergentes y otros artículos de limpieza y abrillantamiento"]
[2042,"C2042","Fabricación de perfumes y cosméticos"]
[205,"C205","Fabricación de otros productos químicos"]
[2051,"C2051","Fabricación de explosivos"]
[2052,"C2052","Fabricación de colas"]
[2053,"C2053","Fabricación de aceites esenciales"]
[2059,"C2059","Fabricación de otros productos químicos n.c.o.p."]
[206,"C206","Fabricación de fibras artificiales y sintéticas"]
[2060,"C2060","Fabricación de fibras artificiales y sintéticas"]
[21,"C21","Fabricación de productos farmacéuticos"]
[211,"C211","Fabricación de productos farmacéuticos de base"]
[2110,"C2110","Fabricación de productos farmacéuticos de base"]
[212,"C212","Fabricación de especialidades farmacéuticas"]
[2120,"C2120","Fabricación de especialidades farmacéuticas"]
[22,"C22","Fabricación de productos de caucho y plásticos"]
[221,"C221","Fabricación de productos de caucho"]
[2211,"C2211","Fabricación de neumáticos y cámaras de caucho; reconstrucción y recauchutado de neumáticos"]
[2219,"C2219","Fabricación de otros productos de caucho"]
[222,"C222","Fabricación de productos de plástico"]
[2221,"C2221","Fabricación de placas, hojas, tubos y perfiles de plástico"]
[2222,"C2222","Fabricación de envases y embalajes de plástico"]
[2223,"C2223","Fabricación de productos de plástico para la construcción"]
[2229,"C2229","Fabricación de otros productos de plástico"]
[23,"C23","Fabricación de otros productos minerales no metálicos"]
[231,"C231","Fabricación de vidrio y productos de vidrio"]
[2311,"C2311","Fabricación de vidrio plano"]
[2312,"C2312","Manipulado y transformación de vidrio plano"]
[2313,"C2313","Fabricación de vidrio hueco"]
[2314,"C2314","Fabricación de fibra de vidrio"]
[2319,"C2319","Fabricación y manipulado de otro vidrio, incluido el vidrio técnico"]
[232,"C232","Fabricación de productos cerámicos refractarios"]
[2320,"C2320","Fabricación de productos cerámicos refractarios"]
[233,"C233","Fabricación de productos cerámicos para la construcción"]
[2331,"C2331","Fabricación de azulejos y baldosas de cerámica"]
[2332,"C2332","Fabricación de ladrillos, tejas y productos de tierras cocidas para la construcción"]
[234,"C234","Fabricación de otros productos cerámicos"]
[2341,"C2341","Fabricación de artículos cerámicos de uso doméstico y ornamental"]
[2342,"C2342","Fabricación de aparatos sanitarios cerámicos"]
[2343,"C2343","Fabricación de aisladores y piezas aislantes de material cerámico"]
[2344,"C2344","Fabricación de otros productos cerámicos de uso técnico"]
[2349,"C2349","Fabricación de otros productos cerámicos"]
[235,"C235","Fabricación de cemento, cal y yeso"]
[2351,"C2351","Fabricación de cemento"]
[2352,"C2352","Fabricación de cal y yeso"]
[236,"C236","Fabricación de elementos de hormigón, cemento y yeso"]
[2361,"C2361","Fabricación de elementos de hormigón para la construcción"]
[2362,"C2362","Fabricación de elementos de yeso para la construcción"]
[2363,"C2363","Fabricación de hormigón fresco"]
[2364,"C2364","Fabricación de mortero"]
[2365,"C2365","Fabricación de fibrocemento"]
[2369,"C2369","Fabricación de otros productos de hormigón, yeso y cemento"]
[237,"C237","Corte, tallado y acabado de la piedra"]
[2370,"C2370","Corte, tallado y acabado de la piedra"]
[239,"C239","Fabricación de productos abrasivos y productos minerales no metálicos n.c.o.p."]
[2391,"C2391","Fabricación de productos abrasivos"]
[2399,"C2399","Fabricación de otros productos minerales no metálicos n.c.o.p."]
[24,"C24","Metalurgia; fabricación de productos de hierro, acero y ferroaleaciones"]
[241,"C241","Fabricación de productos básicos de hierro, acero y ferroaleaciones"]
[2410,"C2410","Fabricación de productos básicos de hierro, acero y ferroaleaciones"]
[242,"C242","Fabricación de tubos, tuberías, perfiles huecos y sus accesorios, de acero"]
[2420,"C2420","Fabricación de tubos, tuberías, perfiles huecos y sus accesorios, de acero"]
[243,"C243","Fabricación de otros productos de primera transformación del acero"]
[2431,"C2431","Estirado en frío"]
[2432,"C2432","Laminación en frío"]
[2433,"C2433","Producción de perfiles en frío por conformación con plegado"]
[2434,"C2434","Trefilado en frío"]
[244,"C244","Producción de metales preciosos y de otros metales no férreos"]
[2441,"C2441","Producción de metales preciosos"]
[2442,"C2442","Producción de aluminio"]
[2443,"C2443","Producción de plomo, zinc y estaño"]
[2444,"C2444","Producción de cobre"]
[2445,"C2445","Producción de otros metales no férreos"]
[2446,"C2446","Procesamiento de combustibles nucleares"]
[245,"C245","Fundición de metales"]
[2451,"C2451","Fundición de hierro"]
[2452,"C2452","Fundición de acero"]
[2453,"C2453","Fundición de metales ligeros"]
[2454,"C2454","Fundición de otros metales no férreos"]
[25,"C25","Fabricación de productos metálicos, excepto maquinaria y equipo"]
[251,"C251","Fabricación de elementos metálicos para la construcción"]
[2511,"C2511","Fabricación de estructuras metálicas y sus componentes"]
[2512,"C2512","Fabricación de carpintería metálica"]
[252,"C252","Fabricación de cisternas, grandes depósitos y contenedores de metal"]
[2521,"C2521","Fabricación de radiadores y calderas para calefacción central"]
[2529,"C2529","Fabricación de otras cisternas, grandes depósitos y contenedores de metal"]
[253,"C253","Fabricación de generadores de vapor, excepto calderas de calefacción central"]
[2530,"C2530","Fabricación de generadores de vapor, excepto calderas de calefacción central"]
[254,"C254","Fabricación de armas y municiones"]
[2540,"C2540","Fabricación de armas y municiones"]
[255,"C255","Forja, estampación y embutición de metales; metalurgia de polvos"]
[2550,"C2550","Forja, estampación y embutición de metales; metalurgia de polvos"]
[256,"C256","Tratamiento y revestimiento de metales; ingeniería mecánica por cuenta de terceros"]
[2561,"C2561","Tratamiento y revestimiento de metales"]
[2562,"C2562","Ingeniería mecánica por cuenta de terceros"]
[257,"C257","Fabricación de artículos de cuchillería y cubertería, herramientas y ferretería"]
[2571,"C2571","Fabricación de artículos de cuchillería y cubertería"]
[2572,"C2572","Fabricación de cerraduras y herrajes"]
[2573,"C2573","Fabricación de herramientas"]
[259,"C259","Fabricación de otros productos metálicos"]
[2591,"C2591","Fabricación de bidones y toneles de hierro o acero"]
[2592,"C2592","Fabricación de envases y embalajes metálicos ligeros"]
[2593,"C2593","Fabricación de productos de alambre, cadenas y muelles"]
[2594,"C2594","Fabricación de pernos y productos de tornillería"]
[2599,"C2599","Fabricación de otros productos metálicos n.c.o.p."]
[26,"C26","Fabricación de productos informáticos, electrónicos y ópticos"]
[261,"C261","Fabricación de componentes electrónicos y circuitos impresos ensamblados"]
[2611,"C2611","Fabricación de componentes electrónicos"]
[2612,"C2612","Fabricación de circuitos impresos ensamblados"]
[262,"C262","Fabricación de ordenadores y equipos periféricos"]
[2620,"C2620","Fabricación de ordenadores y equipos periféricos"]
[263,"C263","Fabricación de equipos de telecomunicaciones"]
[2630,"C2630","Fabricación de equipos de telecomunicaciones"]
[264,"C264","Fabricación de productos electrónicos de consumo"]
[2640,"C2640","Fabricación de productos electrónicos de consumo"]
[265,"C265","Fabricación de instrumentos y aparatos de medida, verificación y navegación; fabricación de relojes"]
[2651,"C2651","Fabricación de instrumentos y aparatos de medida, verificación y navegación"]
[2652,"C2652","Fabricación de relojes"]
[266,"C266","Fabricación de equipos de radiación, electromédicos y electroterapéuticos"]
[2660,"C2660","Fabricación de equipos de radiación, electromédicos y electroterapéuticos"]
[267,"C267","Fabricación de instrumentos de óptica y equipo fotográfico"]
[2670,"C2670","Fabricación de instrumentos de óptica y equipo fotográfico"]
[268,"C268","Fabricación de soportes magnéticos y ópticos"]
[2680,"C2680","Fabricación de soportes magnéticos y ópticos"]
[27,"C27","Fabricación de material y equipo eléctrico"]
[271,"C271","Fabricación de motores, generadores y transformadores eléctricos, y de aparatos de distribución y control eléctrico"]
[2711,"C2711","Fabricación de motores, generadores y transformadores eléctricos"]
[2712,"C2712","Fabricación de aparatos de distribución y control eléctrico"]
[272,"C272","Fabricación de pilas y acumuladores eléctricos"]
[2720,"C2720","Fabricación de pilas y acumuladores eléctricos"]
[273,"C273","Fabricación de cables y dispositivos de cableado"]
[2731,"C2731","Fabricación de cables de fibra óptica"]
[2732,"C2732","Fabricación de otros hilos y cables electrónicos y eléctricos"]
[2733,"C2733","Fabricación de dispositivos de cableado"]
[274,"C274","Fabricación de lámparas y aparatos eléctricos de iluminación"]
[2740,"C2740","Fabricación de lámparas y aparatos eléctricos de iluminación"]
[275,"C275","Fabricación de aparatos domésticos"]
[2751,"C2751","Fabricación de electrodomésticos"]
[2752,"C2752","Fabricación de aparatos domésticos no eléctricos"]
[279,"C279","Fabricación de otro material y equipo eléctrico"]
[2790,"C2790","Fabricación de otro material y equipo eléctrico"]
[28,"C28","Fabricación de maquinaria y equipo n.c.o.p."]
[281,"C281","Fabricación de maquinaria de uso general"]
[2811,"C2811","Fabricación de motores y turbinas, excepto los destinados a aeronaves, vehículos automóviles y ciclomotores"]
[2812,"C2812","Fabricación de equipos de transmisión hidráulica y neumática"]
[2813,"C2813","Fabricación de otras bombas y compresores"]
[2814,"C2814","Fabricación de otra grifería y válvulas"]
[2815,"C2815","Fabricación de cojinetes, engranajes y órganos mecánicos de transmisión"]
[282,"C282","Fabricación de otra maquinaria de uso general"]
[2821,"C2821","Fabricación de hornos y quemadores"]
[2822,"C2822","Fabricación de maquinaria de elevación y manipulación"]
[2823,"C2823","Fabricación de máquinas y equipos de oficina, excepto equipos informáticos"]
[2824,"C2824","Fabricación de herramientas eléctricas manuales"]
[2825,"C2825","Fabricación de maquinaria de ventilación y refrigeración no doméstica"]
[2829,"C2829","Fabricación de otra maquinaria de uso general n.c.o.p."]
[283,"C283","Fabricación de maquinaria agraria y forestal"]
[2830,"C2830","Fabricación de maquinaria agraria y forestal"]
[284,"C284","Fabricación de máquinas herramienta para trabajar el metal y otras máquinas herramienta"]
[2841,"C2841","Fabricación de máquinas herramienta para trabajar el metal"]
[2849,"C2849","Fabricación de otras máquinas herramienta"]
[289,"C289","Fabricación de otra maquinaria para usos específicos"]
[2891,"C2891","Fabricación de maquinaria para la industria metalúrgica"]
[2892,"C2892","Fabricación de maquinaria para las industrias extractivas y de la construcción"]
[2893,"C2893","Fabricación de maquinaria para la industria de la alimentación, bebidas y tabaco"]
[2894,"C2894","Fabricación de maquinaria para las industrias textil, de la confección y del cuero"]
[2895,"C2895","Fabricación de maquinaria para la industria del papel y del cartón"]
[2896,"C2896","Fabricación de maquinaria para la industria del plástico y el caucho"]
[2899,"C2899","Fabricación de otra maquinaria para usos específicos n.c.o.p."]
[29,"C29","Fabricación de vehículos de motor, remolques y semirremolques"]
[291,"C291","Fabricación de vehículos de motor"]
[2910,"C2910","Fabricación de vehículos de motor"]
[292,"C292","Fabricación de carrocerías para vehículos de motor; fabricación de remolques y semirremolques"]
[2920,"C2920","Fabricación de carrocerías para vehículos de motor; fabricación de remolques y semirremolques"]
[293,"C293","Fabricación de componentes, piezas y accesorios para vehículos de motor"]
[2931,"C2931","Fabricación de equipos eléctricos y electrónicos para vehículos de motor"]
[2932,"C2932","Fabricación de otros componentes, piezas y accesorios para vehículos de motor"]
[30,"C30","Fabricación de otro material de transporte"]
[301,"C301","Construcción naval"]
[3011,"C3011","Construcción de barcos y estructuras flotantes"]
[3012,"C3012","Construcción de embarcaciones de recreo y deporte"]
[302,"C302","Fabricación de locomotoras y material ferroviario"]
[3020,"C3020","Fabricación de locomotoras y material ferroviario"]
[303,"C303","Construcción aeronáutica y espacial y su maquinaria"]
[3030,"C3030","Construcción aeronáutica y espacial y su maquinaria"]
[304,"C304","Fabricación de vehículos militares de combate"]
[3040,"C3040","Fabricación de vehículos militares de combate"]
[309,"C309","Fabricación de otro material de transporte n.c.o.p."]
[3091,"C3091","Fabricación de motocicletas"]
[3092,"C3092","Fabricación de bicicletas y de vehículos para personas con discapacidad"]
[3099,"C3099","Fabricación de otro material de transporte n.c.o.p."]
[31,"C31","Fabricación de muebles"]
[310,"C310","Fabricación de muebles"]
[3101,"C3101","Fabricación de muebles de oficina y de establecimientos comerciales"]
[3102,"C3102","Fabricación de muebles de cocina"]
[3103,"C3103","Fabricación de colchones"]
[3109,"C3109","Fabricación de otros muebles"]
[32,"C32","Otras industrias manufactureras"]
[321,"C321","Fabricación de artículos de joyería, bisutería y similares"]
[3211,"C3211","Fabricación de monedas"]
[3212,"C3212","Fabricación de artículos de joyería y artículos similares"]
[3213,"C3213","Fabricación de artículos de bisutería y artículos similares"]
[322,"C322","Fabricación de instrumentos musicales"]
[3220,"C3220","Fabricación de instrumentos musicales"]
[323,"C323","Fabricación de artículos de deporte"]
[3230,"C3230","Fabricación de artículos de deporte"]
[324,"C324","Fabricación de juegos y juguetes"]
[3240,"C3240","Fabricación de juegos y juguetes"]
[325,"C325","Fabricación de instrumentos y suministros médicos y odontológicos"]
[3250,"C3250","Fabricación de instrumentos y suministros médicos y odontológicos"]
[329,"C329","Industrias manufactureras n.c.o.p."]
[3291,"C3291","Fabricación de escobas, brochas y cepillos"]
[3299,"C3299","Otras industrias manufactureras n.c.o.p."]
[33,"C33","Reparación e instalación de maquinaria y equipo"]
[331,"C331","Reparación de productos metálicos, maquinaria y equipo"]
[3311,"C3311","Reparación de productos metálicos"]
[3312,"C3312","Reparación de maquinaria"]
[3313,"C3313","Reparación de equipos electrónicos y ópticos"]
[3314,"C3314","Reparación de equipos eléctricos"]
[3315,"C3315","Reparación y mantenimiento naval"]
[3316,"C3316","Reparación y mantenimiento aeronáutico y espacial"]
[3317,"C3317","Reparación y mantenimiento de otro material de transporte"]
[3319,"C3319","Reparación de otros equipos"]
[332,"C332","Instalación de máquinas y equipos industriales"]
[3320,"C3320","Instalación de máquinas y equipos industriales"]
["D","D","Suministro de energía eléctrica, gas, vapor y aire acondicionado"]
[35,"D35","Suministro de energía eléctrica, gas, vapor y aire acondicionado"]
[351,"D351","Producción, transporte y distribución de energía eléctrica"]
[3512,"D3512","Transporte de energía eléctrica"]
[3513,"D3513","Distribución de energía eléctrica"]
[3514,"D3514","Comercio de energía eléctrica"]
[3515,"D3515","Producción de energía hidroeléctrica"]
[3516,"D3516","Producción de energía eléctrica de origen térmico convencional"]
[3517,"D3517","Producción de energía eléctrica de origen nuclear"]
[3518,"D3518","Producción de energía eléctrica de origen eólico"]
[3519,"D3519","Producción de energía eléctrica de otros tipos"]
[352,"D352","Producción de gas; distribución por tubería de combustibles gaseosos"]
[3521,"D3521","Producción de gas"]
[3522,"D3522","Distribución por tubería de combustibles gaseosos"]
[3523,"D3523","Comercio de gas por tubería"]
[353,"D353","Suministro de vapor y aire acondicionado"]
[3530,"D3530","Suministro de vapor y aire acondicionado"]
["E","E","Suministro de agua, actividades de saneamiento, gestión de residuos y descontaminación"]
[36,"E36","Captación, depuración y distribución de agua"]
[360,"E360","Captación, depuración y distribución de agua"]
[3600,"E3600","Captación, depuración y distribución de agua"]
[37,"E37","Recogida y tratamiento de aguas residuales"]
[370,"E370","Recogida y tratamiento de aguas residuales"]
[3700,"E3700","Recogida y tratamiento de aguas residuales"]
[38,"E38","Recogida, tratamiento y eliminación de residuos; valorización"]
[381,"E381","Recogida de residuos"]
[3811,"E3811","Recogida de residuos no peligrosos"]
[3812,"E3812","Recogida de residuos peligrosos"]
[382,"E382","Tratamiento y eliminación de residuos"]
[3821,"E3821","Tratamiento y eliminación de residuos no peligrosos"]
[3822,"E3822","Tratamiento y eliminación de residuos peligrosos"]
[383,"E383","Valorización"]
[3831,"E3831","Separación y clasificación de materiales"]
[3832,"E3832","Valorización de materiales ya clasificados"]
[39,"E39","Actividades de descontaminación y otros servicios de gestión de residuos"]
[390,"E390","Actividades de descontaminación y otros servicios de gestión de residuos"]
[3900,"E3900","Actividades de descontaminación y otros servicios de gestión de residuos"]
["F","F","Construcción"]
[41,"F41","Construcción de edificios"]
[411,"F411","Promoción inmobiliaria"]
[4110,"F4110","Promoción inmobiliaria"]
[412,"F412","Construcción de edificios"]
[4121,"F4121","Construcción de edificios residenciales"]
[4122,"F4122","Construcción de edificios no residenciales"]
[42,"F42","Ingeniería civil"]
[421,"F421","Construcción de carreteras y vías férreas, puentes y túneles"]
[4211,"F4211","Construcción de carreteras y autopistas"]
[4212,"F4212","Construcción de vías férreas de superficie y subterráneas"]
[4213,"F4213","Construcción de puentes y túneles"]
[422,"F422","Construcción de redes"]
[4221,"F4221","Construcción de redes para fluidos"]
[4222,"F4222","Construcción de redes eléctricas y de telecomunicaciones"]
[429,"F429","Construcción de otros proyectos de ingeniería civil"]
[4291,"F4291","Obras hidráulicas"]
[4299,"F4299","Construcción de otros proyectos de ingeniería civil n.c.o.p."]
[43,"F43","Actividades de construcción especializada"]
[431,"F431","Demolición y preparación de terrenos"]
[4311,"F4311","Demolición"]
[4312,"F4312","Preparación de terrenos"]
[4313,"F4313","Perforaciones y sondeos"]
[432,"F432","Instalaciones eléctricas, de fontanería y otras instalaciones en obras de construcción"]
[4321,"F4321","Instalaciones eléctricas"]
[4322,"F4322","Fontanería, instalaciones de sistemas de calefacción y aire acondicionado"]
[4329,"F4329","Otras instalaciones en obras de construcción"]
[433,"F433","Acabado de edificios"]
[4331,"F4331","Revocamiento"]
[4332,"F4332","Instalación de carpintería"]
[4333,"F4333","Revestimiento de suelos y paredes"]
[4334,"F4334","Pintura y acristalamiento"]
[4339,"F4339","Otro acabado de edificios"]
[439,"F439","Otras actividades de construcción especializada"]
[4391,"F4391","Construcción de cubiertas"]
[4399,"F4399","Otras actividades de construcción especializada n.c.o.p."]
["G","G","Comercio al por mayor y al por menor; reparación de vehículos de motor y motocicletas"]
[45,"G45","Venta y reparación de vehículos de motor y motocicletas"]
[451,"G451","Venta de vehículos de motor"]
[4511,"G4511","Venta de automóviles y vehículos de motor ligeros"]
[4519,"G4519","Venta de otros vehículos de motor"]
[452,"G452","Mantenimiento y reparación de vehículos de motor"]
[4520,"G4520","Mantenimiento y reparación de vehículos de motor"]
[453,"G453","Comercio de repuestos y accesorios de vehículos de motor"]
[4531,"G4531","Comercio al por mayor de repuestos y accesorios de vehículos de motor"]
[4532,"G4532","Comercio al por menor de repuestos y accesorios de vehículos de motor"]
[454,"G454","Venta, mantenimiento y reparación de motocicletas y de sus repuestos y accesorios"]
[4540,"G4540","Venta, mantenimiento y reparación de motocicletas y de sus repuestos y accesorios"]
[46,"G46","Comercio al por mayor e intermediarios del comercio, excepto de vehículos de motor y motocicletas"]
[461,"G461","Intermediarios del comercio"]
[4611,"G4611","Intermediarios del comercio de materias primas agrarias, animales vivos, materias primas textiles y productos semielaborados"]
[4612,"G4612","Intermediarios del comercio de combustibles, minerales, metales y productos químicos industriales"]
[4613,"G4613","Intermediarios del comercio de la madera y materiales de construcción"]
[4614,"G4614","Intermediarios del comercio de maquinaria, equipo industrial, embarcaciones y aeronaves"]
[4615,"G4615","Intermediarios del comercio de muebles, artículos para el hogar y ferretería"]
[4616,"G4616","Intermediarios del comercio de textiles, prendas de vestir, peletería, calzado y artículos de cuero"]
[4617,"G4617","Intermediarios del comercio de productos alimenticios, bebidas y tabaco"]
[4618,"G4618","Intermediarios del comercio especializados en la venta de otros productos específicos"]
[4619,"G4619","Intermediarios del comercio de productos diversos"]
[462,"G462","Comercio al por mayor de materias primas agrarias y de animales vivos"]
[4621,"G4621","Comercio al por mayor de cereales, tabaco en rama, simientes y alimentos para animales"]
[4622,"G4622","Comercio al por mayor de flores y plantas"]
[4623,"G4623","Comercio al por mayor de animales vivos"]
[4624,"G4624","Comercio al por mayor de cueros y pieles"]
[463,"G463","Comercio al por mayor de productos alimenticios, bebidas y tabaco"]
[4631,"G4631","Comercio al por mayor de frutas y hortalizas"]
[4632,"G4632","Comercio al por mayor de carne y productos cárnicos"]
[4633,"G4633","Comercio al por mayor de productos lácteos, huevos, aceites y grasas comestibles"]
[4634,"G4634","Comercio al por mayor de bebidas"]
[4635,"G4635","Comercio al por mayor de productos del tabaco"]
[4636,"G4636","Comercio al por mayor de azúcar, chocolate y confitería"]
[4637,"G4637","Comercio al por mayor de café, té, cacao y especias"]
[4638,"G4638","Comercio al por mayor de pescados y mariscos y otros productos alimenticios"]
[4639,"G4639","Comercio al por mayor, no especializado, de productos alimenticios, bebidas y tabaco"]
[464,"G464","Comercio al por mayor de artículos de uso doméstico"]
[4641,"G4641","Comercio al por mayor de textiles"]
[4642,"G4642","Comercio al por mayor de prendas de vestir y calzado"]
[4643,"G4643","Comercio al por mayor de aparatos electrodomésticos"]
[4644,"G4644","Comercio al por mayor de porcelana, cristalería y artículos de limpieza"]
[4645,"G4645","Comercio al por mayor de productos perfumería y cosmética"]
[4646,"G4646","Comercio al por mayor de productos farmacéuticos"]
[4647,"G4647","Comercio al por mayor de muebles, alfombras y aparatos de iluminación"]
[4648,"G4648","Comercio al por mayor de artículos de relojería y joyería"]
[4649,"G4649","Comercio al por mayor de otros artículos de uso doméstico"]
[465,"G465","Comercio al por mayor de equipos para las tecnologías de la información y las comunicaciones"]
[4651,"G4651","Comercio al por mayor de ordenadores, equipos periféricos y programas informáticos"]
[4652,"G4652","Comercio al por mayor de equipos electrónicos y de telecomunicaciones y sus componentes"]
[466,"G466","Comercio al por mayor de otra maquinaria, equipos y suministros"]
[4661,"G4661","Comercio al por mayor de maquinaria, equipos y suministros agrícolas"]
[4662,"G4662","Comercio al por mayor de máquinas herramienta"]
[4663,"G4663","Comercio al por mayor de maquinaria para la minería, la construcción y la ingeniería civil"]
[4664,"G4664","Comercio al por mayor de maquinaria para la industria textil y de máquinas de coser y tricotar"]
[4665,"G4665","Comercio al por mayor de muebles de oficina"]
[4666,"G4666","Comercio al por mayor de otra maquinaria y equipo de oficina"]
[4669,"G4669","Comercio al por mayor de otra maquinaria y equipo"]
[467,"G467","Otro comercio al por mayor especializado"]
[4671,"G4671","Comercio al por mayor de combustibles sólidos, líquidos y gaseosos, y productos similares"]
[4672,"G4672","Comercio al por mayor de metales y minerales metálicos"]
[4673,"G4673","Comercio al por mayor de madera, materiales de construcción y aparatos sanitarios"]
[4674,"G4674","Comercio al por mayor de ferretería, fontanería y calefacción"]
[4675,"G4675","Comercio al por mayor de productos químicos"]
[4676,"G4676","Comercio al por mayor de otros productos semielaborados"]
[4677,"G4677","Comercio al por mayor de chatarra y productos de desecho"]
[469,"G469","Comercio al por mayor no especializado"]
[4690,"G4690","Comercio al por mayor no especializado"]
[47,"G47","Comercio al por menor, excepto de vehículos de motor y motocicletas"]
[471,"G471","Comercio al por menor en establecimientos no especializados"]
[4711,"G4711","Comercio al por menor en establecimientos no especializados, con predominio en productos alimenticios, bebidas y tabaco"]
[4719,"G4719","Otro comercio al por menor en establecimientos no especializados"]
[472,"G472","Comercio al por menor de productos alimenticios, bebidas y tabaco en establecimientos especializados"]
[4721,"G4721","Comercio al por menor de frutas y hortalizas en establecimientos especializados"]
[4722,"G4722","Comercio al por menor de carne y productos cárnicos en establecimientos especializados"]
[4723,"G4723","Comercio al por menor de pescados y mariscos en establecimientos especializados"]
[4724,"G4724","Comercio al por menor de pan y productos de panadería, confitería y pastelería en establecimientos especializados"]
[4725,"G4725","Comercio al por menor de bebidas en establecimientos especializados"]
[4726,"G4726","Comercio al por menor de productos de tabaco en establecimientos especializados"]
[4729,"G4729","Otro comercio al por menor de productos alimenticios en establecimientos especializados"]
[473,"G473","Comercio al por menor de combustible para la automoción en establecimientos especializados"]
[4730,"G4730","Comercio al por menor de combustible para la automoción en establecimientos especializados"]
[474,"G474","Comercio al por menor de equipos para las tecnologías de la información y las comunicaciones en establecimientos especializados"]
[4741,"G4741","Comercio al por menor de ordenadores, equipos periféricos y programas informáticos en establecimientos especializados"]
[4742,"G4742","Comercio al por menor de equipos de telecomunicaciones en establecimientos especializados"]
[4743,"G4743","Comercio al por menor de equipos de audio y vídeo en establecimientos especializados"]
[475,"G475","Comercio al por menor de otros artículos de uso doméstico en establecimientos especializados"]
[4751,"G4751","Comercio al por menor de textiles en establecimientos especializados"]
[4752,"G4752","Comercio al por menor de ferretería, pintura y vidrio en establecimientos especializados"]
[4753,"G4753","Comercio al por menor de alfombras, moquetas y revestimientos de paredes y suelos en establecimientos especializados"]
[4754,"G4754","Comercio al por menor de aparatos electrodomésticos en establecimientos especializados"]
[4759,"G4759","Comercio al por menor de muebles, aparatos de iluminación y otros artículos de uso doméstico en establecimientos especializados"]
[476,"G476","Comercio al por menor de artículos culturales y recreativos en establecimientos especializados"]
[4761,"G4761","Comercio al por menor de libros en establecimientos especializados"]
[4762,"G4762","Comercio al por menor de periódicos y artículos de papelería en establecimientos especializados"]
[4763,"G4763","Comercio al por menor de grabaciones de música y vídeo en establecimientos especializados"]
[4764,"G4764","Comercio al por menor de artículos deportivos en establecimientos especializados"]
[4765,"G4765","Comercio al por menor de juegos y juguetes en establecimientos especializados"]
[477,"G477","Comercio al por menor de otros artículos en establecimientos especializados"]
[4771,"G4771","Comercio al por menor de prendas de vestir en establecimientos especializados"]
[4772,"G4772","Comercio al por menor de calzado y artículos de cuero en establecimientos especializados"]
[4773,"G4773","Comercio al por menor de productos farmacéuticos en establecimientos especializados"]
[4774,"G4774","Comercio al por menor de artículos médicos y ortopédicos en establecimientos especializados"]
[4775,"G4775","Comercio al por menor de productos cosméticos e higiénicos en establecimientos especializados"]
[4776,"G4776","Comercio al por menor de flores, plantas, semillas, fertilizantes, animales de compañía y alimentos para los mismos en establecimientos especializados"]
[4777,"G4777","Comercio al por menor de artículos de relojería y joyería en establecimientos especializados"]
[4778,"G4778","Otro comercio al por menor de artículos nuevos en establecimientos especializados"]
[4779,"G4779","Comercio al por menor de artículos de segunda mano en establecimientos"]
[478,"G478","Comercio al por menor en puestos de venta y en mercadillos"]
[4781,"G4781","Comercio al por menor de productos alimenticios, bebidas y tabaco en puestos de venta y en mercadillos"]
[4782,"G4782","Comercio al por menor de productos textiles, prendas de vestir y calzado en puestos de venta y en mercadillos"]
[4789,"G4789","Comercio al por menor de otros productos en puestos de venta y en mercadillos"]
[479,"G479","Comercio al por menor no realizado ni en establecimientos, ni en puestos de venta ni en mercadillos"]
[4791,"G4791","Comercio al por menor por correspondencia o Internet"]
[4799,"G4799","Otro comercio al por menor no realizado ni en establecimientos, ni en puestos de venta ni en mercadillos"]
["H","H","Transporte y almacenamiento"]
[49,"H49","Transporte terrestre y por tubería"]
[491,"H491","Transporte interurbano de pasajeros por ferrocarril"]
[4910,"H4910","Transporte interurbano de pasajeros por ferrocarril"]
[492,"H492","Transporte de mercancías por ferrocarril"]
[4920,"H4920","Transporte de mercancías por ferrocarril"]
[493,"H493","Otro transporte terrestre de pasajeros"]
[4931,"H4931","Transporte terrestre urbano y suburbano de pasajeros"]
[4932,"H4932","Transporte por taxi"]
[4939,"H4939","tipos de transporte terrestre de pasajeros n.c.o.p."]
[494,"H494","Transporte de mercancías por carretera y servicios de mudanza"]
[4941,"H4941","Transporte de mercancías por carretera"]
[4942,"H4942","Servicios de mudanza"]
[495,"H495","Transporte por tubería"]
[4950,"H4950","Transporte por tubería"]
[50,"H50","Transporte marítimo y por vías navegables interiores"]
[501,"H501","Transporte marítimo de pasajeros"]
[5010,"H5010","Transporte marítimo de pasajeros"]
[502,"H502","Transporte marítimo de mercancías"]
[5020,"H5020","Transporte marítimo de mercancías"]
[503,"H503","Transporte de pasajeros por vías navegables interiores"]
[5030,"H5030","Transporte de pasajeros por vías navegables interiores"]
[504,"H504","Transporte de mercancías por vías navegables interiores"]
[5040,"H5040","Transporte de mercancías por vías navegables interiores"]
[51,"H51","Transporte aéreo"]
[511,"H511","Transporte aéreo de pasajeros"]
[5110,"H5110","Transporte aéreo de pasajeros"]
[512,"H512","Transporte aéreo de mercancías y transporte espacial"]
[5121,"H5121","Transporte aéreo de mercancías"]
[5122,"H5122","Transporte espacial"]
[52,"H52","Almacenamiento y actividades anexas al transporte"]
[521,"H521","Depósito y almacenamiento"]
[5210,"H5210","Depósito y almacenamiento"]
[522,"H522","Actividades anexas al transporte"]
[5221,"H5221","Actividades anexas al transporte terrestre"]
[5222,"H5222","Actividades anexas al transporte marítimo y por vías navegables interiores"]
[5223,"H5223","Actividades anexas al transporte aéreo"]
[5224,"H5224","Manipulación de mercancías"]
[5229,"H5229","Otras actividades anexas al transporte"]
[53,"H53","Actividades postales y de correos"]
[531,"H531","Actividades postales sometidas a la obligación del servicio universal"]
[5310,"H5310","Actividades postales sometidas a la obligación del servicio universal"]
[532,"H532","Otras actividades postales y de correos"]
[5320,"H5320","Otras actividades postales y de correos"]
["I","I","Hostelería"]
[55,"I55","Servicios de alojamiento"]
[551,"I551","Hoteles y alojamientos similares"]
[5510,"I5510","Hoteles y alojamientos similares"]
[552,"I552","Alojamientos turísticos y otros alojamientos de corta estancia"]
[5520,"I5520","Alojamientos turísticos y otros alojamientos de corta estancia"]
[553,"I553","Campings y aparcamientos para caravanas"]
[5530,"I5530","Campings y aparcamientos para caravanas"]
[559,"I559","Otros alojamientos"]
[5590,"I5590","Otros alojamientos"]
[56,"I56","Servicios de comidas y bebidas"]
[561,"I561","Restaurantes y puestos de comidas"]
[5610,"I5610","Restaurantes y puestos de comidas"]
[562,"I562","Provisión de comidas preparadas para eventos y otros servicios de comidas"]
[5621,"I5621","Provisión de comidas preparadas para eventos"]
[5629,"I5629","Otros servicios de comidas"]
[563,"I563","Establecimientos de bebidas"]
[5630,"I5630","Establecimientos de bebidas"]
["J","J","Información y comunicaciones"]
[58,"J58","Edición"]
[581,"J581","Edición de libros, periódicos y otras actividades editoriales"]
[5811,"J5811","Edición de libros"]
[5812,"J5812","Edición de directorios y guías de direcciones postales"]
[5813,"J5813","Edición de periódicos"]
[5814,"J5814","Edición de revistas"]
[5819,"J5819","Otras actividades editoriales"]
[582,"J582","Edición de programas informáticos"]
[5821,"J5821","Edición de videojuegos"]
[5829,"J5829","Edición de otros programas informáticos"]
[59,"J59","Actividades cinematográficas, de vídeo y de programas de televisión, grabación de sonido y edición musical"]
[591,"J591","Actividades cinematográficas, de vídeo y de programas de televisión"]
[5912,"J5912","Actividades de postproducción cinematográfica, de vídeo y de programas de televisión"]
[5914,"J5914","Actividades de exhibición cinematográfica"]
[5915,"J5915","Actividades de producción cinematográfica y de vídeo"]
[5916,"J5916","Actividades de producciones de programas de televisión"]
[5917,"J5917","Actividades de distribución cinematográfica y de vídeo"]
[5918,"J5918","Actividades de distribución de programas de televisión"]
[592,"J592","Actividades de grabación de sonido y edición musical"]
[5920,"J5920","Actividades de grabación de sonido y edición musical"]
[60,"J60","Actividades de programación y emisión de radio y televisión"]
[601,"J601","Actividades de radiodifusión"]
[6010,"J6010","Actividades de radiodifusión"]
[602,"J602","Actividades de programación y emisión de televisión"]
[6020,"J6020","Actividades de programación y emisión de televisión"]
[61,"J61","Telecomunicaciones"]
[611,"J611","Telecomunicaciones por cable"]
[6110,"J6110","Telecomunicaciones por cable"]
[612,"J612","Telecomunicaciones inalámbricas"]
[6120,"J6120","Telecomunicaciones inalámbricas"]
[613,"J613","Telecomunicaciones por satélite"]
[6130,"J6130","Telecomunicaciones por satélite"]
[619,"J619","Otras actividades de telecomunicaciones"]
[6190,"J6190","Otras actividades de telecomunicaciones"]
[62,"J62","Programación, consultoría y otras actividades relacionadas con la informática"]
[620,"J620","Programación, consultoría y otras actividades relacionadas con la informática"]
[6201,"J6201","Actividades de programación informática"]
[6202,"J6202","Actividades de consultoría informática"]
[6203,"J6203","Gestión de recursos informáticos"]
[6209,"J6209","Otros servicios relacionados con las tecnologías de la información y la informática"]
[63,"J63","Servicios de información"]
[631,"J631","Proceso de datos, hosting y actividades relacionadas; portales web"]
[6311,"J6311","Proceso de datos, hosting y actividades relacionadas"]
[6312,"J6312","Portales web"]
[639,"J639","Otros servicios de información"]
[6391,"J6391","Actividades de las agencias de noticias"]
[6399,"J6399","Otros servicios de información n.c.o.p."]
["K","K","Actividades financieras y de seguros"]
[64,"K64","Servicios financieros, excepto seguros y fondos de pensiones"]
[641,"K641","Intermediación monetaria"]
[6411,"K6411","Banco central"]
[6419,"K6419","Otra intermediación monetaria"]
[642,"K642","Actividades de las sociedades holding"]
[6420,"K6420","Actividades de las sociedades holding"]
[643,"K643","Inversión colectiva, fondos y entidades financieras similares"]
[6430,"K6430","Inversión colectiva, fondos y entidades financieras similares"]
[649,"K649","Otros servicios financieros, excepto seguros y fondos de pensiones"]
[6491,"K6491","Arrendamiento financiero"]
[6492,"K6492","Otras actividades crediticias"]
[6499,"K6499","Otros servicios financieros, excepto seguros y fondos de pensiones n.c.o.p."]
[65,"K65","Seguros, reaseguros y fondos de pensiones, excepto Seguridad Social obligatoria"]
[651,"K651","Seguros"]
[6511,"K6511","Seguros de vida"]
[6512,"K6512","Seguros distintos de los seguros de vida"]
[652,"K652","Reaseguros"]
[6520,"K6520","Reaseguros"]
[653,"K653","Fondos de pensiones"]
[6530,"K6530","Fondos de pensiones"]
[66,"K66","Actividades auxiliares a los servicios financieros y a los seguros"]
[661,"K661","Actividades auxiliares a los servicios financieros, excepto seguros y fondos de pensiones"]
[6611,"K6611","Administración de mercados financieros"]
[6612,"K6612","Actividades de intermediación en operaciones con valores y otros activos"]
[6619,"K6619","Otras actividades auxiliares a los servicios financieros, excepto seguros y fondos de pensiones"]
[662,"K662","Actividades auxiliares a seguros y fondos de pensiones"]
[6621,"K6621","Evaluación de riesgos y daños"]
[6622,"K6622","Actividades de agentes y corredores de seguros"]
[6629,"K6629","Otras actividades auxiliares a seguros y fondos de pensiones"]
[663,"K663","Actividades de gestión de fondos"]
[6630,"K6630","Actividades de gestión de fondos"]
["L","L","Actividades inmobiliarias"]
[68,"L68","Actividades inmobiliarias"]
[681,"L681","Compraventa de bienes inmobiliarios por cuenta propia"]
[6810,"L6810","Compraventa de bienes inmobiliarios por cuenta propia"]
[682,"L682","Alquiler de bienes inmobiliarios por cuenta propia"]
[6820,"L6820","Alquiler de bienes inmobiliarios por cuenta propia"]
[683,"L683","Actividades inmobiliarias por cuenta de terceros"]
[6831,"L6831","Agentes de la propiedad inmobiliaria"]
[6832,"L6832","Gestión y administración de la propiedad inmobiliaria"]
["M","M","Actividades profesionales, científicas y técnicas"]
[69,"M69","Actividades jurídicas y de contabilidad"]
[691,"M691","Actividades jurídicas"]
[6910,"M6910","Actividades jurídicas"]
[692,"M692","Actividades de contabilidad, teneduría de libros, auditoría y asesoría fiscal"]
[6920,"M6920","Actividades de contabilidad, teneduría de libros, auditoría y asesoría fiscal"]
[70,"M70","Actividades de las sedes centrales; actividades de consultoría de gestión empresarial"]
[701,"M701","Actividades de las sedes centrales"]
[7010,"M7010","Actividades de las sedes centrales"]
[702,"M702","Actividades de consultoría de gestión empresarial"]
[7021,"M7021","Relaciones públicas y comunicación"]
[7022,"M7022","Otras actividades de consultoría de gestión empresarial"]
[71,"M71","Servicios técnicos de arquitectura e ingeniería; ensayos y análisis técnicos"]
[711,"M711","Servicios técnicos de arquitectura e ingeniería y otras actividades relacionadas con el asesoramiento técnico"]
[7111,"M7111","Servicios técnicos de arquitectura"]
[7112,"M7112","Servicios técnicos de ingeniería y otras actividades relacionadas con el asesoramiento técnico"]
[712,"M712","Ensayos y análisis técnicos"]
[7120,"M7120","Ensayos y análisis técnicos"]
[72,"M72","Investigación y desarrollo"]
[721,"M721","Investigación y desarrollo experimental en ciencias naturales y técnicas"]
[7211,"M7211","Investigación y desarrollo experimental en biotecnología"]
[7219,"M7219","Otra investigación y desarrollo experimental en ciencias naturales y técnicas"]
[722,"M722","Investigación y desarrollo experimental en ciencias sociales y humanidades"]
[7220,"M7220","Investigación y desarrollo experimental en ciencias sociales y humanidades"]
[73,"M73","Publicidad y estudios de mercado"]
[731,"M731","Publicidad"]
[7311,"M7311","Agencias de publicidad"]
[7312,"M7312","Servicios de representación de medios de comunicación"]
[732,"M732","Estudio de mercado y realización de encuestas de opinión pública"]
[7320,"M7320","Estudio de mercado y realización de encuestas de opinión pública"]
[74,"M74","Otras actividades profesionales, científicas y técnicas"]
[741,"M741","Actividades de diseño especializado"]
[7410,"M7410","Actividades de diseño especializado"]
[742,"M742","Actividades de fotografía"]
[7420,"M7420","Actividades de fotografía"]
[743,"M743","Actividades de traducción e interpretación"]
[7430,"M7430","Actividades de traducción e interpretación"]
[749,"M749","Otras actividades profesionales, científicas y técnicas n.c.o.p."]
[7490,"M7490","Otras actividades profesionales, científicas y técnicas n.c.o.p."]
[75,"M75","Actividades veterinarias"]
[750,"M750","Actividades veterinarias"]
[7500,"M7500","Actividades veterinarias"]
["N","N","Actividades administrativas y servicios auxliares"]
[77,"N77","Actividades de alquiler"]
[771,"N771","Alquiler de vehículos de motor"]
[7711,"N7711","Alquiler de automóviles y vehículos de motor ligeros"]
[7712,"N7712","Alquiler de camiones"]
[772,"N772","Alquiler de efectos personales y artículos de uso doméstico"]
[7721,"N7721","Alquiler de artículos de ocio y deportivos"]
[7722,"N7722","Alquiler de cintas de vídeo y discos"]
[7729,"N7729","Alquiler de otros efectos personales y artículos de uso doméstico"]
[773,"N773","Alquiler de otra maquinaria, equipos y bienes tangibles"]
[7731,"N7731","Alquiler de maquinaria y equipo de uso agrícola"]
[7732,"N7732","Alquiler de maquinaria y equipo para la construcción e ingeniería civil"]
[7733,"N7733","Alquiler de maquinaria y equipo de oficina, incluidos ordenadores"]
[7734,"N7734","Alquiler de medios de navegación"]
[7735,"N7735","Alquiler de medios de transporte aéreo"]
[7739,"N7739","Alquiler de otra maquinaria, equipos y bienes tangibles n.c.o.p."]
[774,"N774","Arrendamiento de la propiedad intelectual y productos similares, excepto trabajos protegidos por los derechos de autor"]
[7740,"N7740","Arrendamiento de la propiedad intelectual y productos similares, excepto trabajos protegidos por los derechos de autor"]
[78,"N78","Actividades relacionadas con el empleo"]
[781,"N781","Actividades de las agencias de colocación"]
[7810,"N7810","Actividades de las agencias de colocación"]
[782,"N782","Actividades de las empresas de trabajo temporal"]
[7820,"N7820","Actividades de las empresas de trabajo temporal"]
[783,"N783","Otra provisión de recursos humanos"]
[7830,"N7830","Otra provisión de recursos humanos"]
[79,"N79","Actividades de agencias de viajes, operadores turísticos, servicios de reservas y actividades relacionadas con los mismos"]
[791,"N791","Actividades de agencias de viajes y operadores turísticos"]
[7911,"N7911","Actividades de las agencias de viajes"]
[7912,"N7912","Actividades de los operadores turísticos"]
[799,"N799","Otros servicios de reservas y actividades relacionadas con los mismos"]
[7990,"N7990","Otros servicios de reservas y actividades relacionadas con los mismos"]
[80,"N80","Actividades de seguridad e investigación"]
[801,"N801","Actividades de seguridad privada"]
[8010,"N8010","Actividades de seguridad privada"]
[802,"N802","Servicios de sistemas de seguridad"]
[8020,"N8020","Servicios de sistemas de seguridad"]
[803,"N803","Actividades de investigación"]
[8030,"N8030","Actividades de investigación"]
[81,"N81","Servicios a edificios y actividades de jardinería"]
[811,"N811","Servicios integrales a edificios e instalaciones"]
[8110,"N8110","Servicios integrales a edificios e instalaciones"]
[812,"N812","Actividades de limpieza"]
[8121,"N8121","Limpieza general de edificios"]
[8122,"N8122","Otras actividades de limpieza industrial y de edificios"]
[8129,"N8129","Otras actividades de limpieza"]
[813,"N813","Actividades de jardinería"]
[8130,"N8130","Actividades de jardinería"]
[82,"N82","Actividades administrativas de oficina y otras actividades auxiliares a las empresas"]
[821,"N821","Actividades administrativas y auxiliares de oficina"]
[8211,"N8211","Servicios administrativos combinados"]
[8219,"N8219","Actividades de fotocopiado, preparación de documentos y otras actividades especializadas de oficina"]
[822,"N822","Actividades de los centros de llamadas"]
[8220,"N8220","Actividades de los centros de llamadas"]
[823,"N823","Organización de convenciones y ferias de muestras"]
[8230,"N8230","Organización de convenciones y ferias de muestras"]
[829,"N829","Actividades de apoyo a las empresas n.c.o.p."]
[8291,"N8291","Actividades de las agencias de cobros y de información comercial"]
[8292,"N8292","Actividades de envasado y empaquetado"]
[8299,"N8299","Otras actividades de apoyo a las empresas n.c.o.p."]
["O","O","Administración Pública y defensa; Seguridad Social obligatoria"]
[84,"O84","Administración Pública y defensa; Seguridad Social obligatoria"]
[841,"O841","Administración Pública y de la política económica y social"]
[8411,"O8411","Actividades generales de la Administración Pública"]
[8412,"O8412","Regulación de las actividades sanitarias, educativas y culturales y otros servicios sociales, excepto Seguridad Social"]
[8413,"O8413","Regulación de la actividad económica y contribución a su mayor eficiencia"]
[842,"O842","Prestación de servicios a la comunidad en general"]
[8421,"O8421","Asuntos exteriores"]
[8422,"O8422","Defensa"]
[8423,"O8423","Justicia"]
[8424,"O8424","Orden público y seguridad"]
[8425,"O8425","Protección civil"]
[843,"O843","Seguridad Social obligatoria"]
[8430,"O8430","Seguridad Social obligatoria"]
["P","P","Educación"]
[85,"P85","Educación"]
[851,"P851","Educación preprimaria"]
[8510,"P8510","Educación preprimaria"]
[852,"P852","Educación primaria"]
[8520,"P8520","Educación primaria"]
[853,"P853","Educación secundaria"]
[8531,"P8531","Educación secundaria general"]
[8532,"P8532","Educación secundaria técnica y profesional"]
[854,"P854","Educación postsecundaria"]
[8541,"P8541","Educación postsecundaria no terciaria"]
[8543,"P8543","Educación universitaria"]
[8544,"P8544","Educación terciaria no universitaria"]
[855,"P855","Otra educación"]
[8551,"P8551","Educación deportiva y recreativa"]
[8552,"P8552","Educación cultural"]
[8553,"P8553","Actividades de las escuelas de conducción y pilotaje"]
[8559,"P8559","Otra educación n.c.o.p."]
[856,"P856","Actividades auxiliares a la educación"]
[8560,"P8560","Actividades auxiliares a la educación"]
["Q","Q","Actividades sanitarias y de servicios sociales"]
[86,"Q86","Actividades sanitarias"]
[861,"Q861","Actividades hospitalarias"]
[8610,"Q8610","Actividades hospitalarias"]
[862,"Q862","Actividades médicas y odontológicas"]
[8621,"Q8621","Actividades de medicina general"]
[8622,"Q8622","Actividades de medicina especializada"]
[8623,"Q8623","Actividades odontológicas"]
[869,"Q869","Otras actividades sanitarias"]
[8690,"Q8690","Otras actividades sanitarias"]
[87,"Q87","Asistencia en establecimientos residenciales"]
[871,"Q871","Asistencia en establecimientos residenciales con cuidados sanitarios"]
[8710,"Q8710","Asistencia en establecimientos residenciales con cuidados sanitarios"]
[872,"Q872","Asistencia en establecimientos residenciales para personas con discapacidad intelectual, enfermedad mental y drogodependencia"]
[8720,"Q8720","Asistencia en establecimientos residenciales para personas con discapacidad intelectual, enfermedad mental y drogodependencia"]
[873,"Q873","Asistencia en establecimientos residenciales para personas mayores y con discapacidad física"]
[8731,"Q8731","Asistencia en establecimientos residenciales para personas mayores"]
[8732,"Q8732","Asistencia en establecimientos residenciales para personas con discapacidad física"]
[879,"Q879","Otras actividades de asistencia en establecimientos residenciales"]
[8790,"Q8790","Otras actividades de asistencia en establecimientos residenciales"]
[88,"Q88","Actividades de servicios sociales sin alojamiento"]
[881,"Q881","Actividades de servicios sociales sin alojamiento para personas mayores y con discapacidad"]
[8811,"Q8811","Actividades de servicios sociales sin alojamiento para personas mayores"]
[8812,"Q8812","Actividades de servicios sociales sin alojamiento para personas con discapacidad"]
[889,"Q889","Otros actividades de servicios sociales sin alojamiento"]
[8891,"Q8891","Actividades de cuidado diurno de niños"]
[8899,"Q8899","Otros actividades de servicios sociales sin alojamiento n.c.o.p."]
["R","R","Actividades artísticas, recreativas y de entrenimiento"]
[90,"R90","Actividades de creación, artísticas y espectáculos"]
[900,"R900","Actividades de creación, artísticas y espectáculos"]
[9001,"R9001","Artes escénicas"]
[9002,"R9002","Actividades auxiliares a las artes escénicas"]
[9003,"R9003","Creación artística y literaria"]
[9004,"R9004","Gestión de salas de espectáculos"]
[91,"R91","Actividades de bibliotecas, archivos, museos y otras actividades culturales"]
[910,"R910","Actividades de bibliotecas, archivos, museos y otras actividades culturales"]
[9102,"R9102","Actividades de museos"]
[9103,"R9103","Gestión de lugares y edificios históricos"]
[9104,"R9104","Actividades de los jardines botánicos, parques zoológicos y reservas naturales"]
[9105,"R9105","Actividades de bibliotecas"]
[9106,"R9106","Actividades de archivos"]
[92,"R92","Actividades de juegos de azar y apuestas"]
[920,"R920","Actividades de juegos de azar y apuestas"]
[9200,"R9200","Actividades de juegos de azar y apuestas"]
[93,"R93","Actividades deportivas, recreativas y de entretenimiento"]
[931,"R931","Actividades deportivas"]
[9311,"R9311","Gestión de instalaciones deportivas"]
[9312,"R9312","Actividades de los clubes deportivos"]
[9313,"R9313","Actividades de los gimnasios"]
[9319,"R9319","Otras actividades deportivas"]
[932,"R932","Actividades recreativas y de entretenimiento"]
[9321,"R9321","Actividades de los parques de atracciones y los parques temáticos"]
[9329,"R9329","Otras actividades recreativas y de entretenimiento"]
["S","S","Otros servicios"]
[94,"S94","Actividades asociativas"]
[941,"S941","Actividades de organizaciones empresariales, profesionales y patronales"]
[9411,"S9411","Actividades de organizaciones empresariales y patronales"]
[9412,"S9412","Actividades de organizaciones profesionales"]
[942,"S942","Actividades sindicales"]
[9420,"S9420","Actividades sindicales"]
[949,"S949","Otras actividades asociativas"]
[9491,"S9491","Actividades de organizaciones religiosas"]
[9492,"S9492","Actividades de organizaciones políticas"]
[9499,"S9499","Otras actividades asociativas n.c.o.p."]
[95,"S95","Reparación de ordenadores, efectos personales y artículos de uso doméstico"]
[951,"S951","Reparación de ordenadores y equipos de comunicación"]
[9511,"S9511","Reparación de ordenadores y equipos periféricos"]
[9512,"S9512","Reparación de equipos de comunicación"]
[952,"S952","Reparación de efectos personales y artículos de uso doméstico"]
[9521,"S9521","Reparación de aparatos electrónicos de audio y vídeo de uso doméstico"]
[9522,"S9522","Reparación de aparatos electrodomésticos y de equipos para el hogar y el jardín"]
[9523,"S9523","Reparación de calzado y artículos de cuero"]
[9524,"S9524","Reparación de muebles y artículos de menaje"]
[9525,"S9525","Reparación de relojes y joyería"]
[9529,"S9529","Reparación de otros efectos personales y artículos de uso doméstico"]
[96,"S96","Otros servicios personales"]
[960,"S960","Otros servicios personales"]
[9601,"S9601","Lavado y limpieza de prendas textiles y de piel"]
[9602,"S9602","Peluquería y otros tratamientos de belleza"]
[9603,"S9603","Pompas fúnebres y actividades relacionadas"]
[9604,"S9604","Actividades de mantenimiento físico"]
[9609,"S9609","Otras servicios personales n.c.o.p."]
["T","T","Actividades de los hogares como empleadores de personal doméstico; actividades de los hogares como productores de bienes y servicios para uso propio"]
[97,"T97","Actividades de los hogares como empleadores de personal doméstico"]
[970,"T970","Actividades de los hogares como empleadores de personal doméstico"]
[9700,"T9700","Actividades de los hogares como empleadores de personal doméstico"]
[98,"T98","Actividades de los hogares como productores de bienes y servicios para uso propio"]
[981,"T981","Actividades de los hogares como productores de bienes para uso propio"]
[9810,"T9810","Actividades de los hogares como productores de bienes para uso propio"]
[982,"T982","Actividades de los hogares como productores de servicios para uso propio"]
[9820,"T9820","Actividades de los hogares como productores de servicios para uso propio"]
["U","U","Actividades de organizaciones y organismos extraterritoriales"]
[99,"U99","Actividades de organizaciones y organismos extraterritoriales"]
[990,"U990","Actividades de organizaciones y organismos extraterritoriales"]
[9900,"U9900","Actividades de organizaciones y organismos extraterritoriales"]

{"sheet":"Auxiliar","index":2,"n_rows":1011,"n_cols":38,"rows_kept":1011,"hidden":true,"merged":[[0,17,0,28],[0,30,0,33],[1,27,1,28],[1,31,1,33],[2,31,2,33],[3,31,3,33],[4,21,7,22],[4,31,4,33],[5,31,5,33],[6,31,6,33],[7,31,7,33],[8,31,8,33],[9,31,9,33],[10,31,10,33],[11,31,11,33],[12,31,12,33],[13,31,13,33],[14,31,14,33],[15,31,15,33],[16,31,16,33],[17,31,17,33],[18,31,18,33],[19,31,19,33],[20,31,20,33],[21,31,21,33],[22,31,22,33],[23,21,23,26],[23,31,23,33],[24,31,24,33],[25,5,26,5],[25,6,26,6],[25,31,25,33],[26,7,26,9],[26,21,26,24],[26,31,26,33],[27,5,30,5],[27,31,27,33],[28,31,28,33],[29,31,29,33],[30,31,30,33],[31,5,33,5],[31,31,31,33],[32,31,32,33],[33,31,33,33],[34,7,34,10],[34,31,34,33],[35,5,38,5],[35,31,35,33],[36,31,36,33],[37,31,37,33],[38,31,38,33],[39,5,40,5],[39,6,40,6],[39,31,39,33],[40,7,40,9],[40,31,40,33],[41,5,44,5],[41,31,41,33],[42,31,42,33],[43,31,43,33],[44,31,44,33],[45,5,47,5],[48,7,48,9],[49,5,52,5],[49,12,55,12],[49,13,55,13],[53,5,55,5],[56,7,56,10],[57,5,60,5],[61,5,62,5],[61,6,62,6],[62,7,62,9],[72,7,72,9],[82,7,82,9],[83,5,83,9],[84,5,84,9],[85,5,85,9],[86,5,86,9]]}
["CP","Municipio","Población 2020","RETO DEMOGRÁFICO",null,"Situación expediente",{"$nulls":3},"DATOS","Distribución","Desmantelamiento","Categoría\nde empresa","Efectivos","Volumen de\nnegocio","Balance general",null,"CÁLCULO DEL PROGRAMA  DE INCENTIVOS",{"$nulls":12},"CHECK LIST",{"$nulls":4},"COD_CNAE2009","CODINTEGR","TITULO_CNAE2009"]
[6001,"Acedera",826,"RETO  < 5.000",null,"Anulado",{"$nulls":3},"SI","NO","NO","Grande",">250",">50.000.000 €",">43.000.000 €",null,"Lista Beneficiarios","Posible\npograma","¿Realiza actividad\neconómica?","Posible\npograma","¿En representación\nde otros?","Posible\npograma","Lista\nCNAE","Posible\nprograma","Tipo de instalación","Posible\nprograma","SUMA",{"$nulls":3},"Presupuesto l) <4%, 3.000€",{"$nulls":3},"A","A","Agricultura, ganadería, silvicultura y pesca"]
[6002,"Aceuchal",">5.000",">5.000",null,"C-Solicitud",{"$nulls":3},"NO","Suelo Radiante","Solar","Mediana",250,{"v":50000000,"d":"50,000,000 €"},{"v":43000000,"d":"43,000,000 €"},null,"Empresa de servicios energéticos",123,"SI",123,"SI",123456,"Dato no necesario",0,"Fotovoltaica sin almacenamiento",124,{"$f":"S3+U3+Y10+AA3","v":383},1,null,null,"Presupuesto l)+m)+n) <7%, 7.000€",{"$nulls":3},1,"A01","Agricultura, ganadería, caza y servicios relacionados con las mismas"]
[6003,"Ahillones",863,"RETO  < 5.000",null,"C-Subsanación",{"$nulls":4},"Radiadores","Biomasa","Pequeña",50,{"v":10000000,"d":"10,000,000 €"},{"v":10000000,"d":"10,000,000 €"},null,"Proveedor de servicios energéticos",123,"NO",456,"NO",23456,"A01 (excepto A17)",23,"Eólica sin almacenamiento",124,{"$f":"S9+U3+Y10+AA3","v":123717},1,null,null,"RESIDUOS",{"$nulls":3},11,"A011","Cultivos no perennes"]
[6004,"Alange",{"v":1856,"d":"1,856"},"RETO  < 5.000",null,"C-Completo",{"$nulls":4},"Sector",{"$nulls":6},"Empresa explotadora/arrendataria/concesionaria",123,null,null,"SOLO PARA:\n-Administración\n-Sector Industrial",null,"B",23,"Fotovoltaica con almacenamiento",124,{"$f":"S10+U3+W3+Y10+AA3","v":247172},1,null,null,"GASTOS NO SUBVENCIONABLES (Art. 7)",{"$nulls":3},111,"A0111","Cultivo de cereales (excepto arroz), leguminosas y semillas oleaginosas"]
[6005,"La Albuera",{"v":2035,"d":"2,035"},"RETO  < 5.000",null,"C-Prop. Prov. Concesión",{"$nulls":4},"Sector Residencial",{"$nulls":6},"Gestor de polígono industriales",123,{"$nulls":4},"C",23,"Eólica con almacenamiento",124,{"$f":"S24+U3+Y10+AA3","v":12605},1,null,null,"Documentación general",{"$nulls":3},112,"A0112","Cultivo de arroz"]
[6006,"Alburquerque",">5.000",">5.000",null,"C-Prop. Prov. Denegación",{"$nulls":4},"Administraciones públicas",{"$nulls":6},"Agrupación personas físicas",123,{"$nulls":4},"D",23,"Incorporación de almacenamiento",35,{"$f":"S22+U3+Y10+AA3","v":123718},1,null,null,"Escritura de apoderamiento.",{"$nulls":3},113,"A0113","Cultivo de hortalizas, raíces y tubérculos"]
[6007,"Alconchel",{"v":1659,"d":"1,659"},"RETO  < 5.000",null,"C-Prop. Def. Concesión",{"$nulls":4},"Tercer sector (ONG)",{"$nulls":6},"Agrupación de empresas",123,{"$nulls":4},"E",23,"Aerotermia aire-agua (Climatización y/o ACS)",6,{"$f":"S3+U3+Y4+AA3","v":393},2,null,null,"Memoria técnica.",{"$nulls":3},114,"A0114","Cultivo de caña de azúcar"]
[6008,"Alconera",743,"RETO  < 5.000",null,"C-Resol. Concesión",{"$nulls":4},"Otro sector (agropecuario, etc)",{"$nulls":6},"Otros tipos de empresas (personas jurídicas)",123457,6,{"$nulls":3},"F",23,"Solar Térmica",6,{"$f":"S9+U3+Y4+AA3","v":123727},2,null,null,"Presupuesto de la empresa.",{"$nulls":3},115,"A0115","Cultivo de tabaco"]
[6009,"Aljucén",250,"RETO  < 5.000",null,"C-Resol. Inadmisión",{"$nulls":11},"Municipio o Ayuntamiento",123456,{"$nulls":4},"G",13,"Biomasa caldera",6,{"$f":"S10+U3+W3+Y4+AA3","v":247182},2,null,null,"DR no afectación medioambiental.",{"$nulls":3},116,"A0116","Cultivo de plantas para fibras textiles"]
[6010,"Almendral",{"v":1239,"d":"1,239"},"RETO  < 5.000",null,"C-Resol. Denegación",{"$nulls":11},"Entidad local menor",123456,{"$nulls":4},"H",13,"Biomasa aparatos de calefacción local",6,{"$f":"S10+U3+W4+Y4+AA3","v":147182},2,null,null,"P>100KW - Plan estratégico.",{"$nulls":3},119,"A0119","Otros cultivos no perennes"]
[6011,"Almendralejo",">5.000",">5.000",null,"C-Resol. Desistimiento",{"$nulls":11},"Mancomunidad de municipios",123456,{"$nulls":4},"I",13,"Geotermica de circuito cerrado",6,{"$f":"S24+U3+Y4+AA3","v":12615},2,null,null,"P>100KW - Justificación no causar daño medioambiental.",{"$nulls":3},12,"A012","Cultivos perennes"]
[6012,"Arroyo de San Serván",{"v":4080,"d":"4,080"},"RETO  < 5.000",null,"C-Resol. Renuncia",{"$nulls":11},"Diputación provincial",123456,{"$nulls":4},"J",13,"Geotermica o Hidrotérmica de circuito abierto",6,{"$f":"S27+U3+Y4+AA3","v":23728},2,null,null,"P>100KW - Memoria resumen RESIDUOS DE CONSTRUCCIÓN LER.",{"$nulls":3},121,"A0121","Cultivo de la vid"]
[6013,"Atalaya",294,"RETO  < 5.000",null,"L- Solicitud",{"$nulls":11},"Otras entidades locales",123456,{"$nulls":4},"K",13,null,null,{"$f":"S22+U3+Y4+AA3","v":123728},2,null,null,"DR incl. SOLICITUD - Pago obligaciones por reintegro de subvenciones.",{"$nulls":3},122,"A0122","Cultivo de frutos tropicales y subtropicales"]
[6014,"Azuaga",">5.000",">5.000",null,"L- Subsanación",{"$nulls":11},"Organismo público o entidad de derecho público vinculados o dependientes administración Pública Local",123456,{"$nulls":4},"L",13,null,null,{"$f":"S27+U3+Y10+AA3","v":23718},2,null,null,"DR incl. SOLICITUD - No ha recibido ayuda anterior para la misma actuación.",{"$nulls":3},123,"A0123","Cultivo de cítricos"]
[6015,"Badajoz",">5.000",">5.000",null,"L- Acuerdo Inicio Recalif.",{"$nulls":11},"Organismo público o entidad de derecho público vinculados o dependientes administración Pública Autonómica",123456,{"$nulls":4},"M",13,null,null,{"$f":"S3+U3+Y4+AA7","v":304},3,null,null,"DR incl. SOLICITUD - Acreditación residencia fiscal.",{"$nulls":3},124,"A0124","Cultivo de frutos con hueso y pepitas"]
[6016,"Barcarrota",{"v":3483,"d":"3,483"},"RETO  < 5.000",null,"L- Acuerdo Inicio Incump.",{"$nulls":11},"Organismo público o entidad de derecho público vinculados o dependientes administración Pública Estatal",123456,{"$nulls":4},"N",13,null,null,{"$f":"S3+U3+Y10+AA7","v":294},3,null,null,"DR incl. SOLICITUD - Certificados estar al corriente Hacienda Autonómica y SS.",{"$nulls":3},125,"A0125","Cultivo de otros árboles y arbustos frutales y frutos secos"]
[6017,"Baterno",266,"RETO  < 5.000",null,"L- Reso. Incumplimiento",{"$nulls":11},"Entidad de derecho privado vinculada o dependiente de administración Pública Local",123456,{"$nulls":4},"O",13,null,null,{"$f":"S9+U3+Y4+AA7","v":123638},3,null,null,"DR incl. SOLICITUD - Certificados estar al corriente Hacienda estatal.",{"$nulls":3},126,"A0126","Cultivo de frutos oleaginosos"]
[6018,"Benquerencia de la Serena",812,"RETO  < 5.000",null,"L- Certificado Pago",{"$nulls":11},"Entidad de derecho privado vinculada o dependiente de administración Pública Autonómica",123456,{"$nulls":4},"P",13,null,null,{"$f":"S9+U3+Y10+AA7","v":123628},3,null,null,"Documentación técnica",{"$nulls":3},127,"A0127","Cultivo de plantas para bebidas"]
[6019,"Berlanga",{"v":2331,"d":"2,331"},"RETO  < 5.000",null,"Pagado Intervención",{"$nulls":11},"Entidad de derecho privado vinculada o dependiente de administración Pública Estatal",123456,{"$nulls":4},"Q",13,null,null,{"$f":"S10+U3+W3+Y4+AA7","v":247093},3,null,null,"DR sist. almacenamiento no conectado directamente a red.",{"$nulls":3},128,"A0128","Cultivo de especias, plantas aromáticas, medicinales y farmacéuticas"]
[6020,"Bienvenida",{"v":2081,"d":"2,081"},"RETO  < 5.000",{"$nulls":13},"Universidad de Extremadura",123456,{"$nulls":4},"R",13,null,null,{"$f":"S10+U3+W3+Y10+AA7","v":247083},3,null,null,"DR incl. SOLICITUD - Actividad CNAE.",{"$nulls":3},129,"A0129","Otros cultivos perennes"]
[6021,"Bodonal de la Sierra",{"v":1036,"d":"1,036"},"RETO  < 5.000",{"$nulls":13},"Profesional Autónomo",123458,6,{"$nulls":3},"S",13,null,null,{"$f":"S10+U3+W4+Y4+AA7","v":147093},3,null,null,"IVA SI RECUPERABLE (no incluir en coste subvencionable).",{"$nulls":3},13,"A013","Propagación de plantas"]
[6022,"Burguillos del Cerro",{"v":3066,"d":"3,066"},"RETO  < 5.000",{"$nulls":13},"Persona física",456,{"$nulls":8},{"$f":"S10+U3+W4+Y10+AA7","v":147083},3,null,null,"     Documentación para AUTÓNOMOS",{"$nulls":3},130,"A0130","Propagación de plantas"]
[6023,"Cabeza del Buey",{"v":4808,"d":"4,808"},"RETO  < 5.000",{"$nulls":13},"Comunidad de energías renovables",12345,null,null,"PROGRAMA QUE LE CORRESPONDE",{"$nulls":5},{"$f":"S24+U3+Y4+AA7","v":12526},3,null,null,"DR incl. SOLICITUD - Certificado alta en Censo Empresarios.",{"$nulls":3},14,"A014","Producción ganadera"]
[6024,"Cabeza la Vaca",{"v":1298,"d":"1,298"},"RETO  < 5.000",{"$nulls":13},"Comunidad ciudadana de energía",12345,null,null,"Tipo solicitante","¿Act. econ.?","¿Representación?","CNAE","Tipo actuación","Sumatorio",{"$f":"S24+U3+Y10+AA7","v":12516},3,null,null,"DR incl. SOLICITUD - Declaración ayudas solicitadas o recibidas.",{"$nulls":3},141,"A0141","Explotación de ganado bovino para la producción de leche"]
[6025,"Calamonte",">5.000",">5.000",null,"P1 - P2 - P3",1,2,3,4,5,6,7,8,9,10,null,"Comunidad de propietarios",456,null,null,{"$f":"VLOOKUP(DATOS!C14,Auxiliar!R3:S27,2,FALSE)","v":{"$error":"#N/A"}},{"$f":"IF(AND(V26=123456,DATOS!C16=\"SI\"),123,IF(OR(DATOS!C14=Auxiliar!R23,DATOS!C14=Auxiliar!R26),456,VLOOKUP(DATOS!C15,Auxiliar!T3:U4,2,FALSE)))","v":{"$error":"#N/A"}},{"$f":"IF(V26=123456,VLOOKUP(DATOS!C16,Auxiliar!V3:W4,2,FALSE),0)","v":{"$error":"#N/A"}},{"$f":"IF(DATOS!D14=\"Sector Institucional\",23,IF(OR(V26=456,W26=456),0,VLOOKUP(DATOS!C17,Auxiliar!X3:Y22,2,FALSE)))","v":{"$error":"#N/A"}},{"$f":"VLOOKUP(DATOS!C13,Auxiliar!Z3:AA13,2,FALSE)","v":{"$error":"#N/A"}},{"$f":"SUM(V26:Z26)","v":{"$error":"#N/A"}},{"$f":"S22+U3+Y10+AA7","v":123629},3,null,null,"     Documentación para EMPRESAS",{"$nulls":3},142,"A0142","Explotación de otro ganado bovino y búfalos"]
[6026,"Calera de León",930,"RETO  < 5.000",{"$nulls":3},"TABLA I",null,null,"Cuf","Csumg","TABLA II\nCsumcg","%grande","%mediana","%pequeña",null,"Entidades u organizaciones públicas o privadas, sin ánimo de lucro",23458,6,null,"PROGRAMA DE INCENTIVOS",{"$nulls":3},{"$f":"_xlfn.IFNA(VLOOKUP(AA26,AB3:AC47,2,FALSE),\"No se cumplen las condiciones\")","v":"No se cumplen las condiciones"},null,{"$f":"S22+U3+Y4+AA7","v":123639},3,null,null,"DR incl. SOLICITUD - Certificado Agencia Estatal altas/bajas del IAE.",{"$nulls":3},143,"A0143","Explotación de caballos y otros equinos"]
[6027,"Calzadilla de los Barros",736,"RETO  < 5.000",null,"FOTOVOLTAICA","F1",{"v":1000,"d":"1,000"},"< P ≤",{"v":5000,"d":"5,000"},{"v":120,"d":"120 €"},{"v":460,"d":"460 €"},{"v":210,"d":"210 €"},{"v":0.15,"d":"15%"},{"v":0.25,"d":"25%"},{"v":0.35,"d":"35%"},{"$nulls":11},{"$f":"S9+U4+Y3+AA3","v":124037},4,null,null,"DR incl. SOLICITUD - Escrituras de constitución.",{"$nulls":3},144,"A0144","Explotación de camellos y otros camélidos"]
[6028,"Campanario",{"v":4854,"d":"4,854"},"RETO  < 5.000",null,null,"F2",100,"< P ≤",{"v":1000,"d":"1,000"},{"v":0,"d":"0 €"},{"v":749,"d":"749 €"},{"v":450,"d":"450 €"},{"v":0.15,"d":"15%"},{"v":0.25,"d":"25%"},{"v":0.35,"d":"35%"},{"$nulls":11},{"$f":"S10+U4+W3+Y3+AA3","v":247492},4,null,null,"DR incl. SOLICITUD - Tipo de empresa (grande, mediana o pequeña).",{"$nulls":3},145,"A0145","Explotación de ganado ovino y caprino"]
[6029,"Campillo de Llerena",{"v":1343,"d":"1,343"},"RETO  < 5.000",null,null,"F3",10,"< P ≤",100,{"v":0,"d":"0 €"},{"v":910,"d":"910 €"},{"v":660,"d":"660 €"},{"v":0.15,"d":"15%"},{"v":0.25,"d":"25%"},{"v":0.35,"d":"35%"},{"$nulls":11},{"$f":"S10+U4+W4+Y3+AA3","v":147492},4,null,null,"Doc. colaboración en agrupación de empresas.",{"$nulls":3},146,"A0146","Explotación de ganado porcino"]
[6030,"Capilla",172,"RETO  < 5.000",null,null,"F4",null,"    P ≤",10,{"v":0,"d":"0 €"},{"v":1188,"d":"1,188 €"},{"v":660,"d":"660 €"},{"v":0.15,"d":"15%"},{"v":0.25,"d":"25%"},{"v":0.45,"d":"45%"},{"$nulls":11},{"$f":"S22+U4+Y3+AA3","v":124038},4,null,null,"     Documentación para ADMINISTRACIÓN",{"$nulls":3},147,"A0147","Avicultura"]
[6031,"Carmonita",524,"RETO  < 5.000",null,"EÓLICA","F5",500,"< P ≤",5000,{"v":258,"d":"258 €"},{"v":1070,"d":"1,070 €"},{"v":0,"d":"0 €"},{"v":0.2,"d":"20%"},{"v":0.3,"d":"30%"},{"v":0.4,"d":"40%"},null,"Empresa de servicios energéticos","Empresa",{"$nulls":8},{"$f":"S23+U4+Y3+AA3","v":1036},4,null,null,"Certificación por la que se apruebe la participación en el PI correspondiente.",{"$nulls":3},149,"A0149","Otras explotaciones de ganado"]
[6032,"El Carrascalejo",85,"RETO  < 5.000",null,null,"F6",20,"< P ≤",500,{"v":129,"d":"129 €"},{"v":3072,"d":"3,072 €"},{"v":0,"d":"0 €"},{"v":0.3,"d":"30%"},{"v":0.4,"d":"40%"},{"v":0.5,"d":"50%"},null,"Proveedor de servicios energéticos","Empresa",{"$nulls":8},{"$f":"S24+U4+Y3+AA3","v":12925},4,null,null,"     Documentación para SECTOR PÚBLICO INSTITUCIONAL",{"$nulls":3},15,"A015","Producción agrícola combinada con la producción ganadera"]
[6033,"Casas de Don Pedro",{"v":1447,"d":"1,447"},"RETO  < 5.000",null,null,"F7",null,"    P ≤",20,{"v":86,"d":"86 €"},{"v":4723,"d":"4,723 €"},{"v":0,"d":"0 €"},{"v":0.3,"d":"30%"},{"v":0.4,"d":"40%"},{"v":0.5,"d":"50%"},null,"Empresa explotadora/arrendataria/concesionaria","Empresa",{"$nulls":8},{"$f":"S27+U4+Y3+AA3","v":24038},4,null,null,"Declaración responsable adscripción a la Administración correspondiente.",{"$nulls":3},150,"A0150","Producción agrícola combinada con la producción ganadera"]
[6034,"Casas de Reina",199,"RETO  < 5.000",{"$nulls":3},"TABLA III",{"$nulls":3},"Csuma",null,"%grande","%mediana","%pequeña",null,"Gestor de polígono industriales","Empresa",{"$nulls":8},{"$f":"S9+U4+Y3+AA7","v":123948},5,null,null,"     Documentación para COMUNIDAD DE PROPIETARIOS",{"$nulls":3},16,"A016","Actividades de apoyo a la agricultura, a la ganadería y de preparación posterior a la cosecha"]
[6035,"Castilblanco",915,"RETO  < 5.000",null,"ALMACENAMIENTO","F8",{"v":5000,"d":"5,000"},"< P",null,null,{"v":200,"d":"200 €"},null,{"v":0.45,"d":"45%"},{"v":0.55,"d":"55%"},{"v":0.65,"d":"65%"},null,"Agrupación personas físicas","Empresa",{"$nulls":8},{"$f":"S10+U4+W3+Y3+AA7","v":247403},5,null,null,"Escritura de constitución.",{"$nulls":3},161,"A0161","Actividades de apoyo a la agricultura"]
[6036,"Castuera",">5.000",">5.000",null,null,"F9",100,"< P ≤",{"v":5000,"d":"5,000"},null,{"v":350,"d":"350 €"},null,{"v":0.45,"d":"45%"},{"v":0.55,"d":"55%"},{"v":0.65,"d":"65%"},null,"Agrupación de empresas","Empresa",{"$nulls":8},{"$f":"S10+U4+W4+Y3+AA7","v":147403},5,null,null,"Acta nombramiento del presidente.",{"$nulls":3},162,"A0162","Actividades de apoyo a la ganadería"]
[6037,"La Codosera",{"v":2061,"d":"2,061"},"RETO  < 5.000",null,null,"F10",10,"< P ≤",100,null,{"v":500,"d":"500 €"},null,{"v":0.45,"d":"45%"},{"v":0.55,"d":"55%"},{"v":0.65,"d":"65%"},null,"Otros tipos de empresas (personas jurídicas)","Empresa",{"$nulls":8},{"$f":"S22+U4+Y3+AA7","v":123949},5,null,null,"Certificado del acuerdo de la junta de la Comunidad de propietarios.",{"$nulls":3},163,"A0163","Actividades de preparación posterior a la cosecha"]
[6038,"Cordobilla de Lácara",897,"RETO  < 5.000",null,null,"F11",null,"    P ≤",10,null,{"v":700,"d":"700 €"},null,{"v":0.45,"d":"45%"},{"v":0.55,"d":"55%"},{"v":0.65,"d":"65%"},null,"Municipio o Ayuntamiento","Administración",{"$nulls":8},{"$f":"S23+U4+Y3+AA7","v":947},5,null,null,"ANEXO III - Declaración comuneros de poder ser beneficiario.",{"$nulls":3},164,"A0164","Tratamiento de semillas para reproducción"]
[6039,"La Coronada",{"v":2165,"d":"2,165"},"RETO  < 5.000",null,"P4 - P5",1,2,3,4,5,6,7,8,{"$nulls":3},"Entidad local menor","Administración",{"$nulls":8},{"$f":"S24+U4+Y3+AA7","v":12836},5,null,null,"     Documentación para COMUNIDAD DE ENERGÍAS RENOVABLES",{"$nulls":3},17,"A017","Caza, captura de animales y servicios relacionados con las mismas"]
[6040,"Corte de Peleas",{"v":1191,"d":"1,191"},"RETO  < 5.000",{"$nulls":3},"TABLA I: Residencial",null,null,"M.generación IND","M.generación COLEC.","M.complement.","M.adicional",{"$nulls":3},"Mancomunidad de municipios","Administración",{"$nulls":8},{"$f":"S27+U4+Y3+AA7","v":23949},5,null,null,"NIF",{"$nulls":3},170,"A0170","Caza, captura de animales y servicios relacionados con las mismas"]
[6041,"Cristina",551,"RETO  < 5.000",null,"FOTOVOLTAICA","F1",{"v":1000,"d":"1,000"},"< P ≤",{"v":5000,"d":"5,000"},{"v":300,"d":"300 €"},{"v":355,"d":"355 €"},{"v":50,"d":"50 €"},{"v":30,"d":"30 €"},{"$nulls":3},"Diputación provincial","Administración",{"$nulls":8},{"$f":"S9+U4+Y3+AA8","v":123919},6,null,null,"Composición, estructura y régimen de funcionamiento",{"$nulls":3},2,"A02","Silvicultura y explotación forestal"]
[6042,"Cheles",{"v":1173,"d":"1,173"},"RETO  < 5.000",null,null,"F2",100,"< P ≤",{"v":1000,"d":"1,000"},{"v":350,"d":"350 €"},{"v":420,"d":"420 €"},{"v":110,"d":"110 €"},{"v":35,"d":"35 €"},{"$nulls":3},"Otras entidades locales","Administración",{"$nulls":8},{"$f":"S10+U4+W3+Y3+AA8","v":247374},6,null,null,"ANEXO IV - DR cumple requisitos de Comunidad EERR.",{"$nulls":3},21,"A021","Silvicultura y otras actividades forestales"]
[6043,"Don Álvaro",775,"RETO  < 5.000",null,null,"F3",10,"< P ≤",100,{"v":450,"d":"450 €"},{"v":535,"d":"535 €"},{"v":160,"d":"160 €"},{"v":40,"d":"40 €"},{"$nulls":3},"Organismo público o entidad de derecho público vinculados o dependientes administración Pública Local","Sector Institucional",{"$nulls":8},{"$f":"S10+U4+W4+Y3+AA8","v":147374},6,null,null,"Certificado de empadronamiento + Mapa sit. instalación <25km",{"$nulls":3},210,"A0210","Silvicultura y otras actividades forestales"]
[6044,"Don Benito",">5.000",">5.000",null,null,"F4",null,"    P ≤",10,{"v":600,"d":"600 €"},{"v":710,"d":"710 €"},{"v":160,"d":"160 €"},{"v":55,"d":"55 €"},{"$nulls":3},"Organismo público o entidad de derecho público vinculados o dependientes administración Pública Autonómica","Sector Institucional",{"$nulls":8},{"$f":"S22+U4+Y3+AA8","v":123920},6,null,null,"Copia de los estatutos",{"$nulls":3},22,"A022","Explotación de la madera"]
[6045,"Entrín Bajo",552,"RETO  < 5.000",null,"EÓLICA","F5",500,"< P ≤",5000,{"v":650,"d":"650 €"},{"v":775,"d":"775 €"},{"v":0,"d":"0 €"},{"v":65,"d":"65 €"},{"$nulls":3},"Organismo público o entidad de derecho público vinculados o dependientes administración Pública Estatal","Sector Institucional",{"$nulls":8},{"$f":"S23+U4+Y3+AA8","v":918},6,{"$nulls":6},220,"A0220","Explotación de la madera"]
[6046,"Esparragalejo",{"v":1460,"d":"1,460"},"RETO  < 5.000",null,null,"F6",20,"< P ≤",500,{"v":1950,"d":"1,950 €"},{"v":2250,"d":"2,250 €"},{"v":0,"d":"0 €"},{"v":150,"d":"150 €"},{"$nulls":3},"Entidad de derecho privado vinculada o dependiente de administración Pública Local","Sector Institucional",{"$nulls":8},{"$f":"S27+U4+Y3+AA8","v":23920},6,{"$nulls":6},23,"A023","Recolección de productos silvestres, excepto madera"]
[6047,"Esparragosa de la Serena",998,"RETO  < 5.000",null,null,"F7",null,"    P ≤",20,{"v":2900,"d":"2,900 €"},{"v":3350,"d":"3,350 €"},{"v":0,"d":"0 €"},{"v":225,"d":"225 €"},{"$nulls":3},"Entidad de derecho privado vinculada o dependiente de administración Pública Autonómica","Sector Institucional",{"$nulls":16},230,"A0230","Recolección de productos silvestres, excepto madera"]
[6048,"Esparragosa de Lares",906,"RETO  < 5.000",{"$nulls":3},"TABLA II: Pública y 3º sector",null,null,"M.generación IND","M.generación COLEC.","M.complement.","M.adicional",{"$nulls":3},"Entidad de derecho privado vinculada o dependiente de administración Pública Estatal","Sector Institucional",{"$nulls":16},24,"A024","Servicios de apoyo a la silvicultura"]
[6049,"Feria",{"v":1115,"d":"1,115"},"RETO  < 5.000",null,"FOTOVOLTAICA","F1",{"v":1000,"d":"1,000"},"< P ≤",{"v":5000,"d":"5,000"},{"v":500,"d":"500 €"},{"v":555,"d":"555 €"},"Idem que Tabla I","Idem que Tabla I",{"$nulls":3},"Universidad de Extremadura","Sector Institucional",{"$nulls":16},240,"A0240","Servicios de apoyo a la silvicultura"]
[6050,"Fregenal de la Sierra",{"v":4836,"d":"4,836"},"RETO  < 5.000",null,null,"F2",100,"< P ≤",{"v":1000,"d":"1,000"},{"v":650,"d":"650 €"},{"v":720,"d":"720 €"},{"$nulls":5},"Profesional Autónomo","Resto",{"$nulls":16},3,"A03","Pesca y acuicultura"]
[6051,"Fuenlabrada de los Montes",{"v":1811,"d":"1,811"},"RETO  < 5.000",null,null,"F3",10,"< P ≤",100,{"v":750,"d":"750 €"},{"v":835,"d":"835 €"},{"$nulls":5},"Persona física","Resto",{"$nulls":16},31,"A031","Pesca"]
[6052,"Fuente de Cantos",{"v":4687,"d":"4,687"},"RETO  < 5.000",null,null,"F4",null,"    P ≤",10,{"v":1000,"d":"1,000 €"},{"v":1110,"d":"1,110 €"},{"$nulls":5},"Comunidad de energías renovables","Resto",{"$nulls":16},311,"A0311","Pesca marina"]
[6053,"Fuente del Arco",681,"RETO  < 5.000",null,"EÓLICA","F5",500,"< P ≤",5000,{"v":1150,"d":"1,150 €"},{"v":1275,"d":"1,275 €"},{"$nulls":5},"Comunidad ciudadana de energía","Resto",{"$nulls":16},312,"A0312","Pesca en agua dulce"]
[6054,"Fuente del Maestre",">5.000",">5.000",null,null,"F6",20,"< P ≤",500,{"v":2700,"d":"2,700 €"},{"v":3000,"d":"3,000 €"},{"$nulls":5},"Comunidad de propietarios","Resto",{"$nulls":16},32,"A032","Acuicultura"]
[6055,"Fuentes de León",{"v":2248,"d":"2,248"},"RETO  < 5.000",null,null,"F7",null,"    P ≤",20,{"v":4100,"d":"4,100 €"},{"v":4550,"d":"4,550 €"},{"$nulls":5},"Entidades u organizaciones públicas o privadas, sin ánimo de lucro","Resto",{"$nulls":16},321,"A0321","Acuicultura marina"]
[6056,"Garbayuela",509,"RETO  < 5.000",{"$nulls":3},"TABLA III",{"$nulls":3},"M.almacenamiento",null,"M.adicional",{"$nulls":13},"COMPR.",{"$nulls":7},322,"A0322","Acuicultura en agua dulce"]
[6057,"Garlitos",565,"RETO  < 5.000",null,"ALMACENAMIENTO","F8",{"v":5000,"d":"5,000"},"< P",null,null,{"v":140,"d":"140 €"},null,{"v":15,"d":"15 €"},{"$nulls":13},{"$f":"COUNTIF($AB$3:$AB$47,AB3)","v":1},{"$nulls":7},"B","B","Industrias extractivas"]
[6058,"La Garrovilla",{"v":2357,"d":"2,357"},"RETO  < 5.000",null,null,"F9",100,"< P ≤",{"v":5000,"d":"5,000"},null,{"v":245,"d":"245 €"},null,{"v":15,"d":"15 €"},{"$nulls":13},1,{"$nulls":7},5,"B05","Extracción de antracita, hulla y lignito"]
[6059,"Granja de Torrehermosa",{"v":1977,"d":"1,977"},"RETO  < 5.000",null,null,"F10",10,"< P ≤",100,null,{"v":350,"d":"350 €"},null,{"v":15,"d":"15 €"},{"$nulls":13},1,{"$nulls":7},51,"B051","Extracción de antracita y hulla"]
[6060,"Guareña",">5.000",">5.000",null,null,"F11",null,"P ≤",10,null,{"v":490,"d":"490 €"},null,{"v":15,"d":"15 €"},{"$nulls":13},1,{"$nulls":7},510,"B0510","Extracción de antracita y hulla"]
[6061,"La Haba",{"v":1219,"d":"1,219"},"RETO  < 5.000",null,"P6",1,2,3,4,5,6,{"$nulls":15},1,{"$nulls":7},52,"B052","Extracción de lignito"]
[6062,"Helechosa de los Montes",626,"RETO  < 5.000",{"$nulls":3},"TABLA I: Residencial",null,null,"Módulo","Máximo",{"$nulls":15},1,{"$nulls":7},520,"B0520","Extracción de lignito"]
[6063,"Herrera del Duque",{"v":3489,"d":"3,489"},"RETO  < 5.000",null,"Aerotérmica","F1",{"$nulls":3},{"v":500,"d":"500 €"},{"v":3000,"d":"3,000 €"},{"$nulls":15},1,{"$nulls":7},6,"B06","Extracción de crudo de petróleo y gas natural"]
[6064,"Higuera de la Serena",936,"RETO  < 5.000",null,"Solar Térmica (P > 400 kW)","F2",400,"< P",null,{"v":450,"d":"450 €"},{"v":550,"d":"550 €"},{"$nulls":15},1,{"$nulls":7},61,"B061","Extracción de crudo de petróleo"]
[6065,"Higuera de Llerena",337,"RETO  < 5.000",null,"Solar Térmica (100 kW < P ≤ 400 kW)","F3",100,"< P ≤",400,{"v":600,"d":"600 €"},{"v":780,"d":"780 €"},{"$nulls":15},1,{"$nulls":7},610,"B0610","Extracción de crudo de petróleo"]
[6066,"Higuera de Vargas",{"v":1925,"d":"1,925"},"RETO  < 5.000",null,"Solar Térmica (50 kW < P ≤ 100 kW)","F4",50,"< P ≤",100,{"v":750,"d":"750 €"},{"v":900,"d":"900 €"},{"$nulls":15},1,{"$nulls":7},62,"B062","Extracción de gas natural"]
[6067,"Higuera la Real",{"v":2219,"d":"2,219"},"RETO  < 5.000",null,"Solar Térmica (P ≤ 50 kW)","F5",null,"P ≤",50,{"v":900,"d":"900 €"},{"v":1800,"d":"1,800 €"},{"$nulls":15},1,{"$nulls":7},620,"B0620","Extracción de gas natural"]
[6068,"Hinojosa del Valle",475,"RETO  < 5.000",null,"Biomasa calderas","F6",{"$nulls":3},{"v":250,"d":"250 €"},{"v":2500,"d":"2,500 €"},{"$nulls":15},1,{"$nulls":7},7,"B07","Extracción de minerales metálicos"]
[6069,"Hornachos",{"v":3537,"d":"3,537"},"RETO  < 5.000",null,"Biomasa estufas","F7",{"$nulls":3},{"v":250,"d":"250 €"},{"v":3000,"d":"3,000 €"},{"$nulls":15},{"$f":"COUNTIF($AB$3:$AB$47,AB16)","v":1},{"$nulls":7},71,"B071","Extracción de minerales de hierro"]
[6070,"Jerez de los Caballeros",">5.000",">5.000",null,"Geotérmicas circuito cerrado","F8",{"$nulls":3},{"v":2250,"d":"2,250 €"},{"v":13500,"d":"13,500 €"},{"$nulls":15},1,{"$nulls":7},710,"B0710","Extracción de minerales de hierro"]
[6071,"La Lapa",279,"RETO  < 5.000",null,"Geotermica o Hidrotérmica de circuito abierto","F9",{"$nulls":3},{"v":1600,"d":"1,600 €"},{"v":9000,"d":"9,000 €"},{"$nulls":15},1,{"$nulls":7},72,"B072","Extracción de minerales metálicos no férreos"]
[6072,"Lobón",{"v":2756,"d":"2,756"},"RETO  < 5.000",{"$nulls":3},"TABLA II: Pública y 3º sector",null,null,"Módulo","Máximo",{"$nulls":15},1,{"$nulls":7},721,"B0721","Extracción de minerales de uranio y torio"]
[6073,"Llera",829,"RETO  < 5.000",null,"Aerotérmica","F1",{"$nulls":3},{"v":650,"d":"650 €"},{"v":3900,"d":"3,900 €"},{"$nulls":15},1,{"$nulls":7},729,"B0729","Extracción de otros minerales metálicos no férreos"]
[6074,"Llerena",">5.000",">5.000",null,"Solar Térmica (P > 400 kW)","F2",400,"< P",null,{"v":650,"d":"650 €"},{"v":820,"d":"820 €"},{"$nulls":15},1,{"$nulls":7},8,"B08","Otras industrias extractivas"]
[6075,"Magacela",523,"RETO  < 5.000",null,"Solar Térmica (100 kW < P ≤ 400 kW)","F3",100,"< P ≤",400,{"v":750,"d":"750 €"},{"v":950,"d":"950 €"},{"$nulls":15},1,{"$nulls":7},81,"B081","Extracción de piedra, arena y arcilla"]
[6076,"Maguilla",957,"RETO  < 5.000",null,"Solar Térmica (50 kW < P ≤ 100 kW)","F4",50,"< P ≤",100,{"v":850,"d":"850 €"},{"v":1050,"d":"1,050 €"},{"$nulls":15},1,{"$nulls":7},811,"B0811","Extracción de piedra ornamental y para la construcción, piedra caliza, yeso, creta y pizarra"]
[6077,"Malcocinado",356,"RETO  < 5.000",null,"Solar Térmica (P ≤ 50 kW)","F5",null,"P ≤",50,{"v":950,"d":"950 €"},{"v":1850,"d":"1,850 €"},{"$nulls":15},1,{"$nulls":7},812,"B0812","Extracción de gravas y arenas; extracción de arcilla y caolín"]
[6078,"Malpartida de la Serena",543,"RETO  < 5.000",null,"Biomasa calderas","F6",{"$nulls":3},{"v":350,"d":"350 €"},{"v":3500,"d":"3,500 €"},{"$nulls":15},1,{"$nulls":7},89,"B089","Industrias extractivas n.c.o.p."]
[6079,"Manchita",764,"RETO  < 5.000",null,"Biomasa estufas","F7",{"$nulls":3},{"v":350,"d":"350 €"},{"v":4200,"d":"4,200 €"},{"$nulls":15},1,{"$nulls":7},891,"B0891","Extracción de minerales para productos químicos y fertilizantes"]
[6080,"Medellín",{"v":2275,"d":"2,275"},"RETO  < 5.000",null,"Geotérmicas circuito cerrado","F8",{"$nulls":3},{"v":2250,"d":"2,250 €"},{"v":13500,"d":"13,500 €"},{"$nulls":15},1,{"$nulls":7},892,"B0892","Extracción de turba"]
[6081,"Medina de las Torres",{"v":1176,"d":"1,176"},"RETO  < 5.000",null,"Geotermica o Hidrotérmica de circuito abierto","F9",{"$nulls":3},{"v":1700,"d":"1,700 €"},{"v":9550,"d":"9,550 €"},{"$nulls":15},1,{"$nulls":7},893,"B0893","Extracción de sal"]
[6082,"Mengabril",498,"RETO  < 5.000",{"$nulls":3},"TABLA III",null,null,"Mcomplementario","Máximo",{"$nulls":15},1,{"$nulls":7},899,"B0899","Otras industrias extractivas n.c.o.p."]
[6083,"Mérida",">5.000",">5.000",null,"Nueva distribución interior de climatización, circuitos hidráulicos para la incorporación de suelo radiante para proyectos de aerotermia, geotermia, hidrotermia o solar térmica, siempre que estos sistemas funcionen al 100 % con energía renovable.",{"$nulls":4},{"v":600,"d":"600 €"},{"v":3600,"d":"3,600 €"},{"$nulls":15},1,{"$nulls":7},9,"B09","Actividades de apoyo a las industrias extractivas"]
[6084,"Mirandilla",{"v":1262,"d":"1,262"},"RETO  < 5.000",null,"Nueva distribución interior de climatización, circuitos hidráulicos para la incorporación de radiadores de baja temperatura o ventiloconvectores para proyectos de aerotermia, geotermia, hidrotermia o solar térmica, siempre que estos sistemas funcionen al 100% con energía renovable.",{"$nulls":4},{"v":550,"d":"550 €"},{"v":1830,"d":"1,830 €"},{"$nulls":15},1,{"$nulls":7},91,"B091","Actividades de apoyo a la extracción de petróleo y gas natural"]
[6085,"Monesterio",{"v":4216,"d":"4,216"},"RETO  < 5.000",null,"Desmantelamiento de instalaciones existentes (Solar Térmica)",{"$nulls":4},{"v":350,"d":"350 €"},{"v":385,"d":"385 €"},{"$nulls":15},1,{"$nulls":7},910,"B0910","Actividades de apoyo a la extracción de petróleo y gas natural"]
[6086,"Montemolín",{"v":1361,"d":"1,361"},"RETO  < 5.000",null,"Desmantelamiento de instalaciones existentes (Biomasa)",{"$nulls":4},{"v":40,"d":"40 €"},{"v":480,"d":"480 €"},{"$nulls":15},1,{"$nulls":7},99,"B099","Actividades de apoyo a otras industrias extractivas"]
[6087,"Monterrubio de la Serena",{"v":2326,"d":"2,326"},"RETO  < 5.000",{"$nulls":23},1,{"$nulls":7},990,"B0990","Actividades de apoyo a otras industrias extractivas"]
[6088,"Montijo",">5.000",">5.000",{"$nulls":23},1,{"$nulls":7},"C","C","Industria manufacturera"]
[6089,"La Morera",714,"RETO  < 5.000",{"$nulls":23},1,{"$nulls":7},10,"C10","Industria de la alimentación"]
[6090,"La Nava de Santiago",926,"RETO  < 5.000",{"$nulls":23},1,{"$nulls":7},101,"C101","Procesado y conservación de carne y elaboración de productos cárnicos"]
[6091,"Navalvillar de Pela",{"v":4403,"d":"4,403"},"RETO  < 5.000",{"$nulls":23},1,{"$nulls":7},1011,"C1011","Procesado y conservación de carne"]
[6092,"Nogales",658,"RETO  < 5.000",{"$nulls":23},1,{"$nulls":7},1012,"C1012","Procesado y conservación de volatería"]
[6093,"Oliva de la Frontera",">5.000",">5.000",{"$nulls":23},1,{"$nulls":7},1013,"C1013","Elaboración de productos cárnicos y de volatería"]
[6094,"Oliva de Mérida",{"v":1725,"d":"1,725"},"RETO  < 5.000",{"$nulls":23},1,{"$nulls":7},102,"C102","Procesado y conservación de pescados, crustáceos y moluscos"]
[6095,"Olivenza",">5.000",">5.000",{"$nulls":23},1,{"$nulls":7},1021,"C1021","Procesado de pescados, crustáceos y moluscos"]
[6096,"Orellana de la Sierra",244,"RETO  < 5.000",{"$nulls":23},1,{"$nulls":7},1022,"C1022","Fabricación de conservas de pescado"]
[6097,"Orellana la Vieja",{"v":2641,"d":"2,641"},"RETO  < 5.000",{"$nulls":23},1,{"$nulls":7},103,"C103","Procesado y conservación de frutas y hortalizas"]
[6098,"Palomas",671,"RETO  < 5.000",{"$nulls":23},1,{"$nulls":7},1031,"C1031","Procesado y conservación de patatas"]
[6099,"La Parra",{"v":1327,"d":"1,327"},"RETO  < 5.000",{"$nulls":23},1,{"$nulls":7},1032,"C1032","Elaboración de zumos de frutas y hortalizas"]
[6100,"Peñalsordo",896,"RETO  < 5.000",{"$nulls":23},1,{"$nulls":7},1039,"C1039","Otro procesado y conservación de frutas y hortalizas"]
[6101,"Peraleda del Zaucejo",507,"RETO  < 5.000",{"$nulls":31},104,"C104","Fabricación de aceites y grasas vegetales y animales"]
[6102,"Puebla de Alcocer",{"v":1212,"d":"1,212"},"RETO  < 5.000",{"$nulls":31},1042,"C1042","Fabricación de margarina y grasas comestibles similares"]
[6103,"Puebla de la Calzada",">5.000",">5.000",{"$nulls":31},1043,"C1043","Fabricación de aceite de oliva"]
[6104,"Puebla de la Reina",724,"RETO  < 5.000",{"$nulls":31},1044,"C1044","Fabricación de otros aceites y grasas"]
[6105,"Puebla del Maestre",670,"RETO  < 5.000",{"$nulls":31},105,"C105","Fabricación de productos lácteos"]
[6106,"Puebla del Prior",480,"RETO  < 5.000",{"$nulls":31},1052,"C1052","Elaboración de helados"]
[6107,"Puebla de Obando",{"v":1839,"d":"1,839"},"RETO  < 5.000",{"$nulls":31},1053,"C1053","Fabricación de quesos"]
[6108,"Puebla de Sancho Pérez",{"v":2676,"d":"2,676"},"RETO  < 5.000",{"$nulls":31},1054,"C1054","Preparación de leche y otros productos lácteos"]
[6109,"Quintana de la Serena",{"v":4574,"d":"4,574"},"RETO  < 5.000",{"$nulls":31},106,"C106","Fabricación de productos de molinería, almidones y productos amiláceos"]
[6110,"Reina",150,"RETO  < 5.000",{"$nulls":31},1061,"C1061","Fabricación de productos de molinería"]
[6111,"Rena",610,"RETO  < 5.000",{"$nulls":31},1062,"C1062","Fabricación de almidones y productos amiláceos"]
[6112,"Retamal de Llerena",436,"RETO  < 5.000",{"$nulls":31},107,"C107","Fabricación de productos de panadería y pastas alimenticias"]
[6113,"Ribera del Fresno",{"v":3256,"d":"3,256"},"RETO  < 5.000",{"$nulls":31},1071,"C1071","Fabricación de pan y de productos frescos de panadería y pastelería"]
[6114,"Risco",132,"RETO  < 5.000",{"$nulls":31},1072,"C1072","Fabricación de galletas y productos de panadería y pastelería de larga duración"]
[6115,"La Roca de la Sierra",{"v":1455,"d":"1,455"},"RETO  < 5.000",{"$nulls":31},1073,"C1073","Fabricación de pastas alimenticias, cuscús y productos similares"]
[6116,"Salvaleón",{"v":1721,"d":"1,721"},"RETO  < 5.000",{"$nulls":31},108,"C108","Fabricación de otros productos alimenticios"]
[6117,"Salvatierra de los Barros",{"v":1607,"d":"1,607"},"RETO  < 5.000",{"$nulls":31},1081,"C1081","Fabricación de azúcar"]
[6118,"Sancti-Spíritus",165,"RETO  < 5.000",{"$nulls":31},1082,"C1082","Fabricación de cacao, chocolate y productos de confitería"]
[6119,"San Pedro de Mérida",838,"RETO  < 5.000",{"$nulls":31},1083,"C1083","Elaboración de café, té e infusiones"]
[6120,"Santa Amalia",{"v":3975,"d":"3,975"},"RETO  < 5.000",{"$nulls":31},1084,"C1084","Elaboración de especias, salsas y condimentos"]
[6121,"Santa Marta",{"v":4124,"d":"4,124"},"RETO  < 5.000",{"$nulls":31},1085,"C1085","Elaboración de platos y comidas preparados"]
[6122,"Santos de Maimona, Los",">5.000",">5.000",{"$nulls":31},1086,"C1086","Elaboración de preparados alimenticios homogeneizados y alimentos dietéticos"]
[6123,"San Vicente de Alcántara",">5.000",">5.000",{"$nulls":31},1089,"C1089","Elaboración de otros productos alimenticios n.c.o.p."]
[6124,"Segura de León",{"v":1851,"d":"1,851"},"RETO  < 5.000",{"$nulls":31},109,"C109","Fabricación de productos para la alimentación animal"]
[6125,"Siruela",{"v":1861,"d":"1,861"},"RETO  < 5.000",{"$nulls":31},1091,"C1091","Fabricación de productos para la alimentación de animales de granja"]
[6126,"Solana de los Barros",{"v":2601,"d":"2,601"},"RETO  < 5.000",{"$nulls":31},1092,"C1092","Fabricación de productos para la alimentación de animales de compañía"]
[6127,"Talarrubias",{"v":3406,"d":"3,406"},"RETO  < 5.000",{"$nulls":31},11,"C11","Fabricación de bebidas"]
[6128,"Talavera la Real",">5.000",">5.000",{"$nulls":31},110,"C110","Fabricación de bebidas"]
[6129,"Táliga",678,"RETO  < 5.000",{"$nulls":31},1101,"C1101","Destilación, rectificación y mezcla de bebidas alcohólicas"]
[6130,"Tamurejo",212,"RETO  < 5.000",{"$nulls":31},1102,"C1102","Elaboración de vinos"]
[6131,"Torre de Miguel Sesmero",{"v":1246,"d":"1,246"},"RETO  < 5.000",{"$nulls":31},1103,"C1103","Elaboración de sidra y otras bebidas fermentadas a partir de frutas"]
[6132,"Torremayor",949,"RETO  < 5.000",{"$nulls":31},1104,"C1104","Elaboración de otras bebidas no destiladas, procedentes de la fermentación"]
[6133,"Torremejía",{"v":2257,"d":"2,257"},"RETO  < 5.000",{"$nulls":31},1105,"C1105","Fabricación de cerveza"]
[6134,"Trasierra",625,"RETO  < 5.000",{"$nulls":31},1106,"C1106","Fabricación de malta"]
[6135,"Trujillanos",{"v":1376,"d":"1,376"},"RETO  < 5.000",{"$nulls":31},1107,"C1107","Fabricación de bebidas no alcohólicas; producción de aguas minerales y otras aguas embotelladas"]
[6136,"Usagre",{"v":1751,"d":"1,751"},"RETO  < 5.000",{"$nulls":31},12,"C12","Industria del tabaco"]
[6137,"Valdecaballeros",{"v":1065,"d":"1,065"},"RETO  < 5.000",{"$nulls":31},120,"C120","Industria del tabaco"]
[6138,"Valdetorres",{"v":1179,"d":"1,179"},"RETO  < 5.000",{"$nulls":31},1200,"C1200","Industria del tabaco"]
[6139,"Valencia de las Torres",540,"RETO  < 5.000",{"$nulls":31},13,"C13","Industria textil"]
[6140,"Valencia del Mombuey",725,"RETO  < 5.000",{"$nulls":31},131,"C131","Preparación e hilado de fibras textiles"]
[6141,"Valencia del Ventoso",{"v":1960,"d":"1,960"},"RETO  < 5.000",{"$nulls":31},1310,"C1310","Preparación e hilado de fibras textiles"]
[6142,"Valverde de Burguillos",273,"RETO  < 5.000",{"$nulls":31},132,"C132","Fabricación de tejidos textiles"]
[6143,"Valverde de Leganés",{"v":4167,"d":"4,167"},"RETO  < 5.000",{"$nulls":31},1320,"C1320","Fabricación de tejidos textiles"]
[6144,"Valverde de Llerena",570,"RETO  < 5.000",{"$nulls":31},133,"C133","Acabado de textiles"]
[6145,"Valverde de Mérida",{"v":1047,"d":"1,047"},"RETO  < 5.000",{"$nulls":31},1330,"C1330","Acabado de textiles"]
[6146,"Valle de la Serena",{"v":1172,"d":"1,172"},"RETO  < 5.000",{"$nulls":31},139,"C139","Fabricación de otros productos textiles"]
[6147,"Valle de Matamoros",363,"RETO  < 5.000",{"$nulls":31},1391,"C1391","Fabricación de tejidos de punto"]
[6148,"Valle de Santa Ana",{"v":1143,"d":"1,143"},"RETO  < 5.000",{"$nulls":31},1392,"C1392","Fabricación de artículos confeccionados con textiles, excepto prendas de vestir"]
[6149,"Villafranca de los Barros",">5.000",">5.000",{"$nulls":31},1393,"C1393","Fabricación de alfombras y moquetas"]
[6150,"Villagarcía de la Torre",906,"RETO  < 5.000",{"$nulls":31},1394,"C1394","Fabricación de cuerdas, cordeles, bramantes y redes"]
[6151,"Villagonzalo",{"v":1234,"d":"1,234"},"RETO  < 5.000",{"$nulls":31},1395,"C1395","Fabricación de telas no tejidas y artículos confeccionados con ellas, excepto prendas de vestir"]
[6152,"Villalba de los Barros",{"v":1475,"d":"1,475"},"RETO  < 5.000",{"$nulls":31},1396,"C1396","Fabricación de otros productos textiles de uso técnico e industrial"]
[6153,"Villanueva de la Serena",">5.000",">5.000",{"$nulls":31},1399,"C1399","Fabricación de otros productos textiles n.c.o.p."]
[6154,"Villanueva del Fresno",{"v":3364,"d":"3,364"},"RETO  < 5.000",{"$nulls":31},14,"C14","Confección de prendas de vestir"]
[6155,"Villar del Rey",{"v":2106,"d":"2,106"},"RETO  < 5.000",{"$nulls":31},141,"C141","Confección de prendas de vestir, excepto de peletería"]
[6156,"Villar de Rena",{"v":1353,"d":"1,353"},"RETO  < 5.000",{"$nulls":31},1411,"C1411","Confección de prendas de vestir de cuero"]
[6157,"Villarta de los Montes",423,"RETO  < 5.000",{"$nulls":31},1412,"C1412","Confección de ropa de trabajo"]
[6158,"Zafra",">5.000",">5.000",{"$nulls":31},1413,"C1413","Confección de otras prendas de vestir exteriores"]
[6159,"Zahínos",{"v":2774,"d":"2,774"},"RETO  < 5.000",{"$nulls":31},1414,"C1414","Confección de ropa interior"]
[6160,"Zalamea de la Serena",{"v":3545,"d":"3,545"},"RETO  < 5.000",{"$nulls":31},1419,"C1419","Confección de otras prendas de vestir y accesorios"]
[6161,"Zarza-Capilla",310,"RETO  < 5.000",{"$nulls":31},142,"C142","Fabricación de artículos de peletería"]
[6162,"La Zarza",{"v":3402,"d":"3,402"},"RETO  < 5.000",{"$nulls":31},1420,"C1420","Fabricación de artículos de peletería"]
[6901,"Valdelacalzada",{"v":2721,"d":"2,721"},"RETO  < 5.000",{"$nulls":31},143,"C143","Confección de prendas de vestir de punto"]
[6902,"Pueblonuevo del Guadiana",{"v":2008,"d":"2,008"},"RETO  < 5.000",{"$nulls":31},1431,"C1431","Confección de calcetería"]
[6903,"Guadiana",{"v":2492,"d":"2,492"},"RETO  < 5.000",{"$nulls":31},1439,"C1439","Confección de otras prendas de vestir de punto"]
[10001,"Abadía",336,"RETO  < 5.000",{"$nulls":31},15,"C15","Industria del cuero y del calzado"]
[10002,"Abertura",404,"RETO  < 5.000",{"$nulls":31},151,"C151","Preparación, curtido y acabado del cuero; fabricación de artículos de marroquinería, viaje y de guarnicionería y talabartería; preparación y teñido de pieles"]
[10003,"Acebo",557,"RETO  < 5.000",{"$nulls":31},1511,"C1511","Preparación, curtido y acabado del cuero; preparación y teñido de pieles"]
[10004,"Acehúche",802,"RETO  < 5.000",{"$nulls":31},1512,"C1512","Fabricación de artículos de marroquinería, viaje y de guarnicionería y talabartería"]
[10005,"Aceituna",600,"RETO  < 5.000",{"$nulls":31},152,"C152","Fabricación de calzado"]
[10006,"Ahigal",{"v":1381,"d":"1,381"},"RETO  < 5.000",{"$nulls":31},1520,"C1520","Fabricación de calzado"]
[10007,"Albalá",669,"RETO  < 5.000",{"$nulls":31},16,"C16","Industria de la madera y del corcho, excepto muebles; cestería y espartería"]
[10008,"Alcántara",{"v":1411,"d":"1,411"},"RETO  < 5.000",{"$nulls":31},161,"C161","Aserrado y cepillado de la madera"]
[10009,"Alcollarín",282,"RETO  < 5.000",{"$nulls":31},1610,"C1610","Aserrado y cepillado de la madera"]
[10010,"Alcuéscar",{"v":2554,"d":"2,554"},"RETO  < 5.000",{"$nulls":31},162,"C162","Fabricación de productos de madera, corcho, cestería y espartería"]
[10011,"Aldeacentenera",561,"RETO  < 5.000",{"$nulls":31},1621,"C1621","Fabricación de chapas y tableros de madera"]
[10012,"Aldea del Cano",602,"RETO  < 5.000",{"$nulls":31},1622,"C1622","Fabricación de suelos de madera ensamblados"]
[10013,"La Aldea del Obispo",298,"RETO  < 5.000",{"$nulls":31},1623,"C1623","Fabricación de otras estructuras de madera y piezas de carpintería y ebanistería para la construcción"]
[10014,"Aldeanueva de la Vera",{"v":2042,"d":"2,042"},"RETO  < 5.000",{"$nulls":31},1624,"C1624","Fabricación de envases y embalajes de madera"]
[10015,"Aldeanueva del Camino",727,"RETO  < 5.000",{"$nulls":31},1629,"C1629","Fabricación de otros productos de madera; artículos de corcho, cestería y espartería"]
[10016,"Aldehuela de Jerte",371,"RETO  < 5.000",{"$nulls":31},17,"C17","Industria del papel"]
[10017,"Alía",816,"RETO  < 5.000",{"$nulls":31},171,"C171","Fabricación de pasta papelera, papel y cartón"]
[10018,"Aliseda",{"v":1777,"d":"1,777"},"RETO  < 5.000",{"$nulls":31},1711,"C1711","Fabricación de pasta papelera"]
[10019,"Almaraz",{"v":1726,"d":"1,726"},"RETO  < 5.000",{"$nulls":31},1712,"C1712","Fabricación de papel y cartón"]
[10020,"Almoharín",{"v":1811,"d":"1,811"},"RETO  < 5.000",{"$nulls":31},172,"C172","Fabricación de artículos de papel y de cartón"]
[10021,"Arroyo de la Luz",">5.000",">5.000",{"$nulls":31},1721,"C1721","Fabricación de papel y cartón ondulados; fabricación de envases y embalajes de papel y cartón"]
[10022,"Arroyomolinos de la Vera",441,"RETO  < 5.000",{"$nulls":31},1722,"C1722","Fabricación de artículos de papel y cartón para uso doméstico, sanitario e higiénico"]
[10023,"Arroyomolinos",828,"RETO  < 5.000",{"$nulls":31},1723,"C1723","Fabricación de artículos de papelería"]
[10024,"Baños de Montemayor",751,"RETO  < 5.000",{"$nulls":31},1724,"C1724","Fabricación de papeles pintados"]
[10025,"Barrado",387,"RETO  < 5.000",{"$nulls":31},1729,"C1729","Fabricación de otros artículos de papel y cartón"]
[10026,"Belvís de Monroy",733,"RETO  < 5.000",{"$nulls":31},18,"C18","Artes gráficas y reproducción de soportes grabados"]
[10027,"Benquerencia",80,"RETO  < 5.000",{"$nulls":31},181,"C181","Artes gráficas y servicios relacionados con las mismas"]
[10028,"Berrocalejo",97,"RETO  < 5.000",{"$nulls":31},1811,"C1811","Artes gráficas y servicios relacionados con las mismas"]
[10029,"Berzocana",414,"RETO  < 5.000",{"$nulls":31},1812,"C1812","Otras actividades de impresión y artes gráficas"]
[10030,"Bohonal de Ibor",481,"RETO  < 5.000",{"$nulls":31},1813,"C1813","Servicios de preimpresión y preparación de soportes"]
[10031,"Botija",171,"RETO  < 5.000",{"$nulls":31},1814,"C1814","Encuadernación y servicios relacionados con la misma"]
[10032,"Brozas",{"v":1804,"d":"1,804"},"RETO  < 5.000",{"$nulls":31},182,"C182","Reproducción de soportes grabados"]
[10033,"Cabañas del Castillo",424,"RETO  < 5.000",{"$nulls":31},1820,"C1820","Reproducción de soportes grabados"]
[10034,"Cabezabellosa",340,"RETO  < 5.000",{"$nulls":31},19,"C19","Coquerías y refino de petróleo"]
[10035,"Cabezuela del Valle",{"v":2129,"d":"2,129"},"RETO  < 5.000",{"$nulls":31},191,"C191","Coquerías"]
[10036,"Cabrero",328,"RETO  < 5.000",{"$nulls":31},1910,"C1910","Coquerías"]
[10037,"Cáceres",">5.000",">5.000",{"$nulls":31},192,"C192","Refino de petróleo"]
[10038,"Cachorrilla",87,"RETO  < 5.000",{"$nulls":31},1920,"C1920","Refino de petróleo"]
[10039,"Cadalso",426,"RETO  < 5.000",{"$nulls":31},20,"C20","Industria química"]
[10040,"Calzadilla",463,"RETO  < 5.000",{"$nulls":31},201,"C201","Fabricación de productos químicos básicos, compuestos nitrogenados, fertilizantes, plásticos y caucho sintético en formas primarias"]
[10041,"Caminomorisco",{"v":1181,"d":"1,181"},"RETO  < 5.000",{"$nulls":31},2011,"C2011","Fabricación de gases industriales"]
[10042,"Campillo de Deleitosa",75,"RETO  < 5.000",{"$nulls":31},2012,"C2012","Fabricación de colorantes y pigmentos"]
[10043,"Campo Lugar",814,"RETO  < 5.000",{"$nulls":31},2013,"C2013","Fabricación de otros productos básicos de química inorgánica"]
[10044,"Cañamero",{"v":1618,"d":"1,618"},"RETO  < 5.000",{"$nulls":31},2014,"C2014","Fabricación de otros productos básicos de química orgánica"]
[10045,"Cañaveral",{"v":1036,"d":"1,036"},"RETO  < 5.000",{"$nulls":31},2015,"C2015","Fabricación de fertilizantes y compuestos nitrogenados"]
[10046,"Carbajo",197,"RETO  < 5.000",{"$nulls":31},2016,"C2016","Fabricación de plásticos en formas primarias"]
[10047,"Carcaboso",{"v":1085,"d":"1,085"},"RETO  < 5.000",{"$nulls":31},2017,"C2017","Fabricación de caucho sintético en formas primarias"]
[10048,"Carrascalejo",220,"RETO  < 5.000",{"$nulls":31},202,"C202","Fabricación de pesticidas y otros productos agroquímicos"]
[10049,"Casar de Cáceres",{"v":4499,"d":"4,499"},"RETO  < 5.000",{"$nulls":31},2020,"C2020","Fabricación de pesticidas y otros productos agroquímicos"]
[10050,"Casar de Palomero",{"v":1084,"d":"1,084"},"RETO  < 5.000",{"$nulls":31},203,"C203","Fabricación de pinturas, barnices y revestimientos similares; tintas de imprenta y masillas"]
[10051,"Casares de las Hurdes",400,"RETO  < 5.000",{"$nulls":31},2030,"C2030","Fabricación de pinturas, barnices y revestimientos similares; tintas de imprenta y masillas"]
[10052,"Casas de Don Antonio",170,"RETO  < 5.000",{"$nulls":31},204,"C204","Fabricación de jabones, detergentes y otros artículos de limpieza y abrillantamiento; fabricación de perfumes y cosméticos"]
[10053,"Casas de Don Gómez",283,"RETO  < 5.000",{"$nulls":31},2041,"C2041","Fabricación de jabones, detergentes y otros artículos de limpieza y abrillantamiento"]
[10054,"Casas del Castañar",552,"RETO  < 5.000",{"$nulls":31},2042,"C2042","Fabricación de perfumes y cosméticos"]
[10055,"Casas del Monte",811,"RETO  < 5.000",{"$nulls":31},205,"C205","Fabricación de otros productos químicos"]
[10056,"Casas de Millán",550,"RETO  < 5.000",{"$nulls":31},2051,"C2051","Fabricación de explosivos"]
[10057,"Casas de Miravete",126,"RETO  < 5.000",{"$nulls":31},2052,"C2052","Fabricación de colas"]
[10058,"Casatejada",{"v":1344,"d":"1,344"},"RETO  < 5.000",{"$nulls":31},2053,"C2053","Fabricación de aceites esenciales"]
[10059,"Casillas de Coria",345,"RETO  < 5.000",{"$nulls":31},2059,"C2059","Fabricación de otros productos químicos n.c.o.p."]
[10060,"Castañar de Ibor",{"v":1033,"d":"1,033"},"RETO  < 5.000",{"$nulls":31},206,"C206","Fabricación de fibras artificiales y sintéticas"]
[10061,"Ceclavín",{"v":1812,"d":"1,812"},"RETO  < 5.000",{"$nulls":31},2060,"C2060","Fabricación de fibras artificiales y sintéticas"]
[10062,"Cedillo",428,"RETO  < 5.000",{"$nulls":31},21,"C21","Fabricación de productos farmacéuticos"]
[10063,"Cerezo",159,"RETO  < 5.000",{"$nulls":31},211,"C211","Fabricación de productos farmacéuticos de base"]
[10064,"Cilleros",{"v":1602,"d":"1,602"},"RETO  < 5.000",{"$nulls":31},2110,"C2110","Fabricación de productos farmacéuticos de base"]
[10065,"Collado de la Vera",191,"RETO  < 5.000",{"$nulls":31},212,"C212","Fabricación de especialidades farmacéuticas"]
[10066,"Conquista de la Sierra",185,"RETO  < 5.000",{"$nulls":31},2120,"C2120","Fabricación de especialidades farmacéuticas"]
[10067,"Coria",">5.000",">5.000",{"$nulls":31},22,"C22","Fabricación de productos de caucho y plásticos"]
[10068,"Cuacos de Yuste",851,"RETO  < 5.000",{"$nulls":31},221,"C221","Fabricación de productos de caucho"]
[10069,"La Cumbre",841,"RETO  < 5.000",{"$nulls":31},2211,"C2211","Fabricación de neumáticos y cámaras de caucho; reconstrucción y recauchutado de neumáticos"]
[10070,"Deleitosa",687,"RETO  < 5.000",{"$nulls":31},2219,"C2219","Fabricación de otros productos de caucho"]
[10071,"Descargamaría",116,"RETO  < 5.000",{"$nulls":31},222,"C222","Fabricación de productos de plástico"]
[10072,"Eljas",901,"RETO  < 5.000",{"$nulls":31},2221,"C2221","Fabricación de placas, hojas, tubos y perfiles de plástico"]
[10073,"Escurial",865,"RETO  < 5.000",{"$nulls":31},2222,"C2222","Fabricación de envases y embalajes de plástico"]
[10075,"Fresnedoso de Ibor",262,"RETO  < 5.000",{"$nulls":31},2223,"C2223","Fabricación de productos de plástico para la construcción"]
[10076,"Galisteo",916,"RETO  < 5.000",{"$nulls":31},2229,"C2229","Fabricación de otros productos de plástico"]
[10077,"Garciaz",699,"RETO  < 5.000",{"$nulls":31},23,"C23","Fabricación de otros productos minerales no metálicos"]
[10078,"La Garganta",365,"RETO  < 5.000",{"$nulls":31},231,"C231","Fabricación de vidrio y productos de vidrio"]
[10079,"Garganta la Olla",926,"RETO  < 5.000",{"$nulls":31},2311,"C2311","Fabricación de vidrio plano"]
[10080,"Gargantilla",376,"RETO  < 5.000",{"$nulls":31},2312,"C2312","Manipulado y transformación de vidrio plano"]
[10081,"Gargüera",164,"RETO  < 5.000",{"$nulls":31},2313,"C2313","Fabricación de vidrio hueco"]
[10082,"Garrovillas de Alconétar",{"v":2004,"d":"2,004"},"RETO  < 5.000",{"$nulls":31},2314,"C2314","Fabricación de fibra de vidrio"]
[10083,"Garvín",104,"RETO  < 5.000",{"$nulls":31},2319,"C2319","Fabricación y manipulado de otro vidrio, incluido el vidrio técnico"]
[10084,"Gata",{"v":1417,"d":"1,417"},"RETO  < 5.000",{"$nulls":31},232,"C232","Fabricación de productos cerámicos refractarios"]
[10085,"El Gordo",360,"RETO  < 5.000",{"$nulls":31},2320,"C2320","Fabricación de productos cerámicos refractarios"]
[10086,"La Granja",323,"RETO  < 5.000",{"$nulls":31},233,"C233","Fabricación de productos cerámicos para la construcción"]
[10087,"Guadalupe",{"v":1828,"d":"1,828"},"RETO  < 5.000",{"$nulls":31},2331,"C2331","Fabricación de azulejos y baldosas de cerámica"]
[10088,"Guijo de Coria",196,"RETO  < 5.000",{"$nulls":31},2332,"C2332","Fabricación de ladrillos, tejas y productos de tierras cocidas para la construcción"]
[10089,"Guijo de Galisteo",{"v":1507,"d":"1,507"},"RETO  < 5.000",{"$nulls":31},234,"C234","Fabricación de otros productos cerámicos"]
[10090,"Guijo de Granadilla",522,"RETO  < 5.000",{"$nulls":31},2341,"C2341","Fabricación de artículos cerámicos de uso doméstico y ornamental"]
[10091,"Guijo de Santa Bárbara",378,"RETO  < 5.000",{"$nulls":31},2342,"C2342","Fabricación de aparatos sanitarios cerámicos"]
[10092,"Herguijuela",274,"RETO  < 5.000",{"$nulls":31},2343,"C2343","Fabricación de aisladores y piezas aislantes de material cerámico"]
[10093,"Hernán-Pérez",424,"RETO  < 5.000",{"$nulls":31},2344,"C2344","Fabricación de otros productos cerámicos de uso técnico"]
[10094,"Herrera de Alcántara",240,"RETO  < 5.000",{"$nulls":31},2349,"C2349","Fabricación de otros productos cerámicos"]
[10095,"Herreruela",330,"RETO  < 5.000",{"$nulls":31},235,"C235","Fabricación de cemento, cal y yeso"]
[10096,"Hervás",{"v":3957,"d":"3,957"},"RETO  < 5.000",{"$nulls":31},2351,"C2351","Fabricación de cemento"]
[10097,"Higuera",110,"RETO  < 5.000",{"$nulls":31},2352,"C2352","Fabricación de cal y yeso"]
[10098,"Hinojal",404,"RETO  < 5.000",{"$nulls":31},236,"C236","Fabricación de elementos de hormigón, cemento y yeso"]
[10099,"Holguera",637,"RETO  < 5.000",{"$nulls":31},2361,"C2361","Fabricación de elementos de hormigón para la construcción"]
[10100,"Hoyos",880,"RETO  < 5.000",{"$nulls":31},2362,"C2362","Fabricación de elementos de yeso para la construcción"]
[10101,"Huélaga",219,"RETO  < 5.000",{"$nulls":31},2363,"C2363","Fabricación de hormigón fresco"]
[10102,"Ibahernando",538,"RETO  < 5.000",{"$nulls":31},2364,"C2364","Fabricación de mortero"]
[10103,"Jaraicejo",456,"RETO  < 5.000",{"$nulls":31},2365,"C2365","Fabricación de fibrocemento"]
[10104,"Jaraíz de la Vera",">5.000",">5.000",{"$nulls":31},2369,"C2369","Fabricación de otros productos de hormigón, yeso y cemento"]
[10105,"Jarandilla de la Vera",{"v":2805,"d":"2,805"},"RETO  < 5.000",{"$nulls":31},237,"C237","Corte, tallado y acabado de la piedra"]
[10106,"Jarilla",138,"RETO  < 5.000",{"$nulls":31},2370,"C2370","Corte, tallado y acabado de la piedra"]
[10107,"Jerte",{"v":1260,"d":"1,260"},"RETO  < 5.000",{"$nulls":31},239,"C239","Fabricación de productos abrasivos y productos minerales no metálicos n.c.o.p."]
[10108,"Ladrillar",192,"RETO  < 5.000",{"$nulls":31},2391,"C2391","Fabricación de productos abrasivos"]
[10109,"Logrosán",{"v":1971,"d":"1,971"},"RETO  < 5.000",{"$nulls":31},2399,"C2399","Fabricación de otros productos minerales no metálicos n.c.o.p."]
[10110,"Losar de la Vera",{"v":2717,"d":"2,717"},"RETO  < 5.000",{"$nulls":31},24,"C24","Metalurgia; fabricación de productos de hierro, acero y ferroaleaciones"]
[10111,"Madrigal de la Vera",{"v":1561,"d":"1,561"},"RETO  < 5.000",{"$nulls":31},241,"C241","Fabricación de productos básicos de hierro, acero y ferroaleaciones"]
[10112,"Madrigalejo",{"v":1712,"d":"1,712"},"RETO  < 5.000",{"$nulls":31},2410,"C2410","Fabricación de productos básicos de hierro, acero y ferroaleaciones"]
[10113,"Madroñera",{"v":2496,"d":"2,496"},"RETO  < 5.000",{"$nulls":31},242,"C242","Fabricación de tubos, tuberías, perfiles huecos y sus accesorios, de acero"]
[10114,"Majadas",{"v":1322,"d":"1,322"},"RETO  < 5.000",{"$nulls":31},2420,"C2420","Fabricación de tubos, tuberías, perfiles huecos y sus accesorios, de acero"]
[10115,"Malpartida de Cáceres",{"v":4076,"d":"4,076"},"RETO  < 5.000",{"$nulls":31},243,"C243","Fabricación de otros productos de primera transformación del acero"]
[10116,"Malpartida de Plasencia",{"v":4602,"d":"4,602"},"RETO  < 5.000",{"$nulls":31},2431,"C2431","Estirado en frío"]
[10117,"Marchagaz",203,"RETO  < 5.000",{"$nulls":31},2432,"C2432","Laminación en frío"]
[10118,"Mata de Alcántara",301,"RETO  < 5.000",{"$nulls":31},2433,"C2433","Producción de perfiles en frío por conformación con plegado"]
[10119,"Membrío",605,"RETO  < 5.000",{"$nulls":31},2434,"C2434","Trefilado en frío"]
[10120,"Mesas de Ibor",163,"RETO  < 5.000",{"$nulls":31},244,"C244","Producción de metales preciosos y de otros metales no férreos"]
[10121,"Miajadas",">5.000",">5.000",{"$nulls":31},2441,"C2441","Producción de metales preciosos"]
[10122,"Millanes",255,"RETO  < 5.000",{"$nulls":31},2442,"C2442","Producción de aluminio"]
[10123,"Mirabel",661,"RETO  < 5.000",{"$nulls":31},2443,"C2443","Producción de plomo, zinc y estaño"]
[10124,"Mohedas de Granadilla",838,"RETO  < 5.000",{"$nulls":31},2444,"C2444","Producción de cobre"]
[10125,"Monroy",938,"RETO  < 5.000",{"$nulls":31},2445,"C2445","Producción de otros metales no férreos"]
[10126,"Montánchez",{"v":1668,"d":"1,668"},"RETO  < 5.000",{"$nulls":31},2446,"C2446","Procesamiento de combustibles nucleares"]
[10127,"Montehermoso",">5.000",">5.000",{"$nulls":31},245,"C245","Fundición de metales"]
[10128,"Moraleja",">5.000",">5.000",{"$nulls":31},2451,"C2451","Fundición de hierro"]
[10129,"Morcillo",358,"RETO  < 5.000",{"$nulls":31},2452,"C2452","Fundición de acero"]
[10130,"Navaconcejo",{"v":2024,"d":"2,024"},"RETO  < 5.000",{"$nulls":31},2453,"C2453","Fundición de metales ligeros"]
[10131,"Navalmoral de la Mata",">5.000",">5.000",{"$nulls":31},2454,"C2454","Fundición de otros metales no férreos"]
[10132,"Navalvillar de Ibor",388,"RETO  < 5.000",{"$nulls":31},25,"C25","Fabricación de productos metálicos, excepto maquinaria y equipo"]
[10133,"Navas del Madroño",{"v":1280,"d":"1,280"},"RETO  < 5.000",{"$nulls":31},251,"C251","Fabricación de elementos metálicos para la construcción"]
[10134,"Navezuelas",632,"RETO  < 5.000",{"$nulls":31},2511,"C2511","Fabricación de estructuras metálicas y sus componentes"]
[10135,"Nuñomoral",{"v":1252,"d":"1,252"},"RETO  < 5.000",{"$nulls":31},2512,"C2512","Fabricación de carpintería metálica"]
[10136,"Oliva de Plasencia",296,"RETO  < 5.000",{"$nulls":31},252,"C252","Fabricación de cisternas, grandes depósitos y contenedores de metal"]
[10137,"Palomero",396,"RETO  < 5.000",{"$nulls":31},2521,"C2521","Fabricación de radiadores y calderas para calefacción central"]
[10138,"Pasarón de la Vera",604,"RETO  < 5.000",{"$nulls":31},2529,"C2529","Fabricación de otras cisternas, grandes depósitos y contenedores de metal"]
[10139,"Pedroso de Acim",80,"RETO  < 5.000",{"$nulls":31},253,"C253","Fabricación de generadores de vapor, excepto calderas de calefacción central"]
[10140,"Peraleda de la Mata",{"v":1393,"d":"1,393"},"RETO  < 5.000",{"$nulls":31},2530,"C2530","Fabricación de generadores de vapor, excepto calderas de calefacción central"]
[10141,"Peraleda de San Román",300,"RETO  < 5.000",{"$nulls":31},254,"C254","Fabricación de armas y municiones"]
[10142,"Perales del Puerto",938,"RETO  < 5.000",{"$nulls":31},2540,"C2540","Fabricación de armas y municiones"]
[10143,"Pescueza",146,"RETO  < 5.000",{"$nulls":31},255,"C255","Forja, estampación y embutición de metales; metalurgia de polvos"]
[10144,"La Pesga",{"v":1018,"d":"1,018"},"RETO  < 5.000",{"$nulls":31},2550,"C2550","Forja, estampación y embutición de metales; metalurgia de polvos"]
[10145,"Piedras Albas",141,"RETO  < 5.000",{"$nulls":31},256,"C256","Tratamiento y revestimiento de metales; ingeniería mecánica por cuenta de terceros"]
[10146,"Pinofranqueado",{"v":1692,"d":"1,692"},"RETO  < 5.000",{"$nulls":31},2561,"C2561","Tratamiento y revestimiento de metales"]
[10147,"Piornal",{"v":1483,"d":"1,483"},"RETO  < 5.000",{"$nulls":31},2562,"C2562","Ingeniería mecánica por cuenta de terceros"]
[10148,"Plasencia",">5.000",">5.000",{"$nulls":31},257,"C257","Fabricación de artículos de cuchillería y cubertería, herramientas y ferretería"]
[10149,"Plasenzuela",487,"RETO  < 5.000",{"$nulls":31},2571,"C2571","Fabricación de artículos de cuchillería y cubertería"]
[10150,"Portaje",370,"RETO  < 5.000",{"$nulls":31},2572,"C2572","Fabricación de cerraduras y herrajes"]
[10151,"Portezuelo",211,"RETO  < 5.000",{"$nulls":31},2573,"C2573","Fabricación de herramientas"]
[10152,"Pozuelo de Zarzón",454,"RETO  < 5.000",{"$nulls":31},259,"C259","Fabricación de otros productos metálicos"]
[10153,"Puerto de Santa Cruz",304,"RETO  < 5.000",{"$nulls":31},2591,"C2591","Fabricación de bidones y toneles de hierro o acero"]
[10154,"Rebollar",215,"RETO  < 5.000",{"$nulls":31},2592,"C2592","Fabricación de envases y embalajes metálicos ligeros"]
[10155,"Riolobos",{"v":1201,"d":"1,201"},"RETO  < 5.000",{"$nulls":31},2593,"C2593","Fabricación de productos de alambre, cadenas y muelles"]
[10156,"Robledillo de Gata",90,"RETO  < 5.000",{"$nulls":31},2594,"C2594","Fabricación de pernos y productos de tornillería"]
[10157,"Robledillo de la Vera",258,"RETO  < 5.000",{"$nulls":31},2599,"C2599","Fabricación de otros productos metálicos n.c.o.p."]
[10158,"Robledillo de Trujillo",360,"RETO  < 5.000",{"$nulls":31},26,"C26","Fabricación de productos informáticos, electrónicos y ópticos"]
[10159,"Robledollano",294,"RETO  < 5.000",{"$nulls":31},261,"C261","Fabricación de componentes electrónicos y circuitos impresos ensamblados"]
[10160,"Romangordo",263,"RETO  < 5.000",{"$nulls":31},2611,"C2611","Fabricación de componentes electrónicos"]
[10161,"Ruanes",80,"RETO  < 5.000",{"$nulls":31},2612,"C2612","Fabricación de circuitos impresos ensamblados"]
[10162,"Salorino",560,"RETO  < 5.000",{"$nulls":31},262,"C262","Fabricación de ordenadores y equipos periféricos"]
[10163,"Salvatierra de Santiago",298,"RETO  < 5.000",{"$nulls":31},2620,"C2620","Fabricación de ordenadores y equipos periféricos"]
[10164,"San Martín de Trevejo",766,"RETO  < 5.000",{"$nulls":31},263,"C263","Fabricación de equipos de telecomunicaciones"]
[10165,"Santa Ana",256,"RETO  < 5.000",{"$nulls":31},2630,"C2630","Fabricación de equipos de telecomunicaciones"]
[10166,"Santa Cruz de la Sierra",326,"RETO  < 5.000",{"$nulls":31},264,"C264","Fabricación de productos electrónicos de consumo"]
[10167,"Santa Cruz de Paniagua",316,"RETO  < 5.000",{"$nulls":31},2640,"C2640","Fabricación de productos electrónicos de consumo"]
[10168,"Santa Marta de Magasca",299,"RETO  < 5.000",{"$nulls":31},265,"C265","Fabricación de instrumentos y aparatos de medida, verificación y navegación; fabricación de relojes"]
[10169,"Santiago de Alcántara",507,"RETO  < 5.000",{"$nulls":31},2651,"C2651","Fabricación de instrumentos y aparatos de medida, verificación y navegación"]
[10170,"Santiago del Campo",237,"RETO  < 5.000",{"$nulls":31},2652,"C2652","Fabricación de relojes"]
[10171,"Santibáñez el Alto",361,"RETO  < 5.000",{"$nulls":31},266,"C266","Fabricación de equipos de radiación, electromédicos y electroterapéuticos"]
[10172,"Santibáñez el Bajo",741,"RETO  < 5.000",{"$nulls":31},2660,"C2660","Fabricación de equipos de radiación, electromédicos y electroterapéuticos"]
[10173,"Saucedilla",852,"RETO  < 5.000",{"$nulls":31},267,"C267","Fabricación de instrumentos de óptica y equipo fotográfico"]
[10174,"Segura de Toro",181,"RETO  < 5.000",{"$nulls":31},2670,"C2670","Fabricación de instrumentos de óptica y equipo fotográfico"]
[10175,"Serradilla",{"v":1507,"d":"1,507"},"RETO  < 5.000",{"$nulls":31},268,"C268","Fabricación de soportes magnéticos y ópticos"]
[10176,"Serrejón",410,"RETO  < 5.000",{"$nulls":31},2680,"C2680","Fabricación de soportes magnéticos y ópticos"]
[10177,"Sierra de Fuentes",{"v":1998,"d":"1,998"},"RETO  < 5.000",{"$nulls":31},27,"C27","Fabricación de material y equipo eléctrico"]
[10178,"Talaván",806,"RETO  < 5.000",{"$nulls":31},271,"C271","Fabricación de motores, generadores y transformadores eléctricos, y de aparatos de distribución y control eléctrico"]
[10179,"Talaveruela de la Vera",298,"RETO  < 5.000",{"$nulls":31},2711,"C2711","Fabricación de motores, generadores y transformadores eléctricos"]
[10180,"Talayuela",">5.000",">5.000",{"$nulls":31},2712,"C2712","Fabricación de aparatos de distribución y control eléctrico"]
[10181,"Tejeda de Tiétar",773,"RETO  < 5.000",{"$nulls":31},272,"C272","Fabricación de pilas y acumuladores eléctricos"]
[10182,"Toril",153,"RETO  < 5.000",{"$nulls":31},2720,"C2720","Fabricación de pilas y acumuladores eléctricos"]
[10183,"Tornavacas",{"v":1098,"d":"1,098"},"RETO  < 5.000",{"$nulls":31},273,"C273","Fabricación de cables y dispositivos de cableado"]
[10184,"El Torno",851,"RETO  < 5.000",{"$nulls":31},2731,"C2731","Fabricación de cables de fibra óptica"]
[10185,"Torrecilla de los Ángeles",601,"RETO  < 5.000",{"$nulls":31},2732,"C2732","Fabricación de otros hilos y cables electrónicos y eléctricos"]
[10186,"Torrecillas de la Tiesa",{"v":1070,"d":"1,070"},"RETO  < 5.000",{"$nulls":31},2733,"C2733","Fabricación de dispositivos de cableado"]
[10187,"Torre de Don Miguel",484,"RETO  < 5.000",{"$nulls":31},274,"C274","Fabricación de lámparas y aparatos eléctricos de iluminación"]
[10188,"Torre de Santa María",532,"RETO  < 5.000",{"$nulls":31},2740,"C2740","Fabricación de lámparas y aparatos eléctricos de iluminación"]
[10189,"Torrejoncillo",{"v":2910,"d":"2,910"},"RETO  < 5.000",{"$nulls":31},275,"C275","Fabricación de aparatos domésticos"]
[10190,"Torrejón el Rubio",546,"RETO  < 5.000",{"$nulls":31},2751,"C2751","Fabricación de electrodomésticos"]
[10191,"Torremenga",587,"RETO  < 5.000",{"$nulls":31},2752,"C2752","Fabricación de aparatos domésticos no eléctricos"]
[10192,"Torremocha",793,"RETO  < 5.000",{"$nulls":31},279,"C279","Fabricación de otro material y equipo eléctrico"]
[10193,"Torreorgaz",{"v":1656,"d":"1,656"},"RETO  < 5.000",{"$nulls":31},2790,"C2790","Fabricación de otro material y equipo eléctrico"]
[10194,"Torrequemada",560,"RETO  < 5.000",{"$nulls":31},28,"C28","Fabricación de maquinaria y equipo n.c.o.p."]
[10195,"Trujillo",">5.000",">5.000",{"$nulls":31},281,"C281","Fabricación de maquinaria de uso general"]
[10196,"Valdastillas",321,"RETO  < 5.000",{"$nulls":31},2811,"C2811","Fabricación de motores y turbinas, excepto los destinados a aeronaves, vehículos automóviles y ciclomotores"]
[10197,"Valdecañas de Tajo",106,"RETO  < 5.000",{"$nulls":31},2812,"C2812","Fabricación de equipos de transmisión hidráulica y neumática"]
[10198,"Valdefuentes",{"v":1139,"d":"1,139"},"RETO  < 5.000",{"$nulls":31},2813,"C2813","Fabricación de otras bombas y compresores"]
[10199,"Valdehúncar",171,"RETO  < 5.000",{"$nulls":31},2814,"C2814","Fabricación de otra grifería y válvulas"]
[10200,"Valdelacasa de Tajo",348,"RETO  < 5.000",{"$nulls":31},2815,"C2815","Fabricación de cojinetes, engranajes y órganos mecánicos de transmisión"]
[10201,"Valdemorales",202,"RETO  < 5.000",{"$nulls":31},282,"C282","Fabricación de otra maquinaria de uso general"]
[10202,"Valdeobispo",644,"RETO  < 5.000",{"$nulls":31},2821,"C2821","Fabricación de hornos y quemadores"]
[10203,"Valencia de Alcántara",{"v":5373,"d":"5,373"},"RETO  < 5.000",{"$nulls":31},2822,"C2822","Fabricación de maquinaria de elevación y manipulación"]
[10204,"Valverde de la Vera",465,"RETO  < 5.000",{"$nulls":31},2823,"C2823","Fabricación de máquinas y equipos de oficina, excepto equipos informáticos"]
[10205,"Valverde del Fresno",{"v":2250,"d":"2,250"},"RETO  < 5.000",{"$nulls":31},2824,"C2824","Fabricación de herramientas eléctricas manuales"]
[10206,"Viandar de la Vera",219,"RETO  < 5.000",{"$nulls":31},2825,"C2825","Fabricación de maquinaria de ventilación y refrigeración no doméstica"]
[10207,"Villa del Campo",478,"RETO  < 5.000",{"$nulls":31},2829,"C2829","Fabricación de otra maquinaria de uso general n.c.o.p."]
[10208,"Villa del Rey",133,"RETO  < 5.000",{"$nulls":31},283,"C283","Fabricación de maquinaria agraria y forestal"]
[10209,"Villamesías",259,"RETO  < 5.000",{"$nulls":31},2830,"C2830","Fabricación de maquinaria agraria y forestal"]
[10210,"Villamiel",400,"RETO  < 5.000",{"$nulls":31},284,"C284","Fabricación de máquinas herramienta para trabajar el metal y otras máquinas herramienta"]
[10211,"Villanueva de la Sierra",441,"RETO  < 5.000",{"$nulls":31},2841,"C2841","Fabricación de máquinas herramienta para trabajar el metal"]
[10212,"Villanueva de la Vera",{"v":2062,"d":"2,062"},"RETO  < 5.000",{"$nulls":31},2849,"C2849","Fabricación de otras máquinas herramienta"]
[10213,"Villar del Pedroso",582,"RETO  < 5.000",{"$nulls":31},289,"C289","Fabricación de otra maquinaria para usos específicos"]
[10214,"Villar de Plasencia",233,"RETO  < 5.000",{"$nulls":31},2891,"C2891","Fabricación de maquinaria para la industria metalúrgica"]
[10215,"Villasbuenas de Gata",376,"RETO  < 5.000",{"$nulls":31},2892,"C2892","Fabricación de maquinaria para las industrias extractivas y de la construcción"]
[10216,"Zarza de Granadilla",{"v":1800,"d":"1,800"},"RETO  < 5.000",{"$nulls":31},2893,"C2893","Fabricación de maquinaria para la industria de la alimentación, bebidas y tabaco"]
[10217,"Zarza de Montánchez",548,"RETO  < 5.000",{"$nulls":31},2894,"C2894","Fabricación de maquinaria para las industrias textil, de la confección y del cuero"]
[10218,"Zarza la Mayor",{"v":1199,"d":"1,199"},"RETO  < 5.000",{"$nulls":31},2895,"C2895","Fabricación de maquinaria para la industria del papel y del cartón"]
[10219,"Zorita",{"v":1332,"d":"1,332"},"RETO  < 5.000",{"$nulls":31},2896,"C2896","Fabricación de maquinaria para la industria del plástico y el caucho"]
[10901,"Rosalejo",{"v":1334,"d":"1,334"},"RETO  < 5.000",{"$nulls":31},2899,"C2899","Fabricación de otra maquinaria para usos específicos n.c.o.p."]
[10902,"Vegaviana",868,"RETO  < 5.000",{"$nulls":31},29,"C29","Fabricación de vehículos de motor, remolques y semirremolques"]
[10903,"Alagón del Río",932,"RETO  < 5.000",{"$nulls":31},291,"C291","Fabricación de vehículos de motor"]
[10904,"Tiétar",879,"RETO  < 5.000",{"$nulls":31},2910,"C2910","Fabricación de vehículos de motor"]
[10905,"Pueblonuevo de Miramontes",782,"RETO  < 5.000",{"$nulls":31},292,"C292","Fabricación de carrocerías para vehículos de motor; fabricación de remolques y semirremolques"]
[{"$nulls":35},2920,"C2920","Fabricación de carrocerías para vehículos de motor; fabricación de remolques y semirremolques"]
[{"$nulls":35},293,"C293","Fabricación de componentes, piezas y accesorios para vehículos de motor"]
[{"$nulls":35},2931,"C2931","Fabricación de equipos eléctricos y electrónicos para vehículos de motor"]
[{"$nulls":35},2932,"C2932","Fabricación de otros componentes, piezas y accesorios para vehículos de motor"]
[{"$nulls":35},30,"C30","Fabricación de otro material de transporte"]
[{"$nulls":35},301,"C301","Construcción naval"]
[{"$nulls":35},3011,"C3011","Construcción de barcos y estructuras flotantes"]
[{"$nulls":35},3012,"C3012","Construcción de embarcaciones de recreo y deporte"]
[{"$nulls":35},302,"C302","Fabricación de locomotoras y material ferroviario"]
[{"$nulls":35},3020,"C3020","Fabricación de locomotoras y material ferroviario"]
[{"$nulls":35},303,"C303","Construcción aeronáutica y espacial y su maquinaria"]
[{"$nulls":35},3030,"C3030","Construcción aeronáutica y espacial y su maquinaria"]
[{"$nulls":35},304,"C304","Fabricación de vehículos militares de combate"]
[{"$nulls":35},3040,"C3040","Fabricación de vehículos militares de combate"]
[{"$nulls":35},309,"C309","Fabricación de otro material de transporte n.c.o.p."]
[{"$nulls":35},3091,"C3091","Fabricación de motocicletas"]
[{"$nulls":35},3092,"C3092","Fabricación de bicicletas y de vehículos para personas con discapacidad"]
[{"$nulls":35},3099,"C3099","Fabricación de otro material de transporte n.c.o.p."]
[{"$nulls":35},31,"C31","Fabricación de muebles"]
[{"$nulls":35},310,"C310","Fabricación de muebles"]
[{"$nulls":35},3101,"C3101","Fabricación de muebles de oficina y de establecimientos comerciales"]
[{"$nulls":35},3102,"C3102","Fabricación de muebles de cocina"]
[{"$nulls":35},3103,"C3103","Fabricación de colchones"]
[{"$nulls":35},3109,"C3109","Fabricación de otros muebles"]
[{"$nulls":35},32,"C32","Otras industrias manufactureras"]
[{"$nulls":35},321,"C321","Fabricación de artículos de joyería, bisutería y similares"]
[{"$nulls":35},3211,"C3211","Fabricación de monedas"]
[{"$nulls":35},3212,"C3212","Fabricación de artículos de joyería y artículos similares"]
[{"$nulls":35},3213,"C3213","Fabricación de artículos de bisutería y artículos similares"]
[{"$nulls":35},322,"C322","Fabricación de instrumentos musicales"]
[{"$nulls":35},3220,"C3220","Fabricación de instrumentos musicales"]
[{"$nulls":35},323,"C323","Fabricación de artículos de deporte"]
[{"$nulls":35},3230,"C3230","Fabricación de artículos de deporte"]
[{"$nulls":35},324,"C324","Fabricación de juegos y juguetes"]
[{"$nulls":35},3240,"C3240","Fabricación de juegos y juguetes"]
[{"$nulls":35},325,"C325","Fabricación de instrumentos y suministros médicos y odontológicos"]
[{"$nulls":35},3250,"C3250","Fabricación de instrumentos y suministros médicos y odontológicos"]
[{"$nulls":35},329,"C329","Industrias manufactureras n.c.o.p."]
[{"$nulls":35},3291,"C3291","Fabricación de escobas, brochas y cepillos"]
[{"$nulls":35},3299,"C3299","Otras industrias manufactureras n.c.o.p."]
[{"$nulls":35},33,"C33","Reparación e instalación de maquinaria y equipo"]
[{"$nulls":35},331,"C331","Reparación de productos metálicos, maquinaria y equipo"]
[{"$nulls":35},3311,"C3311","Reparación de productos metálicos"]
[{"$nulls":35},3312,"C3312","Reparación de maquinaria"]
[{"$nulls":35},3313,"C3313","Reparación de equipos electrónicos y ópticos"]
[{"$nulls":35},3314,"C3314","Reparación de equipos eléctricos"]
[{"$nulls":35},3315,"C3315","Reparación y mantenimiento naval"]
[{"$nulls":35},3316,"C3316","Reparación y mantenimiento aeronáutico y espacial"]
[{"$nulls":35},3317,"C3317","Reparación y mantenimiento de otro material de transporte"]
[{"$nulls":35},3319,"C3319","Reparación de otros equipos"]
[{"$nulls":35},332,"C332","Instalación de máquinas y equipos industriales"]
[{"$nulls":35},3320,"C3320","Instalación de máquinas y equipos industriales"]
[{"$nulls":35},"D","D","Suministro de energía eléctrica, gas, vapor y aire acondicionado"]
[{"$nulls":35},35,"D35","Suministro de energía eléctrica, gas, vapor y aire acondicionado"]
[{"$nulls":35},351,"D351","Producción, transporte y distribución de energía eléctrica"]
[{"$nulls":35},3512,"D3512","Transporte de energía eléctrica"]
[{"$nulls":35},3513,"D3513","Distribución de energía eléctrica"]
[{"$nulls":35},3514,"D3514","Comercio de energía eléctrica"]
[{"$nulls":35},3515,"D3515","Producción de energía hidroeléctrica"]
[{"$nulls":35},3516,"D3516","Producción de energía eléctrica de origen térmico convencional"]
[{"$nulls":35},3517,"D3517","Producción de energía eléctrica de origen nuclear"]
[{"$nulls":35},3518,"D3518","Producción de energía eléctrica de origen eólico"]
[{"$nulls":35},3519,"D3519","Producción de energía eléctrica de otros tipos"]
[{"$nulls":35},352,"D352","Producción de gas; distribución por tubería de combustibles gaseosos"]
[{"$nulls":35},3521,"D3521","Producción de gas"]
[{"$nulls":35},3522,"D3522","Distribución por tubería de combustibles gaseosos"]
[{"$nulls":35},3523,"D3523","Comercio de gas por tubería"]
[{"$nulls":35},353,"D353","Suministro de vapor y aire acondicionado"]
[{"$nulls":35},3530,"D3530","Suministro de vapor y aire acondicionado"]
[{"$nulls":35},"E","E","Suministro de agua, actividades de saneamiento, gestión de residuos y descontaminación"]
[{"$nulls":35},36,"E36","Captación, depuración y distribución de agua"]
[{"$nulls":35},360,"E360","Captación, depuración y distribución de agua"]
[{"$nulls":35},3600,"E3600","Captación, depuración y distribución de agua"]
[{"$nulls":35},37,"E37","Recogida y tratamiento de aguas residuales"]
[{"$nulls":35},370,"E370","Recogida y tratamiento de aguas residuales"]
[{"$nulls":35},3700,"E3700","Recogida y tratamiento de aguas residuales"]
[{"$nulls":35},38,"E38","Recogida, tratamiento y eliminación de residuos; valorización"]
[{"$nulls":35},381,"E381","Recogida de residuos"]
[{"$nulls":35},3811,"E3811","Recogida de residuos no peligrosos"]
[{"$nulls":35},3812,"E3812","Recogida de residuos peligrosos"]
[{"$nulls":35},382,"E382","Tratamiento y eliminación de residuos"]
[{"$nulls":35},3821,"E3821","Tratamiento y eliminación de residuos no peligrosos"]
[{"$nulls":35},3822,"E3822","Tratamiento y eliminación de residuos peligrosos"]
[{"$nulls":35},383,"E383","Valorización"]
[{"$nulls":35},3831,"E3831","Separación y clasificación de materiales"]
[{"$nulls":35},3832,"E3832","Valorización de materiales ya clasificados"]
[{"$nulls":35},39,"E39","Actividades de descontaminación y otros servicios de gestión de residuos"]
[{"$nulls":35},390,"E390","Actividades de descontaminación y otros servicios de gestión de residuos"]
[{"$nulls":35},3900,"E3900","Actividades de descontaminación y otros servicios de gestión de residuos"]
[{"$nulls":35},"F","F","Construcción"]
[{"$nulls":35},41,"F41","Construcción de edificios"]
[{"$nulls":35},411,"F411","Promoción inmobiliaria"]
[{"$nulls":35},4110,"F4110","Promoción inmobiliaria"]
[{"$nulls":35},412,"F412","Construcción de edificios"]
[{"$nulls":35},4121,"F4121","Construcción de edificios residenciales"]
[{"$nulls":35},4122,"F4122","Construcción de edificios no residenciales"]
[{"$nulls":35},42,"F42","Ingeniería civil"]
[{"$nulls":35},421,"F421","Construcción de carreteras y vías férreas, puentes y túneles"]
[{"$nulls":35},4211,"F4211","Construcción de carreteras y autopistas"]
[{"$nulls":35},4212,"F4212","Construcción de vías férreas de superficie y subterráneas"]
[{"$nulls":35},4213,"F4213","Construcción de puentes y túneles"]
[{"$nulls":35},422,"F422","Construcción de redes"]
[{"$nulls":35},4221,"F4221","Construcción de redes para fluidos"]
[{"$nulls":35},4222,"F4222","Construcción de redes eléctricas y de telecomunicaciones"]
[{"$nulls":35},429,"F429","Construcción de otros proyectos de ingeniería civil"]
[{"$nulls":35},4291,"F4291","Obras hidráulicas"]
[{"$nulls":35},4299,"F4299","Construcción de otros proyectos de ingeniería civil n.c.o.p."]
[{"$nulls":35},43,"F43","Actividades de construcción especializada"]
[{"$nulls":35},431,"F431","Demolición y preparación de terrenos"]
[{"$nulls":35},4311,"F4311","Demolición"]
[{"$nulls":35},4312,"F4312","Preparación de terrenos"]
[{"$nulls":35},4313,"F4313","Perforaciones y sondeos"]
[{"$nulls":35},432,"F432","Instalaciones eléctricas, de fontanería y otras instalaciones en obras de construcción"]
[{"$nulls":35},4321,"F4321","Instalaciones eléctricas"]
[{"$nulls":35},4322,"F4322","Fontanería, instalaciones de sistemas de calefacción y aire acondicionado"]
[{"$nulls":35},4329,"F4329","Otras instalaciones en obras de construcción"]
[{"$nulls":35},433,"F433","Acabado de edificios"]
[{"$nulls":35},4331,"F4331","Revocamiento"]
[{"$nulls":35},4332,"F4332","Instalación de carpintería"]
[{"$nulls":35},4333,"F4333","Revestimiento de suelos y paredes"]
[{"$nulls":35},4334,"F4334","Pintura y acristalamiento"]
[{"$nulls":35},4339,"F4339","Otro acabado de edificios"]
[{"$nulls":35},439,"F439","Otras actividades de construcción especializada"]
[{"$nulls":35},4391,"F4391","Construcción de cubiertas"]
[{"$nulls":35},4399,"F4399","Otras actividades de construcción especializada n.c.o.p."]
[{"$nulls":35},"G","G","Comercio al por mayor y al por menor; reparación de vehículos de motor y motocicletas"]
[{"$nulls":35},45,"G45","Venta y reparación de vehículos de motor y motocicletas"]
[{"$nulls":35},451,"G451","Venta de vehículos de motor"]
[{"$nulls":35},4511,"G4511","Venta de automóviles y vehículos de motor ligeros"]
[{"$nulls":35},4519,"G4519","Venta de otros vehículos de motor"]
[{"$nulls":35},452,"G452","Mantenimiento y reparación de vehículos de motor"]
[{"$nulls":35},4520,"G4520","Mantenimiento y reparación de vehículos de motor"]
[{"$nulls":35},453,"G453","Comercio de repuestos y accesorios de vehículos de motor"]
[{"$nulls":35},4531,"G4531","Comercio al por mayor de repuestos y accesorios de vehículos de motor"]
[{"$nulls":35},4532,"G4532","Comercio al por menor de repuestos y accesorios de vehículos de motor"]
[{"$nulls":35},454,"G454","Venta, mantenimiento y reparación de motocicletas y de sus repuestos y accesorios"]
[{"$nulls":35},4540,"G4540","Venta, mantenimiento y reparación de motocicletas y de sus repuestos y accesorios"]
[{"$nulls":35},46,"G46","Comercio al por mayor e intermediarios del comercio, excepto de vehículos de motor y motocicletas"]
[{"$nulls":35},461,"G461","Intermediarios del comercio"]
[{"$nulls":35},4611,"G4611","Intermediarios del comercio de materias primas agrarias, animales vivos, materias primas textiles y productos semielaborados"]
[{"$nulls":35},4612,"G4612","Intermediarios del comercio de combustibles, minerales, metales y productos químicos industriales"]
[{"$nulls":35},4613,"G4613","Intermediarios del comercio de la madera y materiales de construcción"]
[{"$nulls":35},4614,"G4614","Intermediarios del comercio de maquinaria, equipo industrial, embarcaciones y aeronaves"]
[{"$nulls":35},4615,"G4615","Intermediarios del comercio de muebles, artículos para el hogar y ferretería"]
[{"$nulls":35},4616,"G4616","Intermediarios del comercio de textiles, prendas de vestir, peletería, calzado y artículos de cuero"]
[{"$nulls":35},4617,"G4617","Intermediarios del comercio de productos alimenticios, bebidas y tabaco"]
[{"$nulls":35},4618,"G4618","Intermediarios del comercio especializados en la venta de otros productos específicos"]
[{"$nulls":35},4619,"G4619","Intermediarios del comercio de productos diversos"]
[{"$nulls":35},462,"G462","Comercio al por mayor de materias primas agrarias y de animales vivos"]
[{"$nulls":35},4621,"G4621","Comercio al por mayor de cereales, tabaco en rama, simientes y alimentos para animales"]
[{"$nulls":35},4622,"G4622","Comercio al por mayor de flores y plantas"]
[{"$nulls":35},4623,"G4623","Comercio al por mayor de animales vivos"]
[{"$nulls":35},4624,"G4624","Comercio al por mayor de cueros y pieles"]
[{"$nulls":35},463,"G463","Comercio al por mayor de productos alimenticios, bebidas y tabaco"]
[{"$nulls":35},4631,"G4631","Comercio al por mayor de frutas y hortalizas"]
[{"$nulls":35},4632,"G4632","Comercio al por mayor de carne y productos cárnicos"]
[{"$nulls":35},4633,"G4633","Comercio al por mayor de productos lácteos, huevos, aceites y grasas comestibles"]
[{"$nulls":35},4634,"G4634","Comercio al por mayor de bebidas"]
[{"$nulls":35},4635,"G4635","Comercio al por mayor de productos del tabaco"]
[{"$nulls":35},4636,"G4636","Comercio al por mayor de azúcar, chocolate y confitería"]
[{"$nulls":35},4637,"G4637","Comercio al por mayor de café, té, cacao y especias"]
[{"$nulls":35},4638,"G4638","Comercio al por mayor de pescados y mariscos y otros productos alimenticios"]
[{"$nulls":35},4639,"G4639","Comercio al por mayor, no especializado, de productos alimenticios, bebidas y tabaco"]
[{"$nulls":35},464,"G464","Comercio al por mayor de artículos de uso doméstico"]
[{"$nulls":35},4641,"G4641","Comercio al por mayor de textiles"]
[{"$nulls":35},4642,"G4642","Comercio al por mayor de prendas de vestir y calzado"]
[{"$nulls":35},4643,"G4643","Comercio al por mayor de aparatos electrodomésticos"]
[{"$nulls":35},4644,"G4644","Comercio al por mayor de porcelana, cristalería y artículos de limpieza"]
[{"$nulls":35},4645,"G4645","Comercio al por mayor de productos perfumería y cosmética"]
[{"$nulls":35},4646,"G4646","Comercio al por mayor de productos farmacéuticos"]
[{"$nulls":35},4647,"G4647","Comercio al por mayor de muebles, alfombras y aparatos de iluminación"]
[{"$nulls":35},4648,"G4648","Comercio al por mayor de artículos de relojería y joyería"]
[{"$nulls":35},4649,"G4649","Comercio al por mayor de otros artículos de uso doméstico"]
[{"$nulls":35},465,"G465","Comercio al por mayor de equipos para las tecnologías de la información y las comunicaciones"]
[{"$nulls":35},4651,"G4651","Comercio al por mayor de ordenadores, equipos periféricos y programas informáticos"]
[{"$nulls":35},4652,"G4652","Comercio al por mayor de equipos electrónicos y de telecomunicaciones y sus componentes"]
[{"$nulls":35},466,"G466","Comercio al por mayor de otra maquinaria, equipos y suministros"]
[{"$nulls":35},4661,"G4661","Comercio al por mayor de maquinaria, equipos y suministros agrícolas"]
[{"$nulls":35},4662,"G4662","Comercio al por mayor de máquinas herramienta"]
[{"$nulls":35},4663,"G4663","Comercio al por mayor de maquinaria para la minería, la construcción y la ingeniería civil"]
[{"$nulls":35},4664,"G4664","Comercio al por mayor de maquinaria para la industria textil y de máquinas de coser y tricotar"]
[{"$nulls":35},4665,"G4665","Comercio al por mayor de muebles de oficina"]
[{"$nulls":35},4666,"G4666","Comercio al por mayor de otra maquinaria y equipo de oficina"]
[{"$nulls":35},4669,"G4669","Comercio al por mayor de otra maquinaria y equipo"]
[{"$nulls":35},467,"G467","Otro comercio al por mayor especializado"]
[{"$nulls":35},4671,"G4671","Comercio al por mayor de combustibles sólidos, líquidos y gaseosos, y productos similares"]
[{"$nulls":35},4672,"G4672","Comercio al por mayor de metales y minerales metálicos"]
[{"$nulls":35},4673,"G4673","Comercio al por mayor de madera, materiales de construcción y aparatos sanitarios"]
[{"$nulls":35},4674,"G4674","Comercio al por mayor de ferretería, fontanería y calefacción"]
[{"$nulls":35},4675,"G4675","Comercio al por mayor de productos químicos"]
[{"$nulls":35},4676,"G4676","Comercio al por mayor de otros productos semielaborados"]
[{"$nulls":35},4677,"G4677","Comercio al por mayor de chatarra y productos de desecho"]
[{"$nulls":35},469,"G469","Comercio al por mayor no especializado"]
[{"$nulls":35},4690,"G4690","Comercio al por mayor no especializado"]
[{"$nulls":35},47,"G47","Comercio al por menor, excepto de vehículos de motor y motocicletas"]
[{"$nulls":35},471,"G471","Comercio al por menor en establecimientos no especializados"]
[{"$nulls":35},4711,"G4711","Comercio al por menor en establecimientos no especializados, con predominio en productos alimenticios, bebidas y tabaco"]
[{"$nulls":35},4719,"G4719","Otro comercio al por menor en establecimientos no especializados"]
[{"$nulls":35},472,"G472","Comercio al por menor de productos alimenticios, bebidas y tabaco en establecimientos especializados"]
[{"$nulls":35},4721,"G4721","Comercio al por menor de frutas y hortalizas en establecimientos especializados"]
[{"$nulls":35},4722,"G4722","Comercio al por menor de carne y productos cárnicos en establecimientos especializados"]
[{"$nulls":35},4723,"G4723","Comercio al por menor de pescados y mariscos en establecimientos especializados"]
[{"$nulls":35},4724,"G4724","Comercio al por menor de pan y productos de panadería, confitería y pastelería en establecimientos especializados"]
[{"$nulls":35},4725,"G4725","Comercio al por menor de bebidas en establecimientos especializados"]
[{"$nulls":35},4726,"G4726","Comercio al por menor de productos de tabaco en establecimientos especializados"]
[{"$nulls":35},4729,"G4729","Otro comercio al por menor de productos alimenticios en establecimientos especializados"]
[{"$nulls":35},473,"G473","Comercio al por menor de combustible para la automoción en establecimientos especializados"]
[{"$nulls":35},4730,"G4730","Comercio al por menor de combustible para la automoción en establecimientos especializados"]
[{"$nulls":35},474,"G474","Comercio al por menor de equipos para las tecnologías de la información y las comunicaciones en establecimientos especializados"]
[{"$nulls":35},4741,"G4741","Comercio al por menor de ordenadores, equipos periféricos y programas informáticos en establecimientos especializados"]
[{"$nulls":35},4742,"G4742","Comercio al por menor de equipos de telecomunicaciones en establecimientos especializados"]
[{"$nulls":35},4743,"G4743","Comercio al por menor de equipos de audio y vídeo en establecimientos especializados"]
[{"$nulls":35},475,"G475","Comercio al por menor de otros artículos de uso doméstico en establecimientos especializados"]
[{"$nulls":35},4751,"G4751","Comercio al por menor de textiles en establecimientos especializados"]
[{"$nulls":35},4752,"G4752","Comercio al por menor de ferretería, pintura y vidrio en establecimientos especializados"]
[{"$nulls":35},4753,"G4753","Comercio al por menor de alfombras, moquetas y revestimientos de paredes y suelos en establecimientos especializados"]
[{"$nulls":35},4754,"G4754","Comercio al por menor de aparatos electrodomésticos en establecimientos especializados"]
[{"$nulls":35},4759,"G4759","Comercio al por menor de muebles, aparatos de iluminación y otros artículos de uso doméstico en establecimientos especializados"]
[{"$nulls":35},476,"G476","Comercio al por menor de artículos culturales y recreativos en establecimientos especializados"]
[{"$nulls":35},4761,"G4761","Comercio al por menor de libros en establecimientos especializados"]
[{"$nulls":35},4762,"G4762","Comercio al por menor de periódicos y artículos de papelería en establecimientos especializados"]
[{"$nulls":35},4763,"G4763","Comercio al por menor de grabaciones de música y vídeo en establecimientos especializados"]
[{"$nulls":35},4764,"G4764","Comercio al por menor de artículos deportivos en establecimientos especializados"]
[{"$nulls":35},4765,"G4765","Comercio al por menor de juegos y juguetes en establecimientos especializados"]
[{"$nulls":35},477,"G477","Comercio al por menor de otros artículos en establecimientos especializados"]
[{"$nulls":35},4771,"G4771","Comercio al por menor de prendas de vestir en establecimientos especializados"]
[{"$nulls":35},4772,"G4772","Comercio al por menor de calzado y artículos de cuero en establecimientos especializados"]
[{"$nulls":35},4773,"G4773","Comercio al por menor de productos farmacéuticos en establecimientos especializados"]
[{"$nulls":35},4774,"G4774","Comercio al por menor de artículos médicos y ortopédicos en establecimientos especializados"]
[{"$nulls":35},4775,"G4775","Comercio al por menor de productos cosméticos e higiénicos en establecimientos especializados"]
[{"$nulls":35},4776,"G4776","Comercio al por menor de flores, plantas, semillas, fertilizantes, animales de compañía y alimentos para los mismos en establecimientos especializados"]
[{"$nulls":35},4777,"G4777","Comercio al por menor de artículos de relojería y joyería en establecimientos especializados"]
[{"$nulls":35},4778,"G4778","Otro comercio al por menor de artículos nuevos en establecimientos especializados"]
[{"$nulls":35},4779,"G4779","Comercio al por menor de artículos de segunda mano en establecimientos"]
[{"$nulls":35},478,"G478","Comercio al por menor en puestos de venta y en mercadillos"]
[{"$nulls":35},4781,"G4781","Comercio al por menor de productos alimenticios, bebidas y tabaco en puestos de venta y en mercadillos"]
[{"$nulls":35},4782,"G4782","Comercio al por menor de productos textiles, prendas de vestir y calzado en puestos de venta y en mercadillos"]
[{"$nulls":35},4789,"G4789","Comercio al por menor de otros productos en puestos de venta y en mercadillos"]
[{"$nulls":35},479,"G479","Comercio al por menor no realizado ni en establecimientos, ni en puestos de venta ni en mercadillos"]
[{"$nulls":35},4791,"G4791","Comercio al por menor por correspondencia o Internet"]
[{"$nulls":35},4799,"G4799","Otro comercio al por menor no realizado ni en establecimientos, ni en puestos de venta ni en mercadillos"]
[{"$nulls":35},"H","H","Transporte y almacenamiento"]
[{"$nulls":35},49,"H49","Transporte terrestre y por tubería"]
[{"$nulls":35},491,"H491","Transporte interurbano de pasajeros por ferrocarril"]
[{"$nulls":35},4910,"H4910","Transporte interurbano de pasajeros por ferrocarril"]
[{"$nulls":35},492,"H492","Transporte de mercancías por ferrocarril"]
[{"$nulls":35},4920,"H4920","Transporte de mercancías por ferrocarril"]
[{"$nulls":35},493,"H493","Otro transporte terrestre de pasajeros"]
[{"$nulls":35},4931,"H4931","Transporte terrestre urbano y suburbano de pasajeros"]
[{"$nulls":35},4932,"H4932","Transporte por taxi"]
[{"$nulls":35},4939,"H4939","tipos de transporte terrestre de pasajeros n.c.o.p."]
[{"$nulls":35},494,"H494","Transporte de mercancías por carretera y servicios de mudanza"]
[{"$nulls":35},4941,"H4941","Transporte de mercancías por carretera"]
[{"$nulls":35},4942,"H4942","Servicios de mudanza"]
[{"$nulls":35},495,"H495","Transporte por tubería"]
[{"$nulls":35},4950,"H4950","Transporte por tubería"]
[{"$nulls":35},50,"H50","Transporte marítimo y por vías navegables interiores"]
[{"$nulls":35},501,"H501","Transporte marítimo de pasajeros"]
[{"$nulls":35},5010,"H5010","Transporte marítimo de pasajeros"]
[{"$nulls":35},502,"H502","Transporte marítimo de mercancías"]
[{"$nulls":35},5020,"H5020","Transporte marítimo de mercancías"]
[{"$nulls":35},503,"H503","Transporte de pasajeros por vías navegables interiores"]
[{"$nulls":35},5030,"H5030","Transporte de pasajeros por vías navegables interiores"]
[{"$nulls":35},504,"H504","Transporte de mercancías por vías navegables interiores"]
[{"$nulls":35},5040,"H5040","Transporte de mercancías por vías navegables interiores"]
[{"$nulls":35},51,"H51","Transporte aéreo"]
[{"$nulls":35},511,"H511","Transporte aéreo de pasajeros"]
[{"$nulls":35},5110,"H5110","Transporte aéreo de pasajeros"]
[{"$nulls":35},512,"H512","Transporte aéreo de mercancías y transporte espacial"]
[{"$nulls":35},5121,"H5121","Transporte aéreo de mercancías"]
[{"$nulls":35},5122,"H5122","Transporte espacial"]
[{"$nulls":35},52,"H52","Almacenamiento y actividades anexas al transporte"]
[{"$nulls":35},521,"H521","Depósito y almacenamiento"]
[{"$nulls":35},5210,"H5210","Depósito y almacenamiento"]
[{"$nulls":35},522,"H522","Actividades anexas al transporte"]
[{"$nulls":35},5221,"H5221","Actividades anexas al transporte terrestre"]
[{"$nulls":35},5222,"H5222","Actividades anexas al transporte marítimo y por vías navegables interiores"]
[{"$nulls":35},5223,"H5223","Actividades anexas al transporte aéreo"]
[{"$nulls":35},5224,"H5224","Manipulación de mercancías"]
[{"$nulls":35},5229,"H5229","Otras actividades anexas al transporte"]
[{"$nulls":35},53,"H53","Actividades postales y de correos"]
[{"$nulls":35},531,"H531","Actividades postales sometidas a la obligación del servicio universal"]
[{"$nulls":35},5310,"H5310","Actividades postales sometidas a la obligación del servicio universal"]
[{"$nulls":35},532,"H532","Otras actividades postales y de correos"]
[{"$nulls":35},5320,"H5320","Otras actividades postales y de correos"]
[{"$nulls":35},"I","I","Hostelería"]
[{"$nulls":35},55,"I55","Servicios de alojamiento"]
[{"$nulls":35},551,"I551","Hoteles y alojamientos similares"]
[{"$nulls":35},5510,"I5510","Hoteles y alojamientos similares"]
[{"$nulls":35},552,"I552","Alojamientos turísticos y otros alojamientos de corta estancia"]
[{"$nulls":35},5520,"I5520","Alojamientos turísticos y otros alojamientos de corta estancia"]
[{"$nulls":35},553,"I553","Campings y aparcamientos para caravanas"]
[{"$nulls":35},5530,"I5530","Campings y aparcamientos para caravanas"]
[{"$nulls":35},559,"I559","Otros alojamientos"]
[{"$nulls":35},5590,"I5590","Otros alojamientos"]
[{"$nulls":35},56,"I56","Servicios de comidas y bebidas"]
[{"$nulls":35},561,"I561","Restaurantes y puestos de comidas"]
[{"$nulls":35},5610,"I5610","Restaurantes y puestos de comidas"]
[{"$nulls":35},562,"I562","Provisión de comidas preparadas para eventos y otros servicios de comidas"]
[{"$nulls":35},5621,"I5621","Provisión de comidas preparadas para eventos"]
[{"$nulls":35},5629,"I5629","Otros servicios de comidas"]
[{"$nulls":35},563,"I563","Establecimientos de bebidas"]
[{"$nulls":35},5630,"I5630","Establecimientos de bebidas"]
[{"$nulls":35},"J","J","Información y comunicaciones"]
[{"$nulls":35},58,"J58","Edición"]
[{"$nulls":35},581,"J581","Edición de libros, periódicos y otras actividades editoriales"]
[{"$nulls":35},5811,"J5811","Edición de libros"]
[{"$nulls":35},5812,"J5812","Edición de directorios y guías de direcciones postales"]
[{"$nulls":35},5813,"J5813","Edición de periódicos"]
[{"$nulls":35},5814,"J5814","Edición de revistas"]
[{"$nulls":35},5819,"J5819","Otras actividades editoriales"]
[{"$nulls":35},582,"J582","Edición de programas informáticos"]
[{"$nulls":35},5821,"J5821","Edición de videojuegos"]
[{"$nulls":35},5829,"J5829","Edición de otros programas informáticos"]
[{"$nulls":35},59,"J59","Actividades cinematográficas, de vídeo y de programas de televisión, grabación de sonido y edición musical"]
[{"$nulls":35},591,"J591","Actividades cinematográficas, de vídeo y de programas de televisión"]
[{"$nulls":35},5912,"J5912","Actividades de postproducción cinematográfica, de vídeo y de programas de televisión"]
[{"$nulls":35},5914,"J5914","Actividades de exhibición cinematográfica"]
[{"$nulls":35},5915,"J5915","Actividades de producción cinematográfica y de vídeo"]
[{"$nulls":35},5916,"J5916","Actividades de producciones de programas de televisión"]
[{"$nulls":35},5917,"J5917","Actividades de distribución cinematográfica y de vídeo"]
[{"$nulls":35},5918,"J5918","Actividades de distribución de programas de televisión"]
[{"$nulls":35},592,"J592","Actividades de grabación de sonido y edición musical"]
[{"$nulls":35},5920,"J5920","Actividades de grabación de sonido y edición musical"]
[{"$nulls":35},60,"J60","Actividades de programación y emisión de radio y televisión"]
[{"$nulls":35},601,"J601","Actividades de radiodifusión"]
[{"$nulls":35},6010,"J6010","Actividades de radiodifusión"]
[{"$nulls":35},602,"J602","Actividades de programación y emisión de televisión"]
[{"$nulls":35},6020,"J6020","Actividades de programación y emisión de televisión"]
[{"$nulls":35},61,"J61","Telecomunicaciones"]
[{"$nulls":35},611,"J611","Telecomunicaciones por cable"]
[{"$nulls":35},6110,"J6110","Telecomunicaciones por cable"]
[{"$nulls":35},612,"J612","Telecomunicaciones inalámbricas"]
[{"$nulls":35},6120,"J6120","Telecomunicaciones inalámbricas"]
[{"$nulls":35},613,"J613","Telecomunicaciones por satélite"]
[{"$nulls":35},6130,"J6130","Telecomunicaciones por satélite"]
[{"$nulls":35},619,"J619","Otras actividades de telecomunicaciones"]
[{"$nulls":35},6190,"J6190","Otras actividades de telecomunicaciones"]
[{"$nulls":35},62,"J62","Programación, consultoría y otras actividades relacionadas con la informática"]
[{"$nulls":35},620,"J620","Programación, consultoría y otras actividades relacionadas con la informática"]
[{"$nulls":35},6201,"J6201","Actividades de programación informática"]
[{"$nulls":35},6202,"J6202","Actividades de consultoría informática"]
[{"$nulls":35},6203,"J6203","Gestión de recursos informáticos"]
[{"$nulls":35},6209,"J6209","Otros servicios relacionados con las tecnologías de la información y la informática"]
[{"$nulls":35},63,"J63","Servicios de información"]
[{"$nulls":35},631,"J631","Proceso de datos, hosting y actividades relacionadas; portales web"]
[{"$nulls":35},6311,"J6311","Proceso de datos, hosting y actividades relacionadas"]
[{"$nulls":35},6312,"J6312","Portales web"]
[{"$nulls":35},639,"J639","Otros servicios de información"]
[{"$nulls":35},6391,"J6391","Actividades de las agencias de noticias"]
[{"$nulls":35},6399,"J6399","Otros servicios de información n.c.o.p."]
[{"$nulls":35},"K","K","Actividades financieras y de seguros"]
[{"$nulls":35},64,"K64","Servicios financieros, excepto seguros y fondos de pensiones"]
[{"$nulls":35},641,"K641","Intermediación monetaria"]
[{"$nulls":35},6411,"K6411","Banco central"]
[{"$nulls":35},6419,"K6419","Otra intermediación monetaria"]
[{"$nulls":35},642,"K642","Actividades de las sociedades holding"]
[{"$nulls":35},6420,"K6420","Actividades de las sociedades holding"]
[{"$nulls":35},643,"K643","Inversión colectiva, fondos y entidades financieras similares"]
[{"$nulls":35},6430,"K6430","Inversión colectiva, fondos y entidades financieras similares"]
[{"$nulls":35},649,"K649","Otros servicios financieros, excepto seguros y fondos de pensiones"]
[{"$nulls":35},6491,"K6491","Arrendamiento financiero"]
[{"$nulls":35},6492,"K6492","Otras actividades crediticias"]
[{"$nulls":35},6499,"K6499","Otros servicios financieros, excepto seguros y fondos de pensiones n.c.o.p."]
[{"$nulls":35},65,"K65","Seguros, reaseguros y fondos de pensiones, excepto Seguridad Social obligatoria"]
[{"$nulls":35},651,"K651","Seguros"]
[{"$nulls":35},6511,"K6511","Seguros de vida"]
[{"$nulls":35},6512,"K6512","Seguros distintos de los seguros de vida"]
[{"$nulls":35},652,"K652","Reaseguros"]
[{"$nulls":35},6520,"K6520","Reaseguros"]
[{"$nulls":35},653,"K653","Fondos de pensiones"]
[{"$nulls":35},6530,"K6530","Fondos de pensiones"]
[{"$nulls":35},66,"K66","Actividades auxiliares a los servicios financieros y a los seguros"]
[{"$nulls":35},661,"K661","Actividades auxiliares a los servicios financieros, excepto seguros y fondos de pensiones"]
[{"$nulls":35},6611,"K6611","Administración de mercados financieros"]
[{"$nulls":35},6612,"K6612","Actividades de intermediación en operaciones con valores y otros activos"]
[{"$nulls":35},6619,"K6619","Otras actividades auxiliares a los servicios financieros, excepto seguros y fondos de pensiones"]
[{"$nulls":35},662,"K662","Actividades auxiliares a seguros y fondos de pensiones"]
[{"$nulls":35},6621,"K6621","Evaluación de riesgos y daños"]
[{"$nulls":35},6622,"K6622","Actividades de agentes y corredores de seguros"]
[{"$nulls":35},6629,"K6629","Otras actividades auxiliares a seguros y fondos de pensiones"]
[{"$nulls":35},663,"K663","Actividades de gestión de fondos"]
[{"$nulls":35},6630,"K6630","Actividades de gestión de fondos"]
[{"$nulls":35},"L","L","Actividades inmobiliarias"]
[{"$nulls":35},68,"L68","Actividades inmobiliarias"]
[{"$nulls":35},681,"L681","Compraventa de bienes inmobiliarios por cuenta propia"]
[{"$nulls":35},6810,"L6810","Compraventa de bienes inmobiliarios por cuenta propia"]
[{"$nulls":35},682,"L682","Alquiler de bienes inmobiliarios por cuenta propia"]
[{"$nulls":35},6820,"L6820","Alquiler de bienes inmobiliarios por cuenta propia"]
[{"$nulls":35},683,"L683","Actividades inmobiliarias por cuenta de terceros"]
[{"$nulls":35},6831,"L6831","Agentes de la propiedad inmobiliaria"]
[{"$nulls":35},6832,"L6832","Gestión y administración de la propiedad inmobiliaria"]
[{"$nulls":35},"M","M","Actividades profesionales, científicas y técnicas"]
[{"$nulls":35},69,"M69","Actividades jurídicas y de contabilidad"]
[{"$nulls":35},691,"M691","Actividades jurídicas"]
[{"$nulls":35},6910,"M6910","Actividades jurídicas"]
[{"$nulls":35},692,"M692","Actividades de contabilidad, teneduría de libros, auditoría y asesoría fiscal"]
[{"$nulls":35},6920,"M6920","Actividades de contabilidad, teneduría de libros, auditoría y asesoría fiscal"]
[{"$nulls":35},70,"M70","Actividades de las sedes centrales; actividades de consultoría de gestión empresarial"]
[{"$nulls":35},701,"M701","Actividades de las sedes centrales"]
[{"$nulls":35},7010,"M7010","Actividades de las sedes centrales"]
[{"$nulls":35},702,"M702","Actividades de consultoría de gestión empresarial"]
[{"$nulls":35},7021,"M7021","Relaciones públicas y comunicación"]
[{"$nulls":35},7022,"M7022","Otras actividades de consultoría de gestión empresarial"]
[{"$nulls":35},71,"M71","Servicios técnicos de arquitectura e ingeniería; ensayos y análisis técnicos"]
[{"$nulls":35},711,"M711","Servicios técnicos de arquitectura e ingeniería y otras actividades relacionadas con el asesoramiento técnico"]
[{"$nulls":35},7111,"M7111","Servicios técnicos de arquitectura"]
[{"$nulls":35},7112,"M7112","Servicios técnicos de ingeniería y otras actividades relacionadas con el asesoramiento técnico"]
[{"$nulls":35},712,"M712","Ensayos y análisis técnicos"]
[{"$nulls":35},7120,"M7120","Ensayos y análisis técnicos"]
[{"$nulls":35},72,"M72","Investigación y desarrollo"]
[{"$nulls":35},721,"M721","Investigación y desarrollo experimental en ciencias naturales y técnicas"]
[{"$nulls":35},7211,"M7211","Investigación y desarrollo experimental en biotecnología"]
[{"$nulls":35},7219,"M7219","Otra investigación y desarrollo experimental en ciencias naturales y técnicas"]
[{"$nulls":35},722,"M722","Investigación y desarrollo experimental en ciencias sociales y humanidades"]
[{"$nulls":35},7220,"M7220","Investigación y desarrollo experimental en ciencias sociales y humanidades"]
[{"$nulls":35},73,"M73","Publicidad y estudios de mercado"]
[{"$nulls":35},731,"M731","Publicidad"]
[{"$nulls":35},7311,"M7311","Agencias de publicidad"]
[{"$nulls":35},7312,"M7312","Servicios de representación de medios de comunicación"]
[{"$nulls":35},732,"M732","Estudio de mercado y realización de encuestas de opinión pública"]
[{"$nulls":35},7320,"M7320","Estudio de mercado y realización de encuestas de opinión pública"]
[{"$nulls":35},74,"M74","Otras actividades profesionales, científicas y técnicas"]
[{"$nulls":35},741,"M741","Actividades de diseño especializado"]
[{"$nulls":35},7410,"M7410","Actividades de diseño especializado"]
[{"$nulls":35},742,"M742","Actividades de fotografía"]
[{"$nulls":35},7420,"M7420","Actividades de fotografía"]
[{"$nulls":35},743,"M743","Actividades de traducción e interpretación"]
[{"$nulls":35},7430,"M7430","Actividades de traducción e interpretación"]
[{"$nulls":35},749,"M749","Otras actividades profesionales, científicas y técnicas n.c.o.p."]
[{"$nulls":35},7490,"M7490","Otras actividades profesionales, científicas y técnicas n.c.o.p."]
[{"$nulls":35},75,"M75","Actividades veterinarias"]
[{"$nulls":35},750,"M750","Actividades veterinarias"]
[{"$nulls":35},7500,"M7500","Actividades veterinarias"]
[{"$nulls":35},"N","N","Actividades administrativas y servicios auxliares"]
[{"$nulls":35},77,"N77","Actividades de alquiler"]
[{"$nulls":35},771,"N771","Alquiler de vehículos de motor"]
[{"$nulls":35},7711,"N7711","Alquiler de automóviles y vehículos de motor ligeros"]
[{"$nulls":35},7712,"N7712","Alquiler de camiones"]
[{"$nulls":35},772,"N772","Alquiler de efectos personales y artículos de uso doméstico"]
[{"$nulls":35},7721,"N7721","Alquiler de artículos de ocio y deportivos"]
[{"$nulls":35},7722,"N7722","Alquiler de cintas de vídeo y discos"]
[{"$nulls":35},7729,"N7729","Alquiler de otros efectos personales y artículos de uso doméstico"]
[{"$nulls":35},773,"N773","Alquiler de otra maquinaria, equipos y bienes tangibles"]
[{"$nulls":35},7731,"N7731","Alquiler de maquinaria y equipo de uso agrícola"]
[{"$nulls":35},7732,"N7732","Alquiler de maquinaria y equipo para la construcción e ingeniería civil"]
[{"$nulls":35},7733,"N7733","Alquiler de maquinaria y equipo de oficina, incluidos ordenadores"]
[{"$nulls":35},7734,"N7734","Alquiler de medios de navegación"]
[{"$nulls":35},7735,"N7735","Alquiler de medios de transporte aéreo"]
[{"$nulls":35},7739,"N7739","Alquiler de otra maquinaria, equipos y bienes tangibles n.c.o.p."]
[{"$nulls":35},774,"N774","Arrendamiento de la propiedad intelectual y productos similares, excepto trabajos protegidos por los derechos de autor"]
[{"$nulls":35},7740,"N7740","Arrendamiento de la propiedad intelectual y productos similares, excepto trabajos protegidos por los derechos de autor"]
[{"$nulls":35},78,"N78","Actividades relacionadas con el empleo"]
[{"$nulls":35},781,"N781","Actividades de las agencias de colocación"]
[{"$nulls":35},7810,"N7810","Actividades de las agencias de colocación"]
[{"$nulls":35},782,"N782","Actividades de las empresas de trabajo temporal"]
[{"$nulls":35},7820,"N7820","Actividades de las empresas de trabajo temporal"]
[{"$nulls":35},783,"N783","Otra provisión de recursos humanos"]
[{"$nulls":35},7830,"N7830","Otra provisión de recursos humanos"]
[{"$nulls":35},79,"N79","Actividades de agencias de viajes, operadores turísticos, servicios de reservas y actividades relacionadas con los mismos"]
[{"$nulls":35},791,"N791","Actividades de agencias de viajes y operadores turísticos"]
[{"$nulls":35},7911,"N7911","Actividades de las agencias de viajes"]
[{"$nulls":35},7912,"N7912","Actividades de los operadores turísticos"]
[{"$nulls":35},799,"N799","Otros servicios de reservas y actividades relacionadas con los mismos"]
[{"$nulls":35},7990,"N7990","Otros servicios de reservas y actividades relacionadas con los mismos"]
[{"$nulls":35},80,"N80","Actividades de seguridad e investigación"]
[{"$nulls":35},801,"N801","Actividades de seguridad privada"]
[{"$nulls":35},8010,"N8010","Actividades de seguridad privada"]
[{"$nulls":35},802,"N802","Servicios de sistemas de seguridad"]
[{"$nulls":35},8020,"N8020","Servicios de sistemas de seguridad"]
[{"$nulls":35},803,"N803","Actividades de investigación"]
[{"$nulls":35},8030,"N8030","Actividades de investigación"]
[{"$nulls":35},81,"N81","Servicios a edificios y actividades de jardinería"]
[{"$nulls":35},811,"N811","Servicios integrales a edificios e instalaciones"]
[{"$nulls":35},8110,"N8110","Servicios integrales a edificios e instalaciones"]
[{"$nulls":35},812,"N812","Actividades de limpieza"]
[{"$nulls":35},8121,"N8121","Limpieza general de edificios"]
[{"$nulls":35},8122,"N8122","Otras actividades de limpieza industrial y de edificios"]
[{"$nulls":35},8129,"N8129","Otras actividades de limpieza"]
[{"$nulls":35},813,"N813","Actividades de jardinería"]
[{"$nulls":35},8130,"N8130","Actividades de jardinería"]
[{"$nulls":35},82,"N82","Actividades administrativas de oficina y otras actividades auxiliares a las empresas"]
[{"$nulls":35},821,"N821","Actividades administrativas y auxiliares de oficina"]
[{"$nulls":35},8211,"N8211","Servicios administrativos combinados"]
[{"$nulls":35},8219,"N8219","Actividades de fotocopiado, preparación de documentos y otras actividades especializadas de oficina"]
[{"$nulls":35},822,"N822","Actividades de los centros de llamadas"]
[{"$nulls":35},8220,"N8220","Actividades de los centros de llamadas"]
[{"$nulls":35},823,"N823","Organización de convenciones y ferias de muestras"]
[{"$nulls":35},8230,"N8230","Organización de convenciones y ferias de muestras"]
[{"$nulls":35},829,"N829","Actividades de apoyo a las empresas n.c.o.p."]
[{"$nulls":35},8291,"N8291","Actividades de las agencias de cobros y de información comercial"]
[{"$nulls":35},8292,"N8292","Actividades de envasado y empaquetado"]
[{"$nulls":35},8299,"N8299","Otras actividades de apoyo a las empresas n.c.o.p."]
[{"$nulls":35},"O","O","Administración Pública y defensa; Seguridad Social obligatoria"]
[{"$nulls":35},84,"O84","Administración Pública y defensa; Seguridad Social obligatoria"]
[{"$nulls":35},841,"O841","Administración Pública y de la política económica y social"]
[{"$nulls":35},8411,"O8411","Actividades generales de la Administración Pública"]
[{"$nulls":35},8412,"O8412","Regulación de las actividades sanitarias, educativas y culturales y otros servicios sociales, excepto Seguridad Social"]
[{"$nulls":35},8413,"O8413","Regulación de la actividad económica y contribución a su mayor eficiencia"]
[{"$nulls":35},842,"O842","Prestación de servicios a la comunidad en general"]
[{"$nulls":35},8421,"O8421","Asuntos exteriores"]
[{"$nulls":35},8422,"O8422","Defensa"]
[{"$nulls":35},8423,"O8423","Justicia"]
[{"$nulls":35},8424,"O8424","Orden público y seguridad"]
[{"$nulls":35},8425,"O8425","Protección civil"]
[{"$nulls":35},843,"O843","Seguridad Social obligatoria"]
[{"$nulls":35},8430,"O8430","Seguridad Social obligatoria"]
[{"$nulls":35},"P","P","Educación"]
[{"$nulls":35},85,"P85","Educación"]
[{"$nulls":35},851,"P851","Educación preprimaria"]
[{"$nulls":35},8510,"P8510","Educación preprimaria"]
[{"$nulls":35},852,"P852","Educación primaria"]
[{"$nulls":35},8520,"P8520","Educación primaria"]
[{"$nulls":35},853,"P853","Educación secundaria"]
[{"$nulls":35},8531,"P8531","Educación secundaria general"]
[{"$nulls":35},8532,"P8532","Educación secundaria técnica y profesional"]
[{"$nulls":35},854,"P854","Educación postsecundaria"]
[{"$nulls":35},8541,"P8541","Educación postsecundaria no terciaria"]
[{"$nulls":35},8543,"P8543","Educación universitaria"]
[{"$nulls":35},8544,"P8544","Educación terciaria no universitaria"]
[{"$nulls":35},855,"P855","Otra educación"]
[{"$nulls":35},8551,"P8551","Educación deportiva y recreativa"]
[{"$nulls":35},8552,"P8552","Educación cultural"]
[{"$nulls":35},8553,"P8553","Actividades de las escuelas de conducción y pilotaje"]
[{"$nulls":35},8559,"P8559","Otra educación n.c.o.p."]
[{"$nulls":35},856,"P856","Actividades auxiliares a la educación"]
[{"$nulls":35},8560,"P8560","Actividades auxiliares a la educación"]
[{"$nulls":35},"Q","Q","Actividades sanitarias y de servicios sociales"]
[{"$nulls":35},86,"Q86","Actividades sanitarias"]
[{"$nulls":35},861,"Q861","Actividades hospitalarias"]
[{"$nulls":35},8610,"Q8610","Actividades hospitalarias"]
[{"$nulls":35},862,"Q862","Actividades médicas y odontológicas"]
[{"$nulls":35},8621,"Q8621","Actividades de medicina general"]
[{"$nulls":35},8622,"Q8622","Actividades de medicina especializada"]
[{"$nulls":35},8623,"Q8623","Actividades odontológicas"]
[{"$nulls":35},869,"Q869","Otras actividades sanitarias"]
[{"$nulls":35},8690,"Q8690","Otras actividades sanitarias"]
[{"$nulls":35},87,"Q87","Asistencia en establecimientos residenciales"]
[{"$nulls":35},871,"Q871","Asistencia en establecimientos residenciales con cuidados sanitarios"]
[{"$nulls":35},8710,"Q8710","Asistencia en establecimientos residenciales con cuidados sanitarios"]
[{"$nulls":35},872,"Q872","Asistencia en establecimientos residenciales para personas con discapacidad intelectual, enfermedad mental y drogodependencia"]
[{"$nulls":35},8720,"Q8720","Asistencia en establecimientos residenciales para personas con discapacidad intelectual, enfermedad mental y drogodependencia"]
[{"$nulls":35},873,"Q873","Asistencia en establecimientos residenciales para personas mayores y con discapacidad física"]
[{"$nulls":35},8731,"Q8731","Asistencia en establecimientos residenciales para personas mayores"]
[{"$nulls":35},8732,"Q8732","Asistencia en establecimientos residenciales para personas con discapacidad física"]
[{"$nulls":35},879,"Q879","Otras actividades de asistencia en establecimientos residenciales"]
[{"$nulls":35},8790,"Q8790","Otras actividades de asistencia en establecimientos residenciales"]
[{"$nulls":35},88,"Q88","Actividades de servicios sociales sin alojamiento"]
[{"$nulls":35},881,"Q881","Actividades de servicios sociales sin alojamiento para personas mayores y con discapacidad"]
[{"$nulls":35},8811,"Q8811","Actividades de servicios sociales sin alojamiento para personas mayores"]
[{"$nulls":35},8812,"Q8812","Actividades de servicios sociales sin alojamiento para personas con discapacidad"]
[{"$nulls":35},889,"Q889","Otros actividades de servicios sociales sin alojamiento"]
[{"$nulls":35},8891,"Q8891","Actividades de cuidado diurno de niños"]
[{"$nulls":35},8899,"Q8899","Otros actividades de servicios sociales sin alojamiento n.c.o.p."]
[{"$nulls":35},"R","R","Actividades artísticas, recreativas y de entrenimiento"]
[{"$nulls":35},90,"R90","Actividades de creación, artísticas y espectáculos"]
[{"$nulls":35},900,"R900","Actividades de creación, artísticas y espectáculos"]
[{"$nulls":35},9001,"R9001","Artes escénicas"]
[{"$nulls":35},9002,"R9002","Actividades auxiliares a las artes escénicas"]
[{"$nulls":35},9003,"R9003","Creación artística y literaria"]
[{"$nulls":35},9004,"R9004","Gestión de salas de espectáculos"]
[{"$nulls":35},91,"R91","Actividades de bibliotecas, archivos, museos y otras actividades culturales"]
[{"$nulls":35},910,"R910","Actividades de bibliotecas, archivos, museos y otras actividades culturales"]
[{"$nulls":35},9102,"R9102","Actividades de museos"]
[{"$nulls":35},9103,"R9103","Gestión de lugares y edificios históricos"]
[{"$nulls":35},9104,"R9104","Actividades de los jardines botánicos, parques zoológicos y reservas naturales"]
[{"$nulls":35},9105,"R9105","Actividades de bibliotecas"]
[{"$nulls":35},9106,"R9106","Actividades de archivos"]
[{"$nulls":35},92,"R92","Actividades de juegos de azar y apuestas"]
[{"$nulls":35},920,"R920","Actividades de juegos de azar y apuestas"]
[{"$nulls":35},9200,"R9200","Actividades de juegos de azar y apuestas"]
[{"$nulls":35},93,"R93","Actividades deportivas, recreativas y de entretenimiento"]
[{"$nulls":35},931,"R931","Actividades deportivas"]
[{"$nulls":35},9311,"R9311","Gestión de instalaciones deportivas"]
[{"$nulls":35},9312,"R9312","Actividades de los clubes deportivos"]
[{"$nulls":35},9313,"R9313","Actividades de los gimnasios"]
[{"$nulls":35},9319,"R9319","Otras actividades deportivas"]
[{"$nulls":35},932,"R932","Actividades recreativas y de entretenimiento"]
[{"$nulls":35},9321,"R9321","Actividades de los parques de atracciones y los parques temáticos"]
[{"$nulls":35},9329,"R9329","Otras actividades recreativas y de entretenimiento"]
[{"$nulls":35},"S","S","Otros servicios"]
[{"$nulls":35},94,"S94","Actividades asociativas"]
[{"$nulls":35},941,"S941","Actividades de organizaciones empresariales, profesionales y patronales"]
[{"$nulls":35},9411,"S9411","Actividades de organizaciones empresariales y patronales"]
[{"$nulls":35},9412,"S9412","Actividades de organizaciones profesionales"]
[{"$nulls":35},942,"S942","Actividades sindicales"]
[{"$nulls":35},9420,"S9420","Actividades sindicales"]
[{"$nulls":35},949,"S949","Otras actividades asociativas"]
[{"$nulls":35},9491,"S9491","Actividades de organizaciones religiosas"]
[{"$nulls":35},9492,"S9492","Actividades de organizaciones políticas"]
[{"$nulls":35},9499,"S9499","Otras actividades asociativas n.c.o.p."]
[{"$nulls":35},95,"S95","Reparación de ordenadores, efectos personales y artículos de uso doméstico"]
[{"$nulls":35},951,"S951","Reparación de ordenadores y equipos de comunicación"]
[{"$nulls":35},9511,"S9511","Reparación de ordenadores y equipos periféricos"]
[{"$nulls":35},9512,"S9512","Reparación de equipos de comunicación"]
[{"$nulls":35},952,"S952","Reparación de efectos personales y artículos de uso doméstico"]
[{"$nulls":35},9521,"S9521","Reparación de aparatos electrónicos de audio y vídeo de uso doméstico"]
[{"$nulls":35},9522,"S9522","Reparación de aparatos electrodomésticos y de equipos para el hogar y el jardín"]
[{"$nulls":35},9523,"S9523","Reparación de calzado y artículos de cuero"]
[{"$nulls":35},9524,"S9524","Reparación de muebles y artículos de menaje"]
[{"$nulls":35},9525,"S9525","Reparación de relojes y joyería"]
[{"$nulls":35},9529,"S9529","Reparación de otros efectos personales y artículos de uso doméstico"]
[{"$nulls":35},96,"S96","Otros servicios personales"]
[{"$nulls":35},960,"S960","Otros servicios personales"]
[{"$nulls":35},9601,"S9601","Lavado y limpieza de prendas textiles y de piel"]
[{"$nulls":35},9602,"S9602","Peluquería y otros tratamientos de belleza"]
[{"$nulls":35},9603,"S9603","Pompas fúnebres y actividades relacionadas"]
[{"$nulls":35},9604,"S9604","Actividades de mantenimiento físico"]
[{"$nulls":35},9609,"S9609","Otras servicios personales n.c.o.p."]
[{"$nulls":35},"T","T","Actividades de los hogares como empleadores de personal doméstico; actividades de los hogares como productores de bienes y servicios para uso propio"]
[{"$nulls":35},97,"T97","Actividades de los hogares como empleadores de personal doméstico"]
[{"$nulls":35},970,"T970","Actividades de los hogares como empleadores de personal doméstico"]
[{"$nulls":35},9700,"T9700","Actividades de los hogares como empleadores de personal doméstico"]
[{"$nulls":35},98,"T98","Actividades de los hogares como productores de bienes y servicios para uso propio"]
[{"$nulls":35},981,"T981","Actividades de los hogares como productores de bienes para uso propio"]
[{"$nulls":35},9810,"T9810","Actividades de los hogares como productores de bienes para uso propio"]
[{"$nulls":35},982,"T982","Actividades de los hogares como productores de servicios para uso propio"]
[{"$nulls":35},9820,"T9820","Actividades de los hogares como productores de servicios para uso propio"]
[{"$nulls":35},"U","U","Actividades de organizaciones y organismos extraterritoriales"]
[{"$nulls":35},99,"U99","Actividades de organizaciones y organismos extraterritoriales"]
[{"$nulls":35},990,"U990","Actividades de organizaciones y organismos extraterritoriales"]
[{"$nulls":35},9900,"U9900","Actividades de organizaciones y organismos extraterritoriales"]

{"sheet":"PI 6","index":3,"n_rows":12,"n_cols":6,"rows_kept":12,"hidden":true,"merged":[[1,1,1,4],[2,1,2,4],[11,1,11,2]]}
[]
[null,{"$f":"IF(OR(DATOS!C18=6),\"PROGRAMA DE INCENTIVOS 6\",\"NO UTILIZAR ESTA HOJA PARA EL CÁLCULO\")","v":"NO UTILIZAR ESTA HOJA PARA EL CÁLCULO"}]
[null,"DATOS DE ENTRADA"]
[null,"Ps: Potencia instalación de TÉRMICA (kW)",{"$f":"DATOS!C58","v":{"v":0,"d":"0.00"}},"¿Sector?",{"$f":"DATOS!C57","v":0},{"$f":"IF(DATOS!C13=Auxiliar!Z8,\"F1\",IF(DATOS!C13=Auxiliar!Z10,\"F6\",IF(DATOS!C13=Auxiliar!Z11,\"F7\",IF(DATOS!C13=Auxiliar!Z12,\"F8\",IF(DATOS!C13=Auxiliar!Z13,\"F9\",IF(AND(DATOS!C13=Auxiliar!Z9,C4>400),\"F2\",IF(AND(DATOS!C13=Auxiliar!Z9,C4<=400,C4>100),\"F3\",IF(AND(DATOS!C13=Auxiliar!Z9,C4<=100,C4>50),\"F4\",IF(AND(DATOS!C13=Auxiliar!Z9,C4<=50),\"F5\",\"No aplica\")))))))))","v":"No aplica"}]
[null,"Ceg: Inversión en inst. TÉRMICA+COMPL. (sin IVA)",{"$f":"DATOS!C59","v":{"v":0,"d":"0.00 €"}},"¿Se realiza Nueva Distribución Interior?",{"$f":"DATOS!C60","v":0},{"$f":"IF(OR(DATOS!C13=Auxiliar!Z8,DATOS!C13=Auxiliar!Z9,DATOS!C13=Auxiliar!Z12,DATOS!C13=Auxiliar!Z13),\"Aplica\",\"No aplica por tipo de instalación\")","v":"No aplica por tipo de instalación"}]
[null,"Ceug: coste elegible unitario GEN. (sin IVA)",{"$f":"IF(DATOS!C18=6,C5/C4,0)","v":{"v":0,"d":"0.00 €"}},"¿Se Desmantela instalación existente?",{"$f":"DATOS!C61","v":0},{"$f":"IF(AND(OR(DATOS!C13=Auxiliar!Z9,DATOS!C13=Auxiliar!Z10,DATOS!C13=Auxiliar!Z11),E6=\"SI\"),\"Aplica\",\"No aplica por tipo de instalación\")","v":"No aplica por tipo de instalación"}]
[null,"Módulo GENERACIÓN (€/kWp)",{"$f":"IF(E4=\"Sector Residencial\",VLOOKUP(F4,Auxiliar!G64:L72,5,FALSE),VLOOKUP(F4,Auxiliar!G74:L82,5,FALSE))","v":{"$error":"#N/A"}},"Número de viviendas que utilizarán la instalación",{"$f":"DATOS!C62","v":0}]
[null,"Módulo COMPLEMENTARIO (€/kWp)",{"$f":"IF(OR(E5=\"NO\",E5=0),0,IF(AND(E5=\"Radiadores\",F5=\"SI\"),Auxiliar!K85,IF(F5=\"No aplica por tipo de instalación\",0,Auxiliar!K84)))+IF(AND(DATOS!C13=Auxiliar!Z9,E6=\"SI\"),Auxiliar!K86,IF(AND(E6=\"SI\",OR(DATOS!C13=Auxiliar!Z10,DATOS!C13=Auxiliar!Z11)),Auxiliar!K87,0))","v":{"v":0,"d":"0.00 €"}},"Valor de Ayuda máximo GENERACIÓN (€/vivienda)",{"$f":"IF(E4=\"Sector Residencial\",VLOOKUP(F4,Auxiliar!G64:L72,6,FALSE),VLOOKUP(F4,Auxiliar!G74:L82,6,FALSE))","v":{"$error":"#N/A"}}]
[null,"Coste subv. unit. máx. TOTAL GEN. (€/kWp)",{"$f":"C7+C8","v":{"$error":"#N/A"}},"Valor de Ayuda máximo COMPLEMENTARIO (€/vivienda)",{"$f":"IF(E5=\"NO\",0,IF(AND(E5=\"Radiadores\",F5=\"SI\"),Auxiliar!L85,IF(F5=\"No aplica por tipo de instalación\",0,Auxiliar!L84)))+IF(AND(DATOS!C13=Auxiliar!Z9,E6=\"SI\"),Auxiliar!L86,IF(AND(E6=\"SI\",OR(DATOS!C13=Auxiliar!Z10,DATOS!C13=Auxiliar!Z11)),Auxiliar!L87,0))","v":{"v":0,"d":"0.00 €"}}]
[null,"Coste subv. unit. FINAL de GENERACIÓN (€/kWp)",{"$f":"IF(DATOS!C18=6,MIN(C6,C9),0)","v":{"v":0,"d":"0.00 €"}}]
[null,"Ayuda Total en GENERACIÓN",{"$f":"C10*C4","v":{"v":0,"d":"0.00 €"}},"Valor de Ayuda MÁXIMO (€/vivienda)",{"$f":"SUM(E8:E9)","v":{"$error":"#N/A"}}]
[null,"AYUDA TOTAL",null,{"$f":"IF(E4=\"Otro sector (agropecuario, etc)\",\"No subvencionable\",MIN(C11,E11))","v":{"$error":"#N/A"}},{"$f":"IF(E4=\"Otro sector (agropecuario, etc)\",\"No aplica\",D12/C5)","v":{"$error":"#N/A"}}]

{"sheet":"PI 1-2-3","index":4,"n_rows":17,"n_cols":6,"rows_kept":17,"hidden":true,"merged":[[1,1,1,4],[2,1,2,2],[2,3,2,4],[16,1,16,2]]}
[]
[null,{"$f":"IF(OR(DATOS!C18=1,DATOS!C18=2,DATOS!C18=3),\"PROGRAMA DE INCENTIVOS 1-2-3\",\"NO UTILIZAR ESTA HOJA PARA EL CÁLCULO\")","v":"NO UTILIZAR ESTA HOJA PARA EL CÁLCULO"}]
[null,"DATOS DE GENERACIÓN",null,"DATOS DE ALMACENAMIENTO"]
[null,"Ps: Potencia instalación de GENERACIÓN(kWp)",{"$f":"IF(DATOS!C18=3,0,IF(DATOS!C28>5000,5000,DATOS!C28))","v":{"v":0,"d":"0.00"}},"Localidad",{"$f":"DATOS!C22","v":0}]
[null,"Ceg: Inversión en GENERACIÓN+COMPL. (sin IVA)",{"$f":"DATOS!C29","v":{"v":0,"d":"0.00 €"}},"RETO DEMOGRÁFICO",{"$f":"VLOOKUP(E4,Auxiliar!B2:D389,3,FALSE)","v":{"$error":"#N/A"}}]
[null,"Ceug: coste elegible unitario GEN. (sin IVA)",{"$f":"IF(DATOS!C18=3,0,C5/C4)","v":{"$error":"#DIV/0!"}},"¿Se aplica la ayuda adicional por Población?",{"$f":"IF(E5=\"RETO  < 5.000\",\"SI\",\"NO\")","v":{"$error":"#N/A"}}]
[null,"Cuf: coste unitario inst. REFERENCIA (Anexo III)",{"$f":"VLOOKUP(F15,Auxiliar!$G$28:$P$34,5,FALSE)","v":{"v":86,"d":"86.00 €"}},"Tipo de empresa",{"$f":"IF(AND(DATOS!C23<Auxiliar!N4,OR(DATOS!C24<Auxiliar!O4,DATOS!C25<Auxiliar!P4)),\"Pequeña\",IF(AND(DATOS!C23<Auxiliar!N3,OR(DATOS!C24<Auxiliar!O3,DATOS!C25<Auxiliar!P3)),\"Mediana\",\"Grande\"))","v":"Pequeña"},{"$f":"IF(E7=\"Grande\",8,IF(E7=\"Mediana\",9,10))","v":10}]
[null,"Csug: coste subvencionable unitario GEN.",{"$f":"IF((C6-C7)<0,0,C6-C7)","v":{"$error":"#DIV/0!"}},"Cap: Capaciad de ALMACENAMIENTO (kWh)",{"$f":"DATOS!C30","v":{"v":0,"d":"0.00"}}]
[null,"Csumg: coste subv. unit. máx. GENERACIÓN",{"$f":"VLOOKUP(F15,Auxiliar!$G$28:$P$34,6,FALSE)","v":{"v":4723,"d":"4,723.00 €"}},"Cea: Inversión en ALMACENAMIENTO (sin IVA)",{"$f":"DATOS!C31","v":{"v":0,"d":"0.00 €"}}]
[null,"Csumcg 1: coste unit. máx. COMPL. Amianto",{"$f":"IF(OR(DATOS!C13=Auxiliar!Z3,DATOS!C13=Auxiliar!Z5),IF(DATOS!C26=\"SI\",VLOOKUP(F15,Auxiliar!$G$28:$P$34,7,FALSE),0),0)","v":{"v":0,"d":"0.00 €"}},"¿Se cumple el ratio ALMACENAMIENTO/GENERACIÓN?",{"$f":"IF(E8/DATOS!C28>5,\"NO\",\"SI\")","v":{"$error":"#DIV/0!"}}]
[null,"Csumcg 2: coste unit. máx. COMPL. Marquesina",{"$f":"IF(OR(DATOS!C13=Auxiliar!Z3,DATOS!C13=Auxiliar!Z5),IF(DATOS!C27=\"SI\",500,0),0)","v":{"v":0,"d":"0.00 €"}},"Csua=Ceua: coste subvencionable unitario ALM.",{"$f":"IF(E12=0,0,E9/E8)","v":{"$error":"#DIV/0!"}}]
[null,"Csumtg: coste subv. unit. máx. TOTAL GEN.",{"$f":"SUM(C9:C11)","v":{"v":4723,"d":"4,723.00 €"}},"Csumta: coste subv. unit. máx. ALMACENAMIENTO",{"$f":"IF(OR(DATOS!C13=Auxiliar!Z3,DATOS!C13=Auxiliar!Z4),0,VLOOKUP(F12,Auxiliar!$G$36:$P$39,6,FALSE))","v":{"v":700,"d":"700.00 €"}},{"$f":"IF(E8=\"\",\"\",IF(E8<=10,Auxiliar!G39,IF(AND(E8>10,E8<=100),Auxiliar!G38,IF(AND(E8>100,E8<=5000),Auxiliar!G37,Auxiliar!G36))))","v":"F11"}]
[null,"Csufg: coste subv. unit. FINAL de GEN. (€/kWp)",{"$f":"IF(DATOS!C18=3,0,MIN(C8,C12))","v":{"$error":"#DIV/0!"}},"Csufa: coste subv. unit. FINAL de ALM. (€/kWp)",{"$f":"IF(E10=\"NO\",0,MIN(E11,E12))","v":{"$error":"#DIV/0!"}}]
[null,"Cstg: coste subvencionable total GEN. (€/kWp)",{"$f":"C13*C4","v":{"$error":"#DIV/0!"}},"Csta: coste subvencionable total ALM. (€/kWp)",{"$f":"E13*E8","v":{"$error":"#DIV/0!"}}]
[null,"Porcentaje de Ayuda en GENERACIÓN",{"$f":"IF(DATOS!C18=3,0,VLOOKUP(F15,Auxiliar!G28:P34,F7,FALSE)+IF(E5=\"RETO  < 5.000\",0.05,0))","v":{"$error":"#N/A"}},"Porcentaje de Ayuda en ALMACENAMIENTO",{"$f":"IF(E8=\"\",0,VLOOKUP(F12,Auxiliar!G36:P39,F7,FALSE))","v":{"v":0.65,"d":"65%"}},{"$f":"IF(OR(DATOS!C13=Auxiliar!Z3,DATOS!C13=Auxiliar!Z5),IF(C4<=10,Auxiliar!G31,IF(AND(C4>10,C4<=100),Auxiliar!G30,IF(AND(C4>100,C4<=1000),Auxiliar!G29,Auxiliar!G28))),IF(C4<=20,Auxiliar!G34,IF(AND(C4>20,C4<=500),Auxiliar!G33,IF(AND(C4>500,C4<=5000),Auxiliar!G32,Auxiliar!G32))))","v":"F7"}]
[null,"Ayuda Total en GENERACIÓN",{"$f":"C14*C15","v":{"$error":"#DIV/0!"}},"Ayuda Total en ALMACENAMIENTO",{"$f":"E14*E15","v":{"$error":"#DIV/0!"}}]
[null,"AYUDA TOTAL",null,{"$f":"C16+E16","v":{"$error":"#DIV/0!"}},{"$f":"D17/(IF(DATOS!C13=Auxiliar!Z7,0,C5)+IF(OR(DATOS!C13=Auxiliar!Z3,DATOS!C13=Auxiliar!Z4),0,E9))","v":{"$error":"#DIV/0!"}}]

{"sheet":"PI 4-5","index":5,"n_rows":16,"n_cols":6,"rows_kept":16,"hidden":true,"merged":[[1,1,1,4],[2,1,2,2],[2,3,2,4],[15,1,15,2]]}
[]
[null,{"$f":"IF(OR(DATOS!C18=4,DATOS!C18=5),\"PROGRAMA DE INCENTIVOS 4-5\",\"NO UTILIZAR ESTA HOJA PARA EL CÁLCULO\")","v":"NO UTILIZAR ESTA HOJA PARA EL CÁLCULO"}]
[null,"DATOS DE GENERACIÓN",null,"DATOS DE ALMACENAMIENTO"]
[null,"¿Sector?",{"$f":"DATOS!C40","v":0},"Localidad",{"$f":"DATOS!C39","v":0}]
[null,"¿Autoconsumo colectivo?",{"$f":"DATOS!C41","v":0},"RETO DEMOGRÁFICO",{"$f":"VLOOKUP(E4,Auxiliar!B2:D389,3,FALSE)","v":{"$error":"#N/A"}},{"$f":"IF(C5=\"NO\",5,6)","v":6}]
[{"$nulls":3},"¿Se aplica la ayuda adicional por Población?",{"$f":"IF(E5=\"RETO  < 5.000\",\"SI\",\"NO\")","v":{"$error":"#N/A"}}]
[null,"Ps: Potencia instalación de GENERACIÓN(kWp)",{"$f":"IF(DATOS!C18=5,0,IF(DATOS!C44>5000,5000,DATOS!C44))","v":0},"Cap: Capaciad de ALMACENAMIENTO (kWh)",{"$f":"DATOS!C46","v":{"v":0,"d":"0.00"}}]
[null,"Ceg: Inversión en GENERACIÓN+COMPL. (sin IVA)",{"$f":"DATOS!C45","v":{"v":0,"d":"0.00 €"}},"Cea: Inversión en ALMACENAMIENTO (sin IVA)",{"$f":"DATOS!C47","v":{"v":0,"d":"0.00 €"}}]
[null,"Ceug: coste elegible unitario GEN. (sin IVA)",{"$f":"IF(DATOS!C18=5,0,C8/C7)","v":{"$error":"#DIV/0!"}},"Ceua: coste subvencionable unitario ALM. (sin IVA)",{"$f":"IF(E10=0,0,E8/E7)","v":{"$error":"#DIV/0!"}}]
[null,"Módulo de GENERACIÓN (€/kWp)",{"$f":"IF(C4=\"Sector Residencial\",VLOOKUP(F14,Auxiliar!$G$42:$N$48,F5,FALSE),VLOOKUP(F14,Auxiliar!$G$50:$N$56,F5,FALSE))","v":{"v":4550,"d":"4,550.00 €"}},"Módulo de ALMACENAMIENTO (€/kWp)",{"$f":"IF(OR(DATOS!C13=Auxiliar!Z3,DATOS!C13=Auxiliar!Z4),0,VLOOKUP(F10,Auxiliar!$G$58:$N$61,6,FALSE))","v":{"v":490,"d":"490.00 €"}},{"$f":"IF(E7=\"\",\"\",IF(E7<=10,\"F11\",IF(AND(E7>10,E7<=100),\"F10\",IF(AND(E7>100,E7<=5000),\"F9\",\"F8\"))))","v":"F11"}]
[null,"Módulo complementario (€/kWp)",{"$f":"IF(DATOS!C42=\"SI\",VLOOKUP(F14,Auxiliar!$G$42:$N$48,7,FALSE),0)+IF(OR(DATOS!C13=Auxiliar!Z3,DATOS!C13=Auxiliar!Z5),IF(DATOS!C43=\"SI\",120,0),0)","v":{"v":0,"d":"0.00 €"}},"¿Se cumple el ratio ALMACENAMIENTO/GENERACIÓN?",{"$f":"IF(E7/DATOS!C44>5,\"NO\",\"SI\")","v":{"$error":"#DIV/0!"}}]
[null,"Módulo adicional GENERACIÓN (€/kWp)",{"$f":"IF(E5=\"RETO  < 5.000\",VLOOKUP(F14,Auxiliar!$G$42:$N$48,8,FALSE),0)","v":{"$error":"#N/A"}},"Módulo adicional ALMACENAMIENTO (€/kWp)",{"$f":"IF(E5=\"RETO  < 5.000\",15,0)","v":{"$error":"#N/A"}}]
[null,"Coste subv. unit. máx. TOTAL GEN. (€/kWp)",{"$f":"C10+C11+C12","v":{"$error":"#N/A"}},"Coste subv. unit. máx. TOTAL ALM. (€/kWp)",{"$f":"E10+E12","v":{"$error":"#N/A"}}]
[null,"Coste subv. unit. FINAL de GENERACIÓN (€/kWp)",{"$f":"IF(DATOS!C18=5,0,MIN(C9,C13))","v":{"$error":"#DIV/0!"}},"Coste subv. unit. FINAL de ALMACENAMIENTO (€/kWp)",{"$f":"IF(E11=\"NO\",0,MIN(E13,E9))","v":{"$error":"#DIV/0!"}},{"$f":"IF(OR(DATOS!C13=Auxiliar!Z3,DATOS!C13=Auxiliar!Z5),IF(C7<=10,Auxiliar!G45,IF(AND(C7>10,C7<=100),Auxiliar!G44,IF(AND(C7>100,C7<=1000),Auxiliar!G43,Auxiliar!G42))),IF(C7<=20,Auxiliar!G48,IF(AND(C7>20,C7<=500),Auxiliar!G47,IF(AND(C7>500,C7<=5000),Auxiliar!G46,Auxiliar!G46))))","v":"F7"}]
[null,"Ayuda Total en GENERACIÓN",{"$f":"C14*C7","v":{"$error":"#DIV/0!"}},"Ayuda Total en ALMACENAMIENTO",{"$f":"E14*E7","v":{"$error":"#DIV/0!"}}]
[null,"AYUDA TOTAL",null,{"$f":"IF(C4=\"Otro sector (agropecuario, etc)\",\"No subvencionable el sector indicado\",C15+E15)","v":{"$error":"#DIV/0!"}},{"$f":"IF(C4=\"Otro sector (agropecuario, etc)\",\"No aplica\",D16/(IF(DATOS!C13=Auxiliar!Z7,0,C8)+IF(OR(DATOS!C13=Auxiliar!Z3,DATOS!C13=Auxiliar!Z4),0,E8)))","v":{"$error":"#DIV/0!"}}]